Council Name,Date,TransNo,Amount � (Excl VAT),Supplier name,Supplier Category,Expense Area,Expense Type,Expense Code,Unclaimed VAT
Royal Borough of Kingston,03/02/2022,70033919,531.00,Infermiera healthcare ltd,ACCOMMODATION - OTHER,Adult Social Care & Health,Other Private Contractors - Third Party,A56080,0
Royal Borough of Kingston,23/02/2022,70032708,446.04,NORTHGATE VEHICLE HIRE LTD,VEHICLE & PLANT HIRE / MNTCE,Corporate & Communities,Other Private Contractors - Third Party,A56080,0
Royal Borough of Kingston,02/03/2022,70033918,531.00,Infermiera healthcare ltd,ACCOMMODATION - OTHER,Adult Social Care & Health,Other Private Contractors - Third Party,A56080,0
Royal Borough of Kingston,17/03/2022,70033915,"1,044.00",Infermiera healthcare ltd,ACCOMMODATION - OTHER,Adult Social Care & Health,Other Private Contractors - Third Party,A56080,0
Royal Borough of Kingston,17/03/2022,70033916,"2,088.00",Infermiera healthcare ltd,ACCOMMODATION - OTHER,Adult Social Care & Health,Other Private Contractors - Third Party,A56080,0
Royal Borough of Kingston,21/04/2022,70033909,"1,357.00",Infermiera healthcare ltd,ACCOMMODATION - OTHER,Adult Social Care & Health,Other Private Contractors - Third Party,A56080,0
Royal Borough of Kingston,21/04/2022,70033910,"1,666.75",Infermiera healthcare ltd,ACCOMMODATION - OTHER,Adult Social Care & Health,Other Private Contractors - Third Party,A56080,0
Royal Borough of Kingston,11/05/2022,70023991,920.83,TOLWORTH INFANTS & NURSERY SCHOOL & TOLWORTH JUNIOR SCH,ACADEMIC INSTNS - OTHER,Childrens Services,MSF Claims Support Staff - Internal Trading,A46108,0
Royal Borough of Kingston,11/05/2022,70023978,"1,918.40",KINGS OAK PRIMARY SCHOOL,CENTRAL & LOCAL GOVERNMENT,Childrens Services,MSF Claims Support Staff - Internal Trading,A46108,0
Royal Borough of Kingston,11/05/2022,70024042,767.36,KINGS OAK PRIMARY SCHOOL,CENTRAL & LOCAL GOVERNMENT,Childrens Services,MSF Claims Support Staff - Internal Trading,A46108,0
Royal Borough of Kingston,11/05/2022,70023977,"1,723.20",KING ATHELSTAN PRIMARY SCHOOL,SCHOOL FUNDS,Childrens Services,MSF Claims Teaching Staff - Internal Trading,A46107,0
Royal Borough of Kingston,11/05/2022,70023989,"1,466.25",KING ATHELSTAN PRIMARY SCHOOL,SCHOOL FUNDS,Childrens Services,MSF Claims Support Staff - Internal Trading,A46108,0
Royal Borough of Kingston,11/05/2022,70024040,"2,380.00",MAPLE INFANTS SCHOOL ,SCHOOL FUNDS,Childrens Services,MSF Claims Support Staff - Internal Trading,A46108,0
Royal Borough of Kingston,12/05/2022,70032871,"-4,822.00",NSL LIMITED,CAR PARKS,Corporate & Communities,Other Private Contractors - Third Party,A56080,0
Royal Borough of Kingston,13/05/2022,70032869,"-1,575.00",NSL LIMITED,CAR PARKS,Corporate & Communities,Other Private Contractors - Third Party,A56080,0
Royal Borough of Kingston,13/05/2022,70032870,"-7,075.00",NSL LIMITED,CAR PARKS,Corporate & Communities,Other Private Contractors - Third Party,A56080,0
Royal Borough of Kingston,13/05/2022,70032872,"-1,306.00",NSL LIMITED,CAR PARKS,Corporate & Communities,Other Private Contractors - Third Party,A56080,0
Royal Borough of Kingston,06/06/2022,70025726,"1,600.00",GRAND AVENUE PRIMARY AND NURSERY SCHOOL,CENTRAL & LOCAL GOVERNMENT,Childrens Services,MSF Claims Teaching Staff - Internal Trading,A46107,0
Royal Borough of Kingston,21/06/2022,70026769,"3,376.39",KINGS OAK PRIMARY SCHOOL,CENTRAL & LOCAL GOVERNMENT,Childrens Services,MSF Claims Support Staff - Internal Trading,A46108,0
Royal Borough of Kingston,21/06/2022,70026770,"1,848.75",KING ATHELSTAN PRIMARY SCHOOL,SCHOOL FUNDS,Childrens Services,MSF Claims Support Staff - Internal Trading,A46108,0
Royal Borough of Kingston,21/06/2022,70026772,680.00,KING ATHELSTAN PRIMARY SCHOOL,SCHOOL FUNDS,Childrens Services,MSF Claims Support Staff - Internal Trading,A46108,0
Royal Borough of Kingston,30/06/2022,70032344,"4,000.00",THE COMMUNITY BRAIN CIC,ENTERTAINMENTS INDUSTRY,Capital Programme,Infrastructure Assets - Purchase & Enhancement,C12001,0
Royal Borough of Kingston,30/06/2022,70031399,"1,125.80",ALLPAY LIMITED,FINANCIAL / INSURANCE INSTNS,Adult Social Care & Health,Professional Fees,A44066,0
Royal Borough of Kingston,30/06/2022,70033004,"3,200.00",SUMMERS INMAN LLP,LEGAL & PROFESSIONAL SERVICES,Place,Professional Fees,A44066,0
Royal Borough of Kingston,30/06/2022,70033371,"2,400.00",MARINKO CONSULTANCY LIMITED,TELECOMS,Corporate & Communities,Consultancy Services - Other,A44065,0
Royal Borough of Kingston,06/07/2022,70031647,722.40,LONDON BOROUGH OF RICHMOND UPON THAMES,CONNEXIONS SUPPLIERS,Adult Social Care & Health,Equipment And Materials Purchase,A40000,0
Royal Borough of Kingston,08/07/2022,70032748,"3,530.49",SPEAR,CHARITIES & VOLUNTARY ORGNS,Place,Payments to Voluntary Organisations,A54005,0
Royal Borough of Kingston,08/07/2022,70032749,"1,104.00",SPEAR,CHARITIES & VOLUNTARY ORGNS,Place,Payments to Voluntary Organisations,A54005,0
Royal Borough of Kingston,12/07/2022,70032825,609.60,CHESSINGTON SCHOOL,ACADEMIC INSTNS - OTHER,Adult Social Care & Health,Building Rents,A22005,0
Royal Borough of Kingston,14/07/2022,70033868,560.50,Infermiera healthcare ltd,ACCOMMODATION - OTHER,Adult Social Care & Health,Other Private Contractors - Third Party,A56080,0
Royal Borough of Kingston,14/07/2022,70033869,"1,150.50",Infermiera healthcare ltd,ACCOMMODATION - OTHER,Adult Social Care & Health,Other Private Contractors - Third Party,A56080,0
Royal Borough of Kingston,14/07/2022,70033870,"1,150.50",Infermiera healthcare ltd,ACCOMMODATION - OTHER,Adult Social Care & Health,Other Private Contractors - Third Party,A56080,0
Royal Borough of Kingston,14/07/2022,70033871,"1,150.50",Infermiera healthcare ltd,ACCOMMODATION - OTHER,Adult Social Care & Health,Other Private Contractors - Third Party,A56080,0
Royal Borough of Kingston,14/07/2022,70033872,"1,622.50",Infermiera healthcare ltd,ACCOMMODATION - OTHER,Adult Social Care & Health,Other Private Contractors - Third Party,A56080,0
Royal Borough of Kingston,14/07/2022,70033873,"1,062.00",Infermiera healthcare ltd,ACCOMMODATION - OTHER,Adult Social Care & Health,Other Private Contractors - Third Party,A56080,0
Royal Borough of Kingston,14/07/2022,70033874,531.00,Infermiera healthcare ltd,ACCOMMODATION - OTHER,Adult Social Care & Health,Other Private Contractors - Third Party,A56080,0
Royal Borough of Kingston,14/07/2022,70033875,531.00,Infermiera healthcare ltd,ACCOMMODATION - OTHER,Adult Social Care & Health,Other Private Contractors - Third Party,A56080,0
Royal Borough of Kingston,14/07/2022,70033876,531.00,Infermiera healthcare ltd,ACCOMMODATION - OTHER,Adult Social Care & Health,Other Private Contractors - Third Party,A56080,0
Royal Borough of Kingston,14/07/2022,70033879,531.00,Infermiera healthcare ltd,ACCOMMODATION - OTHER,Adult Social Care & Health,Other Private Contractors - Third Party,A56080,0
Royal Borough of Kingston,14/07/2022,70033881,442.50,Infermiera healthcare ltd,ACCOMMODATION - OTHER,Adult Social Care & Health,Other Private Contractors - Third Party,A56080,0
Royal Borough of Kingston,14/07/2022,70033884,442.50,Infermiera healthcare ltd,ACCOMMODATION - OTHER,Adult Social Care & Health,Other Private Contractors - Third Party,A56080,0
Royal Borough of Kingston,14/07/2022,70033886,531.00,Infermiera healthcare ltd,ACCOMMODATION - OTHER,Adult Social Care & Health,Other Private Contractors - Third Party,A56080,0
Royal Borough of Kingston,14/07/2022,70033888,531.00,Infermiera healthcare ltd,ACCOMMODATION - OTHER,Adult Social Care & Health,Other Private Contractors - Third Party,A56080,0
Royal Borough of Kingston,14/07/2022,70033889,531.00,Infermiera healthcare ltd,ACCOMMODATION - OTHER,Adult Social Care & Health,Other Private Contractors - Third Party,A56080,0
Royal Borough of Kingston,14/07/2022,70033891,531.00,Infermiera healthcare ltd,ACCOMMODATION - OTHER,Adult Social Care & Health,Other Private Contractors - Third Party,A56080,0
Royal Borough of Kingston,14/07/2022,70033907,531.00,Infermiera healthcare ltd,ACCOMMODATION - OTHER,Adult Social Care & Health,Other Private Contractors - Third Party,A56080,0
Royal Borough of Kingston,14/07/2022,70033908,"1,062.00",Infermiera healthcare ltd,ACCOMMODATION - OTHER,Adult Social Care & Health,Other Private Contractors - Third Party,A56080,0
Royal Borough of Kingston,17/07/2022,70028179,"4,944.46",ELLINGHAM PRIMARY SCHOOL,ACADEMIC INSTNS - OTHER,Childrens Services,MSF Management Fee - Internal Trading,A46109,0
Royal Borough of Kingston,17/07/2022,70028184,"8,423.57",LOVELACE PRIMARY SCHOOL,ACADEMIC INSTNS - OTHER,Childrens Services,MSF Management Fee - Internal Trading,A46109,0
Royal Borough of Kingston,17/07/2022,70028186,"2,713.59",ST PAUL'S COFE PRIMARY SCHOOL (CHESSINGTON),ACADEMIC INSTNS - OTHER,Childrens Services,MSF Management Fee - Internal Trading,A46109,0
Royal Borough of Kingston,17/07/2022,70028187,"5,988.48",TOLWORTH INFANTS & NURSERY SCHOOL & TOLWORTH JUNIOR SCH,ACADEMIC INSTNS - OTHER,Childrens Services,MSF Management Fee - Internal Trading,A46109,0
Royal Borough of Kingston,17/07/2022,70028180,"8,849.18",GRAND AVENUE PRIMARY AND NURSERY SCHOOL,CENTRAL & LOCAL GOVERNMENT,Childrens Services,MSF Management Fee - Internal Trading,A46109,0
Royal Borough of Kingston,17/07/2022,70028182,"7,719.46",KINGS OAK PRIMARY SCHOOL,CENTRAL & LOCAL GOVERNMENT,Childrens Services,MSF Management Fee - Internal Trading,A46109,0
Royal Borough of Kingston,17/07/2022,70028181,"7,793.73",KING ATHELSTAN PRIMARY SCHOOL,SCHOOL FUNDS,Childrens Services,MSF Management Fee - Internal Trading,A46109,0
Royal Borough of Kingston,17/07/2022,70028185,"3,776.18",MAPLE INFANTS SCHOOL ,SCHOOL FUNDS,Childrens Services,MSF Management Fee - Internal Trading,A46109,0
Royal Borough of Kingston,19/07/2022,70028374,"2,119.54",YBC Cleaning Services Ltd,PREMISES - WINDOW CLEANING,Housing Revenue Account,Contract Cleaning,A27010,0
Royal Borough of Kingston,22/07/2022,70033662,"1,000.00",Jellyfish Theatre,GRANTS & EX GRATIA PAYMENTS,Corporate & Communities,Payments to Voluntary Organisations,A54005,0
Royal Borough of Kingston,22/07/2022,70028638,"2,119.54",YBC Cleaning Services Ltd,PREMISES - WINDOW CLEANING,Housing Revenue Account,Contract Cleaning,A27010,0
Royal Borough of Kingston,26/07/2022,70031949,"5,356.64",LINDON LEWIS MARINE LTD,OPERATIONAL EQUIPMENT/MATERIAL,Corporate & Communities,Other Private Contractors - Third Party,A56080,0
Royal Borough of Kingston,27/07/2022,70032813,590.00,CREATIVE YOUTH,GRANTS & EX GRATIA PAYMENTS,Corporate & Communities,Payments to Voluntary Organisations,A54005,0
Royal Borough of Kingston,29/07/2022,70033272,"9,461.44",MARSH LTD,SUNDRY SUPPLIER - FINANCE,Corporate & Communities,General Insurance (Excl Premises & Transport),A44260,0
Royal Borough of Kingston,30/07/2022,70032794,"2,700.00",SUMMERS INMAN LLP,LEGAL & PROFESSIONAL SERVICES,Capital Programme,Payments to Contractors,C14000,0
Royal Borough of Kingston,31/07/2022,70033156,"3,769.20",DURADIAMOND HEALTHCARE LIMITED,LEGAL & PROFESSIONAL SERVICES,Corporate & Communities,Other Private Contractors - Third Party,A56080,0
Royal Borough of Kingston,31/07/2022,70033495,"9,438.21",DURADIAMOND HEALTHCARE LIMITED,LEGAL & PROFESSIONAL SERVICES,Corporate & Communities,Other Private Contractors - Third Party,A56080,0
Royal Borough of Kingston,01/08/2022,70034092,"1,050.00",Stef and Philips,ACCOMMODATION BED & BREAKFAST,Place,Bed & Breakfast,A56000,0
Royal Borough of Kingston,01/08/2022,90173862,"11,265.79",SIGNATURE OF COOMBE OPERATIONS LTD,SOCIAL SERVICES RESIDENTIAL,Adult Social Care & Health,Independent Placements,A56006,0
Royal Borough of Kingston,03/08/2022,70033290,"162,815.00",LONDON BOROUGH OF RICHMOND UPON THAMES,CONNEXIONS SUPPLIERS,Corporate & Communities,Payments to Other Local Authorities,A51005,0
Royal Borough of Kingston,03/08/2022,70032741,"6,225.00",M F Brown Ltd,SUNDRY SUPPLIER - HOUSING,Capital Programme,Grants Given For Capital Purposes,C20004,0
Royal Borough of Kingston,10/08/2022,70030991,"5,000.00",TRANSPORT FOR LONDON,CENTRAL & LOCAL GOVERNMENT,Corporate & Communities,UTC - Levy,A50008,0
Royal Borough of Kingston,16/08/2022,70032664,564.96,METIS CONSULTANTS LTD,TEMP STAFF & CONSULTANCY,Corporate & Communities,Flood water management - Sutton,A56051,0
Royal Borough of Kingston,16/08/2022,70030664,326.51,KENT COUNTY COUNCIL,UTILITIES,Housing Revenue Account,Electricity,A21000,0
Royal Borough of Kingston,16/08/2022,70030664,"1,306.05",KENT COUNTY COUNCIL,UTILITIES,Housing Revenue Account,Electricity,A21000,0
Royal Borough of Kingston,19/08/2022,70032776,"1,200.00",NEC SOFTWARE SOLUTIONS UK LIMITED,BUSINESS & COMPUTER SYSTEMS,Corporate & Communities,IT Software Maintenance,A45045,0
Royal Borough of Kingston,22/08/2022,70030893,"2,119.54",YBC Cleaning Services Ltd,PREMISES - WINDOW CLEANING,Housing Revenue Account,Contract Cleaning,A27010,0
Royal Borough of Kingston,24/08/2022,70033196,"4,148.35",BIOLOGICAL PREPARATIONS LTD,TRAINING,Housing Revenue Account,Cleaning Supplies,A27020,0
Royal Borough of Kingston,27/08/2022,70030756,"2,615.19",YBC Cleaning Services Ltd,PREMISES - WINDOW CLEANING,Housing Revenue Account,Contract Cleaning,A27010,0
Royal Borough of Kingston,31/08/2022,70032921,"50,892.00",ARC UK Technologies Ltd,INSTALLATION OF ARTISTIC WORKS (NON-FUNCTIONAL),Capital Programme,External Fees and Consultants,C20000,0
Royal Borough of Kingston,31/08/2022,70033419,"2,315.00",AC & MS LIMITED,LEGAL & PROFESSIONAL SERVICES,Capital Programme,Asbestos Removal,C10000,0
Royal Borough of Kingston,31/08/2022,70032804,"2,747.50",BLAKE MORGAN LLP,LEGAL & PROFESSIONAL SERVICES,Capital Programme,External Legal Fees,C20008,0
Royal Borough of Kingston,31/08/2022,70033157,"5,213.10",DURADIAMOND HEALTHCARE LIMITED,LEGAL & PROFESSIONAL SERVICES,Corporate & Communities,Other Private Contractors - Third Party,A56080,0
Royal Borough of Kingston,31/08/2022,70033496,"6,710.42",DURADIAMOND HEALTHCARE LIMITED,LEGAL & PROFESSIONAL SERVICES,Corporate & Communities,Other Private Contractors - Third Party,A56080,0
Royal Borough of Kingston,31/08/2022,70033501,"74,680.00",MONTAGU EVANS LLP,LEGAL & PROFESSIONAL SERVICES,Corporate & Communities,Professional Fees,A44066,0
Royal Borough of Kingston,31/08/2022,70033104,801.50,ELDERCARE (UK) LTD,SOCIAL SERVICES - OTHER,Adult Social Care & Health,Equipment And Materials Purchase,A40000,0
Royal Borough of Kingston,01/09/2022,70031269,"2,200.00",CHRIST CHURCH C.OF E. PRIMARY SCHOOL - (SURBITON),ACADEMIC INSTNS - OTHER,Childrens Services,MSF Claims Support Staff - Internal Trading,A46108,0
Royal Borough of Kingston,01/09/2022,70031270,"4,232.00",CHRIST CHURCH C.OF E. PRIMARY SCHOOL - (SURBITON),ACADEMIC INSTNS - OTHER,Childrens Services,MSF Claims Teaching Staff - Internal Trading,A46107,0
Royal Borough of Kingston,01/09/2022,70031271,"3,128.00",LOVELACE PRIMARY SCHOOL,ACADEMIC INSTNS - OTHER,Childrens Services,MSF Claims Teaching Staff - Internal Trading,A46107,0
Royal Borough of Kingston,01/09/2022,70033147,752.38,Premier Inn,ACCOMMODATION - OTHER,Adult Social Care & Health,Miscellaneous Expenses,A49000,0
Royal Borough of Kingston,01/09/2022,70033320,"1,674.00",MX Estates Ltd,ACCOMMODATION BED & BREAKFAST,Place,Bed & Breakfast,A56000,0
Royal Borough of Kingston,01/09/2022,70033320,"1,674.00",MX Estates Ltd,ACCOMMODATION BED & BREAKFAST,Place,Bed & Breakfast,A56000,0
Royal Borough of Kingston,01/09/2022,70033320,"2,015.00",MX Estates Ltd,ACCOMMODATION BED & BREAKFAST,Place,Bed & Breakfast,A56000,0
Royal Borough of Kingston,01/09/2022,70033320,"2,310.00",MX Estates Ltd,ACCOMMODATION BED & BREAKFAST,Place,Bed & Breakfast,A56000,0
Royal Borough of Kingston,01/09/2022,70034086,"1,050.00",Stef and Philips,ACCOMMODATION BED & BREAKFAST,Place,Bed & Breakfast,A56000,0
Royal Borough of Kingston,01/09/2022,70034093,216.00,Stef and Philips,ACCOMMODATION BED & BREAKFAST,Place,Bed & Breakfast,A56000,0
Royal Borough of Kingston,01/09/2022,70034093,"1,080.00",Stef and Philips,ACCOMMODATION BED & BREAKFAST,Place,Bed & Breakfast,A56000,0
Royal Borough of Kingston,01/09/2022,70034094,"1,080.00",Stef and Philips,ACCOMMODATION BED & BREAKFAST,Place,Bed & Breakfast,A56000,0
Royal Borough of Kingston,01/09/2022,70034094,"1,050.00",Stef and Philips,ACCOMMODATION BED & BREAKFAST,Place,Bed & Breakfast,A56000,0
Royal Borough of Kingston,01/09/2022,90175238,"2,493.28",Maryville Care Home,SOCIAL SERVICES RESIDENTIAL,Adult Social Care & Health,Independent Placements,A56006,0
Royal Borough of Kingston,01/09/2022,70033182,"13,802.69",TELEFONICA O2,TELECOMS,Corporate & Communities,Mobile Phones,A45030,0
Royal Borough of Kingston,02/09/2022,70032770,"373,802.36",LONDON BOROUGH OF CROYDON,CENTRAL & LOCAL GOVERNMENT,Corporate & Communities,Waste Disposal Contract,A56074,0
Royal Borough of Kingston,02/09/2022,70032992,"69,044.72",ITC Concepts Limited,CONSTRUCTION INDUSTRY,Place,Miscellaneous Expenses,A49000,0
Royal Borough of Kingston,02/09/2022,70032992,"13,615.26",ITC Concepts Limited,CONSTRUCTION INDUSTRY,Capital Programme,Buildings - Investment Properties,C14002,0
Royal Borough of Kingston,02/09/2022,70033047,"11,183.42",Waste Investigations Support & Enforcement Limited,LEGAL & PROFESSIONAL SERVICES,Corporate & Communities,Other Private Contractors - Third Party,A56080,0
Royal Borough of Kingston,05/09/2022,70031548,"1,984.65",ASKEWS AND HOLTS LIBRARY SERVICES LTD,BOOKS PUBLICATIONS STATIONERY,Corporate & Communities,Books,A43050,0
Royal Borough of Kingston,05/09/2022,70031548,60.38,ASKEWS AND HOLTS LIBRARY SERVICES LTD,BOOKS PUBLICATIONS STATIONERY,Corporate & Communities,Books,A43050,0
Royal Borough of Kingston,05/09/2022,70031548,30.05,ASKEWS AND HOLTS LIBRARY SERVICES LTD,BOOKS PUBLICATIONS STATIONERY,Corporate & Communities,Books,A43050,0
Royal Borough of Kingston,05/09/2022,70031548,643.30,ASKEWS AND HOLTS LIBRARY SERVICES LTD,BOOKS PUBLICATIONS STATIONERY,Corporate & Communities,Books,A43050,0
Royal Borough of Kingston,05/09/2022,70031548,133.61,ASKEWS AND HOLTS LIBRARY SERVICES LTD,BOOKS PUBLICATIONS STATIONERY,Corporate & Communities,Books,A43050,0
Royal Borough of Kingston,05/09/2022,70031548,241.36,ASKEWS AND HOLTS LIBRARY SERVICES LTD,BOOKS PUBLICATIONS STATIONERY,Corporate & Communities,Books,A43050,0
Royal Borough of Kingston,05/09/2022,70031497,-936.59,OXYGEN FINANCE LIMITED,FM SERVICES,Corporate & Communities,Professional Fees,A44066,0
Royal Borough of Kingston,05/09/2022,70031552,"5,673.66",OXYGEN FINANCE LIMITED,FM SERVICES,Corporate & Communities,Professional Fees,A44066,0
Royal Borough of Kingston,05/09/2022,90173885,"1,260.00",REDACTED - PERSONAL DATA,SOCIAL SERVICES - DIRECT PAYMENTS,Adult Social Care & Health,Payments To Carers,A56030,0
Royal Borough of Kingston,05/09/2022,90173877,"1,219.50",REDACTED - PERSONAL DATA,SOCIAL SERVICES - DIRECT PAYMENTS,Adult Social Care & Health,Payments To Carers,A56030,0
Royal Borough of Kingston,06/09/2022,70031421,"30,000.00",Jumpsec Ltd,BUSINESS & COMPUTER SYSTEMS,Corporate & Communities,ICT Shared Service - Special Projects,A51012,0
Royal Borough of Kingston,06/09/2022,70033424,"1,200.82",BRITISH TELECOMMUNICATIONS PLC,TELECOMS,Corporate & Communities,Telephones,A45020,0
Royal Borough of Kingston,07/09/2022,70032245,"4,240.00",SNELLERS LIMITED,LEGAL & PROFESSIONAL SERVICES,Place,Professional Fees,A44066,0
Royal Borough of Kingston,07/09/2022,70033172,"1,500.00",SNELLERS LIMITED,LEGAL & PROFESSIONAL SERVICES,Place,Professional Fees,A44066,0
Royal Borough of Kingston,07/09/2022,70033281,173.24,NEWSQUEST MEDIA GROUP LTD,PRESS & PUBLICITY,Corporate & Communities,Publicity And Promotions,A45026,0
Royal Borough of Kingston,07/09/2022,70033281,684.76,NEWSQUEST MEDIA GROUP LTD,PRESS & PUBLICITY,Corporate & Communities,Publicity And Promotions,A45026,0
Royal Borough of Kingston,07/09/2022,70032832,786.00,Street Furniture Direct,SUNDRY SUPPLIER - FINANCE,Corporate & Communities,"Grants, Contributions & Donations",A47005,0
Royal Borough of Kingston,08/09/2022,90171503,571.80,SW 19 TRANSLATION LTD,INTERPRETERS,Corporate & Communities,Translating & Interpreter Services,A44050,0
Royal Borough of Kingston,08/09/2022,70032737,"6,518.33",Suez Recycling and Recovery UK Ltd,REFUSE COLLECTION / DISPOSAL,SLWP,Waste Disposal Contract,A56074,0
Royal Borough of Kingston,10/09/2022,70033072,"2,636.67",ABBOTSBURY CARPETS AND FLOORING,PREMISES - FURNISHINGS,Capital Programme,Buildings - Project Management,C14003,0
Royal Borough of Kingston,12/09/2022,70033428,946.81,ASKEWS AND HOLTS LIBRARY SERVICES LTD,BOOKS PUBLICATIONS STATIONERY,Corporate & Communities,Books,A43050,0
Royal Borough of Kingston,12/09/2022,70033428,"1,180.65",ASKEWS AND HOLTS LIBRARY SERVICES LTD,BOOKS PUBLICATIONS STATIONERY,Corporate & Communities,Books,A43050,0
Royal Borough of Kingston,12/09/2022,70033428,879.60,ASKEWS AND HOLTS LIBRARY SERVICES LTD,BOOKS PUBLICATIONS STATIONERY,Corporate & Communities,Books,A43050,0
Royal Borough of Kingston,12/09/2022,70033428,"1,486.27",ASKEWS AND HOLTS LIBRARY SERVICES LTD,BOOKS PUBLICATIONS STATIONERY,Corporate & Communities,Books,A43050,0
Royal Borough of Kingston,12/09/2022,70031656,"2,672.98",AXIS EUROPE PLC,CONSTRUCTION INDUSTRY,Place,Property Repairs & Maintenance & Alterations - Responsive,A20011,0
Royal Borough of Kingston,12/09/2022,70032848,684.76,NEWSQUEST MEDIA GROUP LTD,PRESS & PUBLICITY,Place,Publicity And Promotions,A45026,0
Royal Borough of Kingston,12/09/2022,70032335,"3,813.50",PRINT IMAGE FACILITIES LLP,REPROGRAPHICS & PHOTOGRAPHY,Corporate & Communities,Postage & Couriers,A45015,0
Royal Borough of Kingston,12/09/2022,90170165,673.75,Bright Star Care Service Ltd,SOCIAL SERVICES - OTHER,Adult Social Care & Health,Homecare - new framework,A56127,0
Royal Borough of Kingston,12/09/2022,90170166,673.75,Bright Star Care Service Ltd,SOCIAL SERVICES - OTHER,Adult Social Care & Health,Homecare - new framework,A56127,0
Royal Borough of Kingston,12/09/2022,90170167,673.75,Bright Star Care Service Ltd,SOCIAL SERVICES - OTHER,Adult Social Care & Health,Homecare - new framework,A56127,0
Royal Borough of Kingston,12/09/2022,90170263,551.25,Bright Star Care Service Ltd,SOCIAL SERVICES - OTHER,Adult Social Care & Health,Homecare - new framework,A56127,0
Royal Borough of Kingston,12/09/2022,90170304,551.25,Bright Star Care Service Ltd,SOCIAL SERVICES - OTHER,Adult Social Care & Health,Homecare - new framework,A56127,0
Royal Borough of Kingston,12/09/2022,90170346,"1,100.73",Bright Star Care Service Ltd,SOCIAL SERVICES - OTHER,Adult Social Care & Health,Homecare - new framework,A56127,0
Royal Borough of Kingston,12/09/2022,90170498,817.69,Bright Star Care Service Ltd,SOCIAL SERVICES - OTHER,Adult Social Care & Health,Homecare - new framework,A56127,0
Royal Borough of Kingston,12/09/2022,90170786,612.50,Bright Star Care Service Ltd,SOCIAL SERVICES - OTHER,Adult Social Care & Health,Personal Budget - Third Party,A61019,0
Royal Borough of Kingston,12/09/2022,90170213,551.25,CN Healthcare,SOCIAL SERVICES - OTHER,Adult Social Care & Health,Homecare - new framework,A56127,0
Royal Borough of Kingston,12/09/2022,90170238,918.76,CN Healthcare,SOCIAL SERVICES - OTHER,Adult Social Care & Health,Homecare - new framework,A56127,0
Royal Borough of Kingston,12/09/2022,90170264,551.25,CN Healthcare,SOCIAL SERVICES - OTHER,Adult Social Care & Health,Homecare - new framework,A56127,0
Royal Borough of Kingston,12/09/2022,90170130,735.01,Humble Healthcare Ltd,SOCIAL SERVICES - OTHER,Adult Social Care & Health,Homecare - new framework,A56127,0
Royal Borough of Kingston,12/09/2022,90170435,551.25,Rapid Improvement Ltd,SOCIAL SERVICES - OTHER,Adult Social Care & Health,Homecare - new framework,A56127,0
Royal Borough of Kingston,12/09/2022,90170499,612.51,Rapid Improvement Ltd,SOCIAL SERVICES - OTHER,Adult Social Care & Health,Homecare - new framework,A56127,0
Royal Borough of Kingston,12/09/2022,90170506,551.25,Rapid Improvement Ltd,SOCIAL SERVICES - OTHER,Adult Social Care & Health,Homecare - new framework,A56127,0
Royal Borough of Kingston,12/09/2022,90170822,"1,860.00",WANDLE HEALTHCARE SERVICES,SOCIAL SERVICES-HOME CARE,Adult Social Care & Health,Personal Budget - Third Party,A61019,0
Royal Borough of Kingston,12/09/2022,90170823,"-1,860.00",WANDLE HEALTHCARE SERVICES,SOCIAL SERVICES-HOME CARE,Adult Social Care & Health,Personal Budget - Third Party,A61019,0
Royal Borough of Kingston,12/09/2022,90170824,"2,604.00",WANDLE HEALTHCARE SERVICES,SOCIAL SERVICES-HOME CARE,Adult Social Care & Health,Personal Budget - Third Party,A61019,0
Royal Borough of Kingston,12/09/2022,90170825,"-2,604.00",WANDLE HEALTHCARE SERVICES,SOCIAL SERVICES-HOME CARE,Adult Social Care & Health,Personal Budget - Third Party,A61019,0
Royal Borough of Kingston,12/09/2022,90170826,"2,604.00",WANDLE HEALTHCARE SERVICES,SOCIAL SERVICES-HOME CARE,Adult Social Care & Health,Personal Budget - Third Party,A61019,0
Royal Borough of Kingston,12/09/2022,90170827,"-2,604.00",WANDLE HEALTHCARE SERVICES,SOCIAL SERVICES-HOME CARE,Adult Social Care & Health,Personal Budget - Third Party,A61019,0
Royal Borough of Kingston,12/09/2022,90170829,"-2,604.00",WANDLE HEALTHCARE SERVICES,SOCIAL SERVICES-HOME CARE,Adult Social Care & Health,Personal Budget - Third Party,A61019,0
Royal Borough of Kingston,12/09/2022,90170830,"-2,232.00",WANDLE HEALTHCARE SERVICES,SOCIAL SERVICES-HOME CARE,Adult Social Care & Health,Personal Budget - Third Party,A61019,0
Royal Borough of Kingston,12/09/2022,90170832,"-2,604.00",WANDLE HEALTHCARE SERVICES,SOCIAL SERVICES-HOME CARE,Adult Social Care & Health,Personal Budget - Third Party,A61019,0
Royal Borough of Kingston,12/09/2022,90170833,"-2,604.00",WANDLE HEALTHCARE SERVICES,SOCIAL SERVICES-HOME CARE,Adult Social Care & Health,Personal Budget - Third Party,A61019,0
Royal Borough of Kingston,12/09/2022,90170834,"-2,604.00",WANDLE HEALTHCARE SERVICES,SOCIAL SERVICES-HOME CARE,Adult Social Care & Health,Personal Budget - Third Party,A61019,0
Royal Borough of Kingston,12/09/2022,90170835,"-2,232.00",WANDLE HEALTHCARE SERVICES,SOCIAL SERVICES-HOME CARE,Adult Social Care & Health,Personal Budget - Third Party,A61019,0
Royal Borough of Kingston,12/09/2022,90170837,"-2,604.00",WANDLE HEALTHCARE SERVICES,SOCIAL SERVICES-HOME CARE,Adult Social Care & Health,Personal Budget - Third Party,A61019,0
Royal Borough of Kingston,12/09/2022,90170838,"-2,604.00",WANDLE HEALTHCARE SERVICES,SOCIAL SERVICES-HOME CARE,Adult Social Care & Health,Personal Budget - Third Party,A61019,0
Royal Borough of Kingston,12/09/2022,90170839,"-2,604.00",WANDLE HEALTHCARE SERVICES,SOCIAL SERVICES-HOME CARE,Adult Social Care & Health,Personal Budget - Third Party,A61019,0
Royal Borough of Kingston,12/09/2022,70033062,"1,650.00",THE TEMPLE GROUP LTD,TEMP STAFF & CONSULTANCY,Capital Programme,Buildings - Design & Planning,C14001,0
Royal Borough of Kingston,12/09/2022,70033138,"6,670.40",THE TEMPLE GROUP LTD,TEMP STAFF & CONSULTANCY,Capital Programme,Buildings - Design & Planning,C14001,0
Royal Borough of Kingston,12/09/2022,70031991,481.50,KENT COUNTY COUNCIL,UTILITIES,Housing Revenue Account,Gas,A21003,0
Royal Borough of Kingston,12/09/2022,70031992,859.85,KENT COUNTY COUNCIL,UTILITIES,Housing Revenue Account,Gas,A21003,0
Royal Borough of Kingston,12/09/2022,70031993,581.75,KENT COUNTY COUNCIL,UTILITIES,Housing Revenue Account,Gas,A21003,0
Royal Borough of Kingston,13/09/2022,70031566,"6,535.45",KUSCO,SUNDRY SUPPLIER - FINANCE,Corporate & Communities,Donations,A91005,0
Royal Borough of Kingston,15/09/2022,70032974,"1,340.00",OWN Transport Ltd,PREMISES - REMOVALS,Corporate & Communities,Equipment And Materials Purchase,A40000,0
Royal Borough of Kingston,15/09/2022,70031973,"3,580.51",KENT COUNTY COUNCIL,UTILITIES,Corporate & Communities,Electricity,A21000,0
Royal Borough of Kingston,15/09/2022,70031973,806.87,KENT COUNTY COUNCIL,UTILITIES,Corporate & Communities,Electricity,A21000,0
Royal Borough of Kingston,15/09/2022,70031973,50.43,KENT COUNTY COUNCIL,UTILITIES,Corporate & Communities,TMS - General,A56085,0
Royal Borough of Kingston,15/09/2022,70031973,504.30,KENT COUNTY COUNCIL,UTILITIES,Corporate & Communities,Electricity,A21000,0
Royal Borough of Kingston,15/09/2022,70031973,100.85,KENT COUNTY COUNCIL,UTILITIES,Corporate & Communities,Miscellaneous Expenses,A49000,0
Royal Borough of Kingston,15/09/2022,70032174,"2,238.50",KENT COUNTY COUNCIL,UTILITIES,Housing Revenue Account,Electricity,A21000,0
Royal Borough of Kingston,15/09/2022,70032176,"1,452.47",KENT COUNTY COUNCIL,UTILITIES,Housing Revenue Account,Electricity,A21000,0
Royal Borough of Kingston,15/09/2022,70032176,622.48,KENT COUNTY COUNCIL,UTILITIES,Housing Revenue Account,Electricity,A21000,0
Royal Borough of Kingston,15/09/2022,70032183,425.27,KENT COUNTY COUNCIL,UTILITIES,Housing Revenue Account,Electricity,A21000,0
Royal Borough of Kingston,15/09/2022,70032183,992.30,KENT COUNTY COUNCIL,UTILITIES,Housing Revenue Account,Electricity,A21000,0
Royal Borough of Kingston,15/09/2022,70032197,272.17,KENT COUNTY COUNCIL,UTILITIES,Housing Revenue Account,Electricity,A21000,0
Royal Borough of Kingston,15/09/2022,70032197,635.06,KENT COUNTY COUNCIL,UTILITIES,Housing Revenue Account,Electricity,A21000,0
Royal Borough of Kingston,15/09/2022,70032438,"2,367.09",KENT COUNTY COUNCIL,UTILITIES,Adult Social Care & Health,Electricity,A21000,0
Royal Borough of Kingston,15/09/2022,70032683,289.91,KENT COUNTY COUNCIL,UTILITIES,Housing Revenue Account,Electricity,A21000,0
Royal Borough of Kingston,15/09/2022,70032683,869.72,KENT COUNTY COUNCIL,UTILITIES,Housing Revenue Account,Electricity,A21000,0
Royal Borough of Kingston,15/09/2022,70033610,"1,443.40",KENT COUNTY COUNCIL,UTILITIES,Corporate & Communities,Electricity,A21000,0
Royal Borough of Kingston,16/09/2022,70032724,"4,250.00",DEMOCRACY COUNTS LIMITED,IT EQUIPMENT MAINTENANCE,Corporate & Communities,Cloud Services,A45007,0
Royal Borough of Kingston,16/09/2022,70031974,323.15,KENT COUNTY COUNCIL,UTILITIES,Housing Revenue Account,Electricity,A21000,0
Royal Borough of Kingston,16/09/2022,70031974,"1,292.60",KENT COUNTY COUNCIL,UTILITIES,Housing Revenue Account,Electricity,A21000,0
Royal Borough of Kingston,16/09/2022,70033940,"28,814.86",KENT COUNTY COUNCIL,UTILITIES,Corporate & Communities,Electricity - Street Lighting,A21002,0
Royal Borough of Kingston,19/09/2022,70032447,753.42,ASKEWS AND HOLTS LIBRARY SERVICES LTD,BOOKS PUBLICATIONS STATIONERY,Corporate & Communities,Books,A43050,0
Royal Borough of Kingston,19/09/2022,70032447,772.82,ASKEWS AND HOLTS LIBRARY SERVICES LTD,BOOKS PUBLICATIONS STATIONERY,Corporate & Communities,Books,A43050,0
Royal Borough of Kingston,19/09/2022,70032447,557.46,ASKEWS AND HOLTS LIBRARY SERVICES LTD,BOOKS PUBLICATIONS STATIONERY,Corporate & Communities,Books,A43050,0
Royal Borough of Kingston,19/09/2022,70032447,"1,483.05",ASKEWS AND HOLTS LIBRARY SERVICES LTD,BOOKS PUBLICATIONS STATIONERY,Corporate & Communities,Books,A43050,0
Royal Borough of Kingston,19/09/2022,90175506,"1,188.60",BALANCE (SUPPORT) C.I.C,SOCIAL SERVICES - OTHER,Adult Social Care & Health,Supported Living - new framework,A56126,0
Royal Borough of Kingston,19/09/2022,90175509,792.40,BALANCE (SUPPORT) C.I.C,SOCIAL SERVICES - OTHER,Adult Social Care & Health,Supported Living - new framework,A56126,0
Royal Borough of Kingston,19/09/2022,90175511,713.16,BALANCE (SUPPORT) C.I.C,SOCIAL SERVICES - OTHER,Adult Social Care & Health,Supported Living - new framework,A56126,0
Royal Borough of Kingston,19/09/2022,90175515,"1,109.36",BALANCE (SUPPORT) C.I.C,SOCIAL SERVICES - OTHER,Adult Social Care & Health,Supported Living - new framework,A56126,0
Royal Borough of Kingston,19/09/2022,90172733,673.75,Bright Star Care Service Ltd,SOCIAL SERVICES - OTHER,Adult Social Care & Health,Homecare - new framework,A56127,0
Royal Borough of Kingston,19/09/2022,90172825,551.25,Bright Star Care Service Ltd,SOCIAL SERVICES - OTHER,Adult Social Care & Health,Homecare - new framework,A56127,0
Royal Borough of Kingston,19/09/2022,90172880,551.25,Bright Star Care Service Ltd,SOCIAL SERVICES - OTHER,Adult Social Care & Health,Homecare - new framework,A56127,0
Royal Borough of Kingston,19/09/2022,90172955,"1,100.73",Bright Star Care Service Ltd,SOCIAL SERVICES - OTHER,Adult Social Care & Health,Homecare - new framework,A56127,0
Royal Borough of Kingston,19/09/2022,90173159,"2,861.90",Bright Star Care Service Ltd,SOCIAL SERVICES - OTHER,Adult Social Care & Health,Homecare - new framework,A56127,0
Royal Borough of Kingston,19/09/2022,90173530,612.50,Bright Star Care Service Ltd,SOCIAL SERVICES - OTHER,Adult Social Care & Health,Personal Budget - Third Party,A61019,0
Royal Borough of Kingston,19/09/2022,90172715,"2,044.22",CN Healthcare,SOCIAL SERVICES - OTHER,Adult Social Care & Health,Homecare - new framework,A56127,0
Royal Borough of Kingston,19/09/2022,90172802,918.76,CN Healthcare,SOCIAL SERVICES - OTHER,Adult Social Care & Health,Homecare - new framework,A56127,0
Royal Borough of Kingston,19/09/2022,90172826,551.25,CN Healthcare,SOCIAL SERVICES - OTHER,Adult Social Care & Health,Homecare - new framework,A56127,0
Royal Borough of Kingston,19/09/2022,90175539,"1,448.56",EMEZZIONS LIMITED,SOCIAL SERVICES - OTHER,Adult Social Care & Health,Supported Living - new framework,A56126,0
Royal Borough of Kingston,19/09/2022,90170569,551.25,FIRST CHOICE SOCIAL CARE & SHELTERED HOUSING LTD,SOCIAL SERVICES - OTHER,Adult Social Care & Health,Homecare - new framework,A56127,0
Royal Borough of Kingston,19/09/2022,90170339,"2,861.90",Goldsmith Personnel Ltd,SOCIAL SERVICES - OTHER,Adult Social Care & Health,Homecare - new framework,A56127,0
Royal Borough of Kingston,19/09/2022,90172695,735.01,Humble Healthcare Ltd,SOCIAL SERVICES - OTHER,Adult Social Care & Health,Homecare - new framework,A56127,0
Royal Borough of Kingston,19/09/2022,90173083,551.25,Rapid Improvement Ltd,SOCIAL SERVICES - OTHER,Adult Social Care & Health,Homecare - new framework,A56127,0
Royal Borough of Kingston,19/09/2022,90173160,612.51,Rapid Improvement Ltd,SOCIAL SERVICES - OTHER,Adult Social Care & Health,Homecare - new framework,A56127,0
Royal Borough of Kingston,19/09/2022,90173189,551.25,Rapid Improvement Ltd,SOCIAL SERVICES - OTHER,Adult Social Care & Health,Homecare - new framework,A56127,0
Royal Borough of Kingston,19/09/2022,90170094,551.25,ALPENBEST LTD,SOCIAL SERVICES DAY CARE,Adult Social Care & Health,Homecare - new framework,A56127,0
Royal Borough of Kingston,19/09/2022,90170097,560.00,ALPENBEST LTD,SOCIAL SERVICES DAY CARE,Adult Social Care & Health,Homecare - new framework,A56127,0
Royal Borough of Kingston,19/09/2022,90170108,"1,470.01",ALPENBEST LTD,SOCIAL SERVICES DAY CARE,Adult Social Care & Health,Homecare - new framework,A56127,0
Royal Borough of Kingston,19/09/2022,90170126,612.50,ALPENBEST LTD,SOCIAL SERVICES DAY CARE,Adult Social Care & Health,Homecare - new framework,A56127,0
Royal Borough of Kingston,19/09/2022,90170152,551.25,ALPENBEST LTD,SOCIAL SERVICES DAY CARE,Adult Social Care & Health,Homecare - new framework,A56127,0
Royal Borough of Kingston,19/09/2022,90170187,735.01,ALPENBEST LTD,SOCIAL SERVICES DAY CARE,Adult Social Care & Health,Homecare - new framework,A56127,0
Royal Borough of Kingston,19/09/2022,90170224,551.25,ALPENBEST LTD,SOCIAL SERVICES DAY CARE,Adult Social Care & Health,Homecare - new framework,A56127,0
Royal Borough of Kingston,19/09/2022,90170237,551.25,ALPENBEST LTD,SOCIAL SERVICES DAY CARE,Adult Social Care & Health,Homecare - new framework,A56127,0
Royal Borough of Kingston,19/09/2022,90170268,551.25,ALPENBEST LTD,SOCIAL SERVICES DAY CARE,Adult Social Care & Health,Homecare - new framework,A56127,0
Royal Borough of Kingston,19/09/2022,90170280,577.50,ALPENBEST LTD,SOCIAL SERVICES DAY CARE,Adult Social Care & Health,Homecare - new framework,A56127,0
Royal Borough of Kingston,19/09/2022,90170329,612.50,ALPENBEST LTD,SOCIAL SERVICES DAY CARE,Adult Social Care & Health,Homecare - new framework,A56127,0
Royal Borough of Kingston,19/09/2022,90170330,551.25,ALPENBEST LTD,SOCIAL SERVICES DAY CARE,Adult Social Care & Health,Homecare - new framework,A56127,0
Royal Borough of Kingston,19/09/2022,90170338,551.25,ALPENBEST LTD,SOCIAL SERVICES DAY CARE,Adult Social Care & Health,Homecare - new framework,A56127,0
Royal Borough of Kingston,19/09/2022,90170341,551.25,ALPENBEST LTD,SOCIAL SERVICES DAY CARE,Adult Social Care & Health,Homecare - new framework,A56127,0
Royal Borough of Kingston,19/09/2022,90170466,796.26,ALPENBEST LTD,SOCIAL SERVICES DAY CARE,Adult Social Care & Health,Homecare - new framework,A56127,0
Royal Borough of Kingston,19/09/2022,90170491,551.25,ALPENBEST LTD,SOCIAL SERVICES DAY CARE,Adult Social Care & Health,Homecare - new framework,A56127,0
Royal Borough of Kingston,19/09/2022,90170496,735.01,ALPENBEST LTD,SOCIAL SERVICES DAY CARE,Adult Social Care & Health,Homecare - new framework,A56127,0
Royal Borough of Kingston,19/09/2022,90170535,525.00,ALPENBEST LTD,SOCIAL SERVICES DAY CARE,Adult Social Care & Health,Homecare - new framework,A56127,0
Royal Borough of Kingston,19/09/2022,90170537,603.75,ALPENBEST LTD,SOCIAL SERVICES DAY CARE,Adult Social Care & Health,Homecare - new framework,A56127,0
Royal Borough of Kingston,19/09/2022,90170549,673.75,ALPENBEST LTD,SOCIAL SERVICES DAY CARE,Adult Social Care & Health,Homecare - new framework,A56127,0
Royal Borough of Kingston,19/09/2022,90170573,612.50,ALPENBEST LTD,SOCIAL SERVICES DAY CARE,Adult Social Care & Health,Homecare - new framework,A56127,0
Royal Borough of Kingston,19/09/2022,90170751,670.95,ALPENBEST LTD,SOCIAL SERVICES DAY CARE,Adult Social Care & Health,Personal Budget - Third Party,A61019,0
Royal Borough of Kingston,19/09/2022,90170769,612.50,ALPENBEST LTD,SOCIAL SERVICES DAY CARE,Adult Social Care & Health,Personal Budget - Third Party,A61019,0
Royal Borough of Kingston,19/09/2022,90170163,673.76,HELMAR CARE AND COMMUNITY SERVICES LTD,SOCIAL SERVICES DAY CARE,Adult Social Care & Health,Homecare - new framework,A56127,0
Royal Borough of Kingston,19/09/2022,90170344,963.78,HELMAR CARE AND COMMUNITY SERVICES LTD,SOCIAL SERVICES DAY CARE,Adult Social Care & Health,Homecare - new framework,A56127,0
Royal Borough of Kingston,19/09/2022,90170502,"2,861.90",HELMAR CARE AND COMMUNITY SERVICES LTD,SOCIAL SERVICES DAY CARE,Adult Social Care & Health,Homecare - new framework,A56127,0
Royal Borough of Kingston,19/09/2022,90170627,630.00,HELMAR CARE AND COMMUNITY SERVICES LTD,SOCIAL SERVICES DAY CARE,Adult Social Care & Health,Homecare - new framework,A56127,0
Royal Borough of Kingston,19/09/2022,90170628,550.73,HELMAR CARE AND COMMUNITY SERVICES LTD,SOCIAL SERVICES DAY CARE,Adult Social Care & Health,Homecare - new framework,A56127,0
Royal Borough of Kingston,19/09/2022,90170386,"1,100.73",INSPIRE MANAGEMENT GROUP LTD,SOCIAL SERVICES DAY CARE,Adult Social Care & Health,Homecare - new framework,A56127,0
Royal Borough of Kingston,19/09/2022,90170511,612.50,INSPIRE MANAGEMENT GROUP LTD,SOCIAL SERVICES DAY CARE,Adult Social Care & Health,Homecare - new framework,A56127,0
Royal Borough of Kingston,19/09/2022,90170524,551.25,INSPIRE MANAGEMENT GROUP LTD,SOCIAL SERVICES DAY CARE,Adult Social Care & Health,Homecare - new framework,A56127,0
Royal Borough of Kingston,19/09/2022,90170554,787.51,INSPIRE MANAGEMENT GROUP LTD,SOCIAL SERVICES DAY CARE,Adult Social Care & Health,Homecare - new framework,A56127,0
Royal Borough of Kingston,19/09/2022,90170564,551.25,INSPIRE MANAGEMENT GROUP LTD,SOCIAL SERVICES DAY CARE,Adult Social Care & Health,Homecare - new framework,A56127,0
Royal Borough of Kingston,19/09/2022,90170586,612.51,INSPIRE MANAGEMENT GROUP LTD,SOCIAL SERVICES DAY CARE,Adult Social Care & Health,Homecare - new framework,A56127,0
Royal Borough of Kingston,19/09/2022,90170582,630.00,MY HOMECARE KINGSTON LTD,SOCIAL SERVICES DAY CARE,Adult Social Care & Health,Homecare - new framework,A56127,0
Royal Borough of Kingston,19/09/2022,90170794,"1,400.00",OZUMBA TRAINING AND CONSULTANCY SERVICES LIMITED,SOCIAL SERVICES DAY CARE,Adult Social Care & Health,Personal Budget - Third Party,A61019,0
Royal Borough of Kingston,19/09/2022,90175508,559.16,GENEVA ROAD LIMITED,SOCIAL SERVICES RESIDENTIAL,Adult Social Care & Health,Supported Living - new framework,A56126,0
Royal Borough of Kingston,19/09/2022,90175514,"1,437.84",GENEVA ROAD LIMITED,SOCIAL SERVICES RESIDENTIAL,Adult Social Care & Health,Supported Living - new framework,A56126,0
Royal Borough of Kingston,19/09/2022,90170753,603.63,WINSOR CARE SERVICES LTD,SOCIAL SERVICES RESIDENTIAL,Adult Social Care & Health,Personal Budget - Third Party,A61019,0
Royal Borough of Kingston,19/09/2022,90170755,603.63,WINSOR CARE SERVICES LTD,SOCIAL SERVICES RESIDENTIAL,Adult Social Care & Health,Personal Budget - Third Party,A61019,0
Royal Borough of Kingston,19/09/2022,90170763,603.63,WINSOR CARE SERVICES LTD,SOCIAL SERVICES RESIDENTIAL,Adult Social Care & Health,Personal Budget - Third Party,A61019,0
Royal Borough of Kingston,19/09/2022,90170766,543.26,WINSOR CARE SERVICES LTD,SOCIAL SERVICES RESIDENTIAL,Adult Social Care & Health,Personal Budget - Third Party,A61019,0
Royal Borough of Kingston,19/09/2022,90170771,603.63,WINSOR CARE SERVICES LTD,SOCIAL SERVICES RESIDENTIAL,Adult Social Care & Health,Personal Budget - Third Party,A61019,0
Royal Borough of Kingston,19/09/2022,90170772,551.89,WINSOR CARE SERVICES LTD,SOCIAL SERVICES RESIDENTIAL,Adult Social Care & Health,Personal Budget - Third Party,A61019,0
Royal Borough of Kingston,19/09/2022,90170775,663.99,WINSOR CARE SERVICES LTD,SOCIAL SERVICES RESIDENTIAL,Adult Social Care & Health,Personal Budget - Third Party,A61019,0
Royal Borough of Kingston,19/09/2022,90170784,603.63,WINSOR CARE SERVICES LTD,SOCIAL SERVICES RESIDENTIAL,Adult Social Care & Health,Personal Budget - Third Party,A61019,0
Royal Borough of Kingston,19/09/2022,90170791,543.26,WINSOR CARE SERVICES LTD,SOCIAL SERVICES RESIDENTIAL,Adult Social Care & Health,Personal Budget - Third Party,A61019,0
Royal Borough of Kingston,19/09/2022,90170759,603.63,BLUE ARROW CARE LTD,SOCIAL SERVICES-HOME CARE,Adult Social Care & Health,Personal Budget - Third Party,A61019,0
Royal Borough of Kingston,19/09/2022,90170761,543.26,BLUE ARROW CARE LTD,SOCIAL SERVICES-HOME CARE,Adult Social Care & Health,Personal Budget - Third Party,A61019,0
Royal Borough of Kingston,19/09/2022,90170770,543.26,BLUE ARROW CARE LTD,SOCIAL SERVICES-HOME CARE,Adult Social Care & Health,Personal Budget - Third Party,A61019,0
Royal Borough of Kingston,19/09/2022,90170778,543.38,BLUE ARROW CARE LTD,SOCIAL SERVICES-HOME CARE,Adult Social Care & Health,Personal Budget - Third Party,A61019,0
Royal Borough of Kingston,19/09/2022,90170779,543.38,BLUE ARROW CARE LTD,SOCIAL SERVICES-HOME CARE,Adult Social Care & Health,Personal Budget - Third Party,A61019,0
Royal Borough of Kingston,19/09/2022,90170780,543.38,BLUE ARROW CARE LTD,SOCIAL SERVICES-HOME CARE,Adult Social Care & Health,Personal Budget - Third Party,A61019,0
Royal Borough of Kingston,19/09/2022,90170781,543.38,BLUE ARROW CARE LTD,SOCIAL SERVICES-HOME CARE,Adult Social Care & Health,Personal Budget - Third Party,A61019,0
Royal Borough of Kingston,19/09/2022,90170179,735.01,CARLCARE LTD,SOCIAL SERVICES-HOME CARE,Adult Social Care & Health,Homecare - new framework,A56127,0
Royal Borough of Kingston,19/09/2022,90170540,595.01,CARLCARE LTD,SOCIAL SERVICES-HOME CARE,Adult Social Care & Health,Homecare - new framework,A56127,0
Royal Borough of Kingston,19/09/2022,90170716,543.26,DAY AND NITE SERVICES (KINGSTON),SOCIAL SERVICES-HOME CARE,Adult Social Care & Health,Personal Budget - Third Party,A61019,0
Royal Borough of Kingston,19/09/2022,90170734,564.82,DAY AND NITE SERVICES (KINGSTON),SOCIAL SERVICES-HOME CARE,Adult Social Care & Health,Personal Budget - Third Party,A61019,0
Royal Borough of Kingston,19/09/2022,90170805,663.99,DAY AND NITE SERVICES (KINGSTON),SOCIAL SERVICES-HOME CARE,Adult Social Care & Health,Personal Budget - Third Party,A61019,0
Royal Borough of Kingston,19/09/2022,90170810,603.63,DAY AND NITE SERVICES (KINGSTON),SOCIAL SERVICES-HOME CARE,Adult Social Care & Health,Personal Budget - Third Party,A61019,0
Royal Borough of Kingston,19/09/2022,90170217,735.01,Global Homecare,SOCIAL SERVICES-HOME CARE,Adult Social Care & Health,Homecare - new framework,A56127,0
Royal Borough of Kingston,19/09/2022,90170354,"2,861.90",Global Homecare,SOCIAL SERVICES-HOME CARE,Adult Social Care & Health,Homecare - new framework,A56127,0
Royal Borough of Kingston,19/09/2022,90170373,"1,635.37",Global Homecare,SOCIAL SERVICES-HOME CARE,Adult Social Care & Health,Homecare - new framework,A56127,0
Royal Borough of Kingston,19/09/2022,90170501,"2,861.90",Global Homecare,SOCIAL SERVICES-HOME CARE,Adult Social Care & Health,Homecare - new framework,A56127,0
Royal Borough of Kingston,19/09/2022,90170713,793.34,SURBITON HOMECARE MANAGEMENT LTD,SOCIAL SERVICES-HOME CARE,Adult Social Care & Health,Personal Budget - Third Party,A61019,0
Royal Borough of Kingston,19/09/2022,90170821,875.26,SURBITON HOMECARE MANAGEMENT LTD,SOCIAL SERVICES-HOME CARE,Adult Social Care & Health,Personal Budget - Third Party,A61019,0
Royal Borough of Kingston,19/09/2022,90170138,857.51,WANDLE HEALTHCARE SERVICES,SOCIAL SERVICES-HOME CARE,Adult Social Care & Health,Homecare - new framework,A56127,0
Royal Borough of Kingston,19/09/2022,90170181,551.25,WANDLE HEALTHCARE SERVICES,SOCIAL SERVICES-HOME CARE,Adult Social Care & Health,Homecare - new framework,A56127,0
Royal Borough of Kingston,19/09/2022,90170295,"2,453.06",WANDLE HEALTHCARE SERVICES,SOCIAL SERVICES-HOME CARE,Adult Social Care & Health,Homecare - new framework,A56127,0
Royal Borough of Kingston,19/09/2022,90170325,"2,044.22",WANDLE HEALTHCARE SERVICES,SOCIAL SERVICES-HOME CARE,Adult Social Care & Health,Homecare - new framework,A56127,0
Royal Borough of Kingston,19/09/2022,90170332,612.51,WANDLE HEALTHCARE SERVICES,SOCIAL SERVICES-HOME CARE,Adult Social Care & Health,Homecare - new framework,A56127,0
Royal Borough of Kingston,19/09/2022,90170396,612.50,WANDLE HEALTHCARE SERVICES,SOCIAL SERVICES-HOME CARE,Adult Social Care & Health,Homecare - new framework,A56127,0
Royal Borough of Kingston,19/09/2022,90170497,"2,861.90",WANDLE HEALTHCARE SERVICES,SOCIAL SERVICES-HOME CARE,Adult Social Care & Health,Homecare - new framework,A56127,0
Royal Borough of Kingston,19/09/2022,90170513,516.25,WANDLE HEALTHCARE SERVICES,SOCIAL SERVICES-HOME CARE,Adult Social Care & Health,Homecare - new framework,A56127,0
Royal Borough of Kingston,19/09/2022,90170622,963.78,WANDLE HEALTHCARE SERVICES,SOCIAL SERVICES-HOME CARE,Adult Social Care & Health,Homecare - new framework,A56127,0
Royal Borough of Kingston,19/09/2022,90170674,-700.00,WANDLE HEALTHCARE SERVICES,SOCIAL SERVICES-HOME CARE,Adult Social Care & Health,Homecare - new framework,A56127,0
Royal Borough of Kingston,19/09/2022,90170675,-786.24,WANDLE HEALTHCARE SERVICES,SOCIAL SERVICES-HOME CARE,Adult Social Care & Health,Homecare - new framework,A56127,0
Royal Borough of Kingston,19/09/2022,90170676,-980.01,WANDLE HEALTHCARE SERVICES,SOCIAL SERVICES-HOME CARE,Adult Social Care & Health,Homecare - new framework,A56127,0
Royal Borough of Kingston,19/09/2022,90170677,"-1,100.73",WANDLE HEALTHCARE SERVICES,SOCIAL SERVICES-HOME CARE,Adult Social Care & Health,Homecare - new framework,A56127,0
Royal Borough of Kingston,19/09/2022,90170678,-980.01,WANDLE HEALTHCARE SERVICES,SOCIAL SERVICES-HOME CARE,Adult Social Care & Health,Homecare - new framework,A56127,0
Royal Borough of Kingston,19/09/2022,90170679,"-1,100.73",WANDLE HEALTHCARE SERVICES,SOCIAL SERVICES-HOME CARE,Adult Social Care & Health,Homecare - new framework,A56127,0
Royal Borough of Kingston,19/09/2022,90170788,670.95,WANDLE HEALTHCARE SERVICES,SOCIAL SERVICES-HOME CARE,Adult Social Care & Health,Personal Budget - Third Party,A61019,0
Royal Borough of Kingston,20/09/2022,70032372,661.00,ASSOCIATION OF ELECTORAL ADMINISTRATORS,CONFERENCES,Corporate & Communities,Staff Development And Training,A15022,0
Royal Borough of Kingston,20/09/2022,70032023,595.00,Redshark Ltd,SUNDRY SUPPLIER - FINANCE,Corporate & Communities,Donations,A91005,0
Royal Borough of Kingston,20/09/2022,70032466,149.44,SOUTHERN ELECTRIC,UTILITIES,Housing Revenue Account,Electricity,A21000,0
Royal Borough of Kingston,20/09/2022,70032466,-33.07,SOUTHERN ELECTRIC,UTILITIES,Housing Revenue Account,Electricity,A21000,0
Royal Borough of Kingston,20/09/2022,70032466,556.90,SOUTHERN ELECTRIC,UTILITIES,Housing Revenue Account,Electricity,A21000,0
Royal Borough of Kingston,20/09/2022,70032734,955.35,SOUTHERN ELECTRIC,UTILITIES,Housing Revenue Account,Gas,A21003,0
Royal Borough of Kingston,21/09/2022,70032389,"1,790.00",AXIS EUROPE PLC,CONSTRUCTION INDUSTRY,Capital Programme,Council Dwellings - Construction & Renovation,C10002,0
Royal Borough of Kingston,21/09/2022,70032385,644.48,NEWSQUEST MEDIA GROUP LTD,PRESS & PUBLICITY,Place,Publicity And Promotions,A45026,0
Royal Borough of Kingston,21/09/2022,70033233,"12,872.09",ADAM HTT LIMITED,TAXI AND COACH HIRE,Adult Social Care & Health,Home To School Transport Taxis,A33016,0
Royal Borough of Kingston,21/09/2022,70033550,"1,119.30",KENT COUNTY COUNCIL,UTILITIES,Corporate & Communities,Electricity,A21000,0
Royal Borough of Kingston,22/09/2022,70032367,"22,500.00",AGE CONCERN KINGSTON UPON THAMES,GRANTS & EX GRATIA PAYMENTS,Corporate & Communities,Payments to Voluntary Organisations,A54005,0
Royal Borough of Kingston,22/09/2022,70032368,"63,000.00",AGE CONCERN KINGSTON UPON THAMES,GRANTS & EX GRATIA PAYMENTS,Adult Social Care & Health,Payments to Voluntary Organisations,A54005,0
Royal Borough of Kingston,22/09/2022,70032369,"188,434.67",AGE CONCERN KINGSTON UPON THAMES,GRANTS & EX GRATIA PAYMENTS,Adult Social Care & Health,Payments to Voluntary Organisations,A54005,0
Royal Borough of Kingston,22/09/2022,70032370,"45,000.00",AGE CONCERN KINGSTON UPON THAMES,GRANTS & EX GRATIA PAYMENTS,Adult Social Care & Health,Payments to Voluntary Organisations,A54005,0
Royal Borough of Kingston,22/09/2022,70032643,"2,583.00",OCN CONTRACT SERVICES,PREMISES - REMOVALS,Housing Revenue Account,Equipment And Materials Purchase,A40000,0
Royal Borough of Kingston,22/09/2022,70032528,"2,119.54",YBC Cleaning Services Ltd,PREMISES - WINDOW CLEANING,Housing Revenue Account,Contract Cleaning,A27010,0
Royal Borough of Kingston,22/09/2022,70032732,756.68,Archadia (UK) Ltd,SUNDRY SUPPLIER - HOUSING,Capital Programme,Grants Given For Capital Purposes,C20004,0
Royal Borough of Kingston,22/09/2022,70033307,613.29,ORANGE  AIRTIME PAYMENTS,TELECOMS,Corporate & Communities,Mobile Phones,A45030,0
Royal Borough of Kingston,23/09/2022,70032735,"8,750.00",ALEXANDRA SCHOOL ,CENTRAL & LOCAL GOVERNMENT,Adult Social Care & Health,Other Private Contractors - Third Party,A56080,0
Royal Borough of Kingston,23/09/2022,70032735,250.00,ALEXANDRA SCHOOL ,CENTRAL & LOCAL GOVERNMENT,Adult Social Care & Health,Other Private Contractors - Third Party,A56080,0
Royal Borough of Kingston,23/09/2022,70032946,"19,228.08",AGE CONCERN KINGSTON UPON THAMES,GRANTS & EX GRATIA PAYMENTS,Adult Social Care & Health,Personal Budget - Third Party,A61019,0
Royal Borough of Kingston,23/09/2022,70032458,424.34,SUMMIT HYGIENE,PREMISES - CLEANING & LAUNDRY,Adult Social Care & Health,Cleaning Supplies,A27020,0
Royal Borough of Kingston,23/09/2022,70033227,"1,415.50",AVICENNA PSYCHIATRY,SOCIAL SERVICES - OTHER,Adult Social Care & Health,Other Private Contractors - Third Party,A56080,0
Royal Borough of Kingston,23/09/2022,70032736,"1,200.00",The Institute of Leadership and Management,SUNDRY SUPPLIER - FINANCE,Corporate & Communities,Leadership Development,A15023,0
Royal Borough of Kingston,23/09/2022,70033411,"6,747.00",Profurb Ltd,SUNDRY SUPPLIER - HOUSING,Capital Programme,Grants Given For Capital Purposes,C20004,0
Royal Borough of Kingston,23/09/2022,70032360,851.00,PREMIER PEOPLE SOLUTIONS LTD,TRAINING,Corporate & Communities,Staff Development And Training,A15022,0
Royal Borough of Kingston,23/09/2022,70032361,647.00,PREMIER PEOPLE SOLUTIONS LTD,TRAINING,Corporate & Communities,Staff Development And Training,A15022,0
Royal Borough of Kingston,24/09/2022,70032762,750.00,REDACTED - PERSONAL DATA,SUNDRY SUPPLIER - FINANCE,Corporate & Communities,Leadership Development,A15023,0
Royal Borough of Kingston,25/09/2022,70032764,456.48,UK FUELS LTD,FUEL AND VEHICLE SUPPLIES,Corporate & Communities,Vehicles -  Fuel,A30015,0
Royal Borough of Kingston,25/09/2022,70032745,650.00,Recognition Awards Ltd,SUNDRY SUPPLIER - FINANCE,Corporate & Communities,Income from Other Local Authorities,A91004,0
Royal Borough of Kingston,26/09/2022,70032640,404.63,ASKEWS AND HOLTS LIBRARY SERVICES LTD,BOOKS PUBLICATIONS STATIONERY,Corporate & Communities,Books,A43050,0
Royal Borough of Kingston,26/09/2022,70032640,79.51,ASKEWS AND HOLTS LIBRARY SERVICES LTD,BOOKS PUBLICATIONS STATIONERY,Corporate & Communities,Books,A43050,0
Royal Borough of Kingston,26/09/2022,70032640,613.47,ASKEWS AND HOLTS LIBRARY SERVICES LTD,BOOKS PUBLICATIONS STATIONERY,Corporate & Communities,Books,A43050,0
Royal Borough of Kingston,26/09/2022,70032640,168.10,ASKEWS AND HOLTS LIBRARY SERVICES LTD,BOOKS PUBLICATIONS STATIONERY,Corporate & Communities,Books,A43050,0
Royal Borough of Kingston,26/09/2022,70033299,"30,000.00",Two Kings Boxing club,CHARITIES & VOLUNTARY ORGNS,Adult Social Care & Health,"Grants, Contributions & Donations",A47005,0
Royal Borough of Kingston,26/09/2022,70033707,"2,260.00",Two Kings Boxing club,CHARITIES & VOLUNTARY ORGNS,Adult Social Care & Health,"Grants, Contributions & Donations",A47005,0
Royal Borough of Kingston,26/09/2022,70034019,"6,000.00",CREATIVE YOUTH,GRANTS & EX GRATIA PAYMENTS,Corporate & Communities,Payments to Voluntary Organisations,A54005,0
Royal Borough of Kingston,26/09/2022,70032761,792.00,Migrant Advocacy Service Limited,GRANTS & EX GRATIA PAYMENTS,Adult Social Care & Health,Payments to Voluntary Organisations,A54005,0
Royal Borough of Kingston,26/09/2022,70033076,616.00,Migrant Advocacy Service Limited,GRANTS & EX GRATIA PAYMENTS,Adult Social Care & Health,Payments to Voluntary Organisations,A54005,0
Royal Borough of Kingston,26/09/2022,70033742,"18,000.00",Migrant Advocacy Service Limited,GRANTS & EX GRATIA PAYMENTS,Adult Social Care & Health,Payments to Voluntary Organisations,A54005,0
Royal Borough of Kingston,26/09/2022,90173998,673.75,Bright Star Care Service Ltd,SOCIAL SERVICES - OTHER,Adult Social Care & Health,Homecare - new framework,A56127,0
Royal Borough of Kingston,26/09/2022,90174102,551.25,Bright Star Care Service Ltd,SOCIAL SERVICES - OTHER,Adult Social Care & Health,Homecare - new framework,A56127,0
Royal Borough of Kingston,26/09/2022,90174143,551.25,Bright Star Care Service Ltd,SOCIAL SERVICES - OTHER,Adult Social Care & Health,Homecare - new framework,A56127,0
Royal Borough of Kingston,26/09/2022,90174174,"1,100.73",Bright Star Care Service Ltd,SOCIAL SERVICES - OTHER,Adult Social Care & Health,Homecare - new framework,A56127,0
Royal Borough of Kingston,26/09/2022,90174313,"2,861.90",Bright Star Care Service Ltd,SOCIAL SERVICES - OTHER,Adult Social Care & Health,Homecare - new framework,A56127,0
Royal Borough of Kingston,26/09/2022,90174612,612.50,Bright Star Care Service Ltd,SOCIAL SERVICES - OTHER,Adult Social Care & Health,Personal Budget - Third Party,A61019,0
Royal Borough of Kingston,26/09/2022,90173983,"2,044.22",CN Healthcare,SOCIAL SERVICES - OTHER,Adult Social Care & Health,Homecare - new framework,A56127,0
Royal Borough of Kingston,26/09/2022,90174078,918.76,CN Healthcare,SOCIAL SERVICES - OTHER,Adult Social Care & Health,Homecare - new framework,A56127,0
Royal Borough of Kingston,26/09/2022,90173252,551.25,FIRST CHOICE SOCIAL CARE & SHELTERED HOUSING LTD,SOCIAL SERVICES - OTHER,Adult Social Care & Health,Homecare - new framework,A56127,0
Royal Borough of Kingston,26/09/2022,90172948,"2,861.90",Goldsmith Personnel Ltd,SOCIAL SERVICES - OTHER,Adult Social Care & Health,Homecare - new framework,A56127,0
Royal Borough of Kingston,26/09/2022,90173964,735.01,Humble Healthcare Ltd,SOCIAL SERVICES - OTHER,Adult Social Care & Health,Homecare - new framework,A56127,0
Royal Borough of Kingston,26/09/2022,90174258,551.25,Rapid Improvement Ltd,SOCIAL SERVICES - OTHER,Adult Social Care & Health,Homecare - new framework,A56127,0
Royal Borough of Kingston,26/09/2022,90174314,612.51,Rapid Improvement Ltd,SOCIAL SERVICES - OTHER,Adult Social Care & Health,Homecare - new framework,A56127,0
Royal Borough of Kingston,26/09/2022,90174357,551.25,Rapid Improvement Ltd,SOCIAL SERVICES - OTHER,Adult Social Care & Health,Homecare - new framework,A56127,0
Royal Borough of Kingston,26/09/2022,90172654,612.51,ALPENBEST LTD,SOCIAL SERVICES DAY CARE,Adult Social Care & Health,Homecare - new framework,A56127,0
Royal Borough of Kingston,26/09/2022,90172657,560.00,ALPENBEST LTD,SOCIAL SERVICES DAY CARE,Adult Social Care & Health,Homecare - new framework,A56127,0
Royal Borough of Kingston,26/09/2022,90172667,-507.50,ALPENBEST LTD,SOCIAL SERVICES DAY CARE,Adult Social Care & Health,Homecare - new framework,A56127,0
Royal Borough of Kingston,26/09/2022,90172668,-507.50,ALPENBEST LTD,SOCIAL SERVICES DAY CARE,Adult Social Care & Health,Homecare - new framework,A56127,0
Royal Borough of Kingston,26/09/2022,90172672,"1,470.01",ALPENBEST LTD,SOCIAL SERVICES DAY CARE,Adult Social Care & Health,Homecare - new framework,A56127,0
Royal Borough of Kingston,26/09/2022,90172691,612.50,ALPENBEST LTD,SOCIAL SERVICES DAY CARE,Adult Social Care & Health,Homecare - new framework,A56127,0
Royal Borough of Kingston,26/09/2022,90172720,551.25,ALPENBEST LTD,SOCIAL SERVICES DAY CARE,Adult Social Care & Health,Homecare - new framework,A56127,0
Royal Borough of Kingston,26/09/2022,90172752,595.00,ALPENBEST LTD,SOCIAL SERVICES DAY CARE,Adult Social Care & Health,Homecare - new framework,A56127,0
Royal Borough of Kingston,26/09/2022,90172754,735.01,ALPENBEST LTD,SOCIAL SERVICES DAY CARE,Adult Social Care & Health,Homecare - new framework,A56127,0
Royal Borough of Kingston,26/09/2022,90172787,551.25,ALPENBEST LTD,SOCIAL SERVICES DAY CARE,Adult Social Care & Health,Homecare - new framework,A56127,0
Royal Borough of Kingston,26/09/2022,90172830,551.25,ALPENBEST LTD,SOCIAL SERVICES DAY CARE,Adult Social Care & Health,Homecare - new framework,A56127,0
Royal Borough of Kingston,26/09/2022,90172846,577.50,ALPENBEST LTD,SOCIAL SERVICES DAY CARE,Adult Social Care & Health,Homecare - new framework,A56127,0
Royal Borough of Kingston,26/09/2022,90172936,612.50,ALPENBEST LTD,SOCIAL SERVICES DAY CARE,Adult Social Care & Health,Homecare - new framework,A56127,0
Royal Borough of Kingston,26/09/2022,90172937,551.25,ALPENBEST LTD,SOCIAL SERVICES DAY CARE,Adult Social Care & Health,Homecare - new framework,A56127,0
Royal Borough of Kingston,26/09/2022,90172947,551.25,ALPENBEST LTD,SOCIAL SERVICES DAY CARE,Adult Social Care & Health,Homecare - new framework,A56127,0
Royal Borough of Kingston,26/09/2022,90172950,551.25,ALPENBEST LTD,SOCIAL SERVICES DAY CARE,Adult Social Care & Health,Homecare - new framework,A56127,0
Royal Borough of Kingston,26/09/2022,90173023,805.01,ALPENBEST LTD,SOCIAL SERVICES DAY CARE,Adult Social Care & Health,Homecare - new framework,A56127,0
Royal Borough of Kingston,26/09/2022,90173044,-630.01,ALPENBEST LTD,SOCIAL SERVICES DAY CARE,Adult Social Care & Health,Homecare - new framework,A56127,0
Royal Borough of Kingston,26/09/2022,90173104,796.26,ALPENBEST LTD,SOCIAL SERVICES DAY CARE,Adult Social Care & Health,Homecare - new framework,A56127,0
Royal Borough of Kingston,26/09/2022,90173146,551.25,ALPENBEST LTD,SOCIAL SERVICES DAY CARE,Adult Social Care & Health,Homecare - new framework,A56127,0
Royal Borough of Kingston,26/09/2022,90173156,735.01,ALPENBEST LTD,SOCIAL SERVICES DAY CARE,Adult Social Care & Health,Homecare - new framework,A56127,0
Royal Borough of Kingston,26/09/2022,90173219,525.00,ALPENBEST LTD,SOCIAL SERVICES DAY CARE,Adult Social Care & Health,Homecare - new framework,A56127,0
Royal Borough of Kingston,26/09/2022,90173221,603.75,ALPENBEST LTD,SOCIAL SERVICES DAY CARE,Adult Social Care & Health,Homecare - new framework,A56127,0
Royal Borough of Kingston,26/09/2022,90173229,665.00,ALPENBEST LTD,SOCIAL SERVICES DAY CARE,Adult Social Care & Health,Homecare - new framework,A56127,0
Royal Borough of Kingston,26/09/2022,90173238,560.00,ALPENBEST LTD,SOCIAL SERVICES DAY CARE,Adult Social Care & Health,Homecare - new framework,A56127,0
Royal Borough of Kingston,26/09/2022,90173256,612.50,ALPENBEST LTD,SOCIAL SERVICES DAY CARE,Adult Social Care & Health,Homecare - new framework,A56127,0
Royal Borough of Kingston,26/09/2022,90173445,670.95,ALPENBEST LTD,SOCIAL SERVICES DAY CARE,Adult Social Care & Health,Personal Budget - Third Party,A61019,0
Royal Borough of Kingston,26/09/2022,90173471,612.50,ALPENBEST LTD,SOCIAL SERVICES DAY CARE,Adult Social Care & Health,Personal Budget - Third Party,A61019,0
Royal Borough of Kingston,26/09/2022,90172732,673.76,HELMAR CARE AND COMMUNITY SERVICES LTD,SOCIAL SERVICES DAY CARE,Adult Social Care & Health,Homecare - new framework,A56127,0
Royal Borough of Kingston,26/09/2022,90172953,963.78,HELMAR CARE AND COMMUNITY SERVICES LTD,SOCIAL SERVICES DAY CARE,Adult Social Care & Health,Homecare - new framework,A56127,0
Royal Borough of Kingston,26/09/2022,90173163,"1,226.53",HELMAR CARE AND COMMUNITY SERVICES LTD,SOCIAL SERVICES DAY CARE,Adult Social Care & Health,Homecare - new framework,A56127,0
Royal Borough of Kingston,26/09/2022,90173164,"-1,226.53",HELMAR CARE AND COMMUNITY SERVICES LTD,SOCIAL SERVICES DAY CARE,Adult Social Care & Health,Homecare - new framework,A56127,0
Royal Borough of Kingston,26/09/2022,90173165,"2,861.90",HELMAR CARE AND COMMUNITY SERVICES LTD,SOCIAL SERVICES DAY CARE,Adult Social Care & Health,Homecare - new framework,A56127,0
Royal Borough of Kingston,26/09/2022,90173166,"-2,861.90",HELMAR CARE AND COMMUNITY SERVICES LTD,SOCIAL SERVICES DAY CARE,Adult Social Care & Health,Homecare - new framework,A56127,0
Royal Borough of Kingston,26/09/2022,90173167,"2,861.90",HELMAR CARE AND COMMUNITY SERVICES LTD,SOCIAL SERVICES DAY CARE,Adult Social Care & Health,Homecare - new framework,A56127,0
Royal Borough of Kingston,26/09/2022,90173168,"-2,861.90",HELMAR CARE AND COMMUNITY SERVICES LTD,SOCIAL SERVICES DAY CARE,Adult Social Care & Health,Homecare - new framework,A56127,0
Royal Borough of Kingston,26/09/2022,90173169,"2,861.90",HELMAR CARE AND COMMUNITY SERVICES LTD,SOCIAL SERVICES DAY CARE,Adult Social Care & Health,Homecare - new framework,A56127,0
Royal Borough of Kingston,26/09/2022,90173170,"-2,861.90",HELMAR CARE AND COMMUNITY SERVICES LTD,SOCIAL SERVICES DAY CARE,Adult Social Care & Health,Homecare - new framework,A56127,0
Royal Borough of Kingston,26/09/2022,90173171,"2,861.90",HELMAR CARE AND COMMUNITY SERVICES LTD,SOCIAL SERVICES DAY CARE,Adult Social Care & Health,Homecare - new framework,A56127,0
Royal Borough of Kingston,26/09/2022,90173172,"-2,861.90",HELMAR CARE AND COMMUNITY SERVICES LTD,SOCIAL SERVICES DAY CARE,Adult Social Care & Health,Homecare - new framework,A56127,0
Royal Borough of Kingston,26/09/2022,90173173,"2,861.90",HELMAR CARE AND COMMUNITY SERVICES LTD,SOCIAL SERVICES DAY CARE,Adult Social Care & Health,Homecare - new framework,A56127,0
Royal Borough of Kingston,26/09/2022,90173174,"-2,861.90",HELMAR CARE AND COMMUNITY SERVICES LTD,SOCIAL SERVICES DAY CARE,Adult Social Care & Health,Homecare - new framework,A56127,0
Royal Borough of Kingston,26/09/2022,90173175,"2,861.90",HELMAR CARE AND COMMUNITY SERVICES LTD,SOCIAL SERVICES DAY CARE,Adult Social Care & Health,Homecare - new framework,A56127,0
Royal Borough of Kingston,26/09/2022,90173176,"-2,861.90",HELMAR CARE AND COMMUNITY SERVICES LTD,SOCIAL SERVICES DAY CARE,Adult Social Care & Health,Homecare - new framework,A56127,0
Royal Borough of Kingston,26/09/2022,90173177,"2,861.90",HELMAR CARE AND COMMUNITY SERVICES LTD,SOCIAL SERVICES DAY CARE,Adult Social Care & Health,Homecare - new framework,A56127,0
Royal Borough of Kingston,26/09/2022,90173178,"-2,861.90",HELMAR CARE AND COMMUNITY SERVICES LTD,SOCIAL SERVICES DAY CARE,Adult Social Care & Health,Homecare - new framework,A56127,0
Royal Borough of Kingston,26/09/2022,90173179,"2,861.90",HELMAR CARE AND COMMUNITY SERVICES LTD,SOCIAL SERVICES DAY CARE,Adult Social Care & Health,Homecare - new framework,A56127,0
Royal Borough of Kingston,26/09/2022,90173180,"-2,861.90",HELMAR CARE AND COMMUNITY SERVICES LTD,SOCIAL SERVICES DAY CARE,Adult Social Care & Health,Homecare - new framework,A56127,0
Royal Borough of Kingston,26/09/2022,90173181,"2,861.90",HELMAR CARE AND COMMUNITY SERVICES LTD,SOCIAL SERVICES DAY CARE,Adult Social Care & Health,Homecare - new framework,A56127,0
Royal Borough of Kingston,26/09/2022,90173182,"-2,861.90",HELMAR CARE AND COMMUNITY SERVICES LTD,SOCIAL SERVICES DAY CARE,Adult Social Care & Health,Homecare - new framework,A56127,0
Royal Borough of Kingston,26/09/2022,90173183,"2,861.90",HELMAR CARE AND COMMUNITY SERVICES LTD,SOCIAL SERVICES DAY CARE,Adult Social Care & Health,Homecare - new framework,A56127,0
Royal Borough of Kingston,26/09/2022,90173184,"-2,861.90",HELMAR CARE AND COMMUNITY SERVICES LTD,SOCIAL SERVICES DAY CARE,Adult Social Care & Health,Homecare - new framework,A56127,0
Royal Borough of Kingston,26/09/2022,90173185,"2,861.90",HELMAR CARE AND COMMUNITY SERVICES LTD,SOCIAL SERVICES DAY CARE,Adult Social Care & Health,Homecare - new framework,A56127,0
Royal Borough of Kingston,26/09/2022,90173311,630.00,HELMAR CARE AND COMMUNITY SERVICES LTD,SOCIAL SERVICES DAY CARE,Adult Social Care & Health,Homecare - new framework,A56127,0
Royal Borough of Kingston,26/09/2022,90173312,550.73,HELMAR CARE AND COMMUNITY SERVICES LTD,SOCIAL SERVICES DAY CARE,Adult Social Care & Health,Homecare - new framework,A56127,0
Royal Borough of Kingston,26/09/2022,90172878,516.25,INSPIRE MANAGEMENT GROUP LTD,SOCIAL SERVICES DAY CARE,Adult Social Care & Health,Homecare - new framework,A56127,0
Royal Borough of Kingston,26/09/2022,90173029,"1,100.73",INSPIRE MANAGEMENT GROUP LTD,SOCIAL SERVICES DAY CARE,Adult Social Care & Health,Homecare - new framework,A56127,0
Royal Borough of Kingston,26/09/2022,90173193,612.50,INSPIRE MANAGEMENT GROUP LTD,SOCIAL SERVICES DAY CARE,Adult Social Care & Health,Homecare - new framework,A56127,0
Royal Borough of Kingston,26/09/2022,90173208,551.25,INSPIRE MANAGEMENT GROUP LTD,SOCIAL SERVICES DAY CARE,Adult Social Care & Health,Homecare - new framework,A56127,0
Royal Borough of Kingston,26/09/2022,90173235,787.51,INSPIRE MANAGEMENT GROUP LTD,SOCIAL SERVICES DAY CARE,Adult Social Care & Health,Homecare - new framework,A56127,0
Royal Borough of Kingston,26/09/2022,90173246,551.25,INSPIRE MANAGEMENT GROUP LTD,SOCIAL SERVICES DAY CARE,Adult Social Care & Health,Homecare - new framework,A56127,0
Royal Borough of Kingston,26/09/2022,90173269,612.51,INSPIRE MANAGEMENT GROUP LTD,SOCIAL SERVICES DAY CARE,Adult Social Care & Health,Homecare - new framework,A56127,0
Royal Borough of Kingston,26/09/2022,90173265,"1,102.51",MY HOMECARE KINGSTON LTD,SOCIAL SERVICES DAY CARE,Adult Social Care & Health,Homecare - new framework,A56127,0
Royal Borough of Kingston,26/09/2022,90173537,"1,400.00",OZUMBA TRAINING AND CONSULTANCY SERVICES LIMITED,SOCIAL SERVICES DAY CARE,Adult Social Care & Health,Personal Budget - Third Party,A61019,0
Royal Borough of Kingston,26/09/2022,90173448,603.63,WINSOR CARE SERVICES LTD,SOCIAL SERVICES RESIDENTIAL,Adult Social Care & Health,Personal Budget - Third Party,A61019,0
Royal Borough of Kingston,26/09/2022,90173450,603.63,WINSOR CARE SERVICES LTD,SOCIAL SERVICES RESIDENTIAL,Adult Social Care & Health,Personal Budget - Third Party,A61019,0
Royal Borough of Kingston,26/09/2022,90173465,603.63,WINSOR CARE SERVICES LTD,SOCIAL SERVICES RESIDENTIAL,Adult Social Care & Health,Personal Budget - Third Party,A61019,0
Royal Borough of Kingston,26/09/2022,90173468,543.26,WINSOR CARE SERVICES LTD,SOCIAL SERVICES RESIDENTIAL,Adult Social Care & Health,Personal Budget - Third Party,A61019,0
Royal Borough of Kingston,26/09/2022,90173473,603.63,WINSOR CARE SERVICES LTD,SOCIAL SERVICES RESIDENTIAL,Adult Social Care & Health,Personal Budget - Third Party,A61019,0
Royal Borough of Kingston,26/09/2022,90173474,551.89,WINSOR CARE SERVICES LTD,SOCIAL SERVICES RESIDENTIAL,Adult Social Care & Health,Personal Budget - Third Party,A61019,0
Royal Borough of Kingston,26/09/2022,90173477,663.99,WINSOR CARE SERVICES LTD,SOCIAL SERVICES RESIDENTIAL,Adult Social Care & Health,Personal Budget - Third Party,A61019,0
Royal Borough of Kingston,26/09/2022,90173528,603.63,WINSOR CARE SERVICES LTD,SOCIAL SERVICES RESIDENTIAL,Adult Social Care & Health,Personal Budget - Third Party,A61019,0
Royal Borough of Kingston,26/09/2022,90173534,543.26,WINSOR CARE SERVICES LTD,SOCIAL SERVICES RESIDENTIAL,Adult Social Care & Health,Personal Budget - Third Party,A61019,0
Royal Borough of Kingston,26/09/2022,90173453,603.63,BLUE ARROW CARE LTD,SOCIAL SERVICES-HOME CARE,Adult Social Care & Health,Personal Budget - Third Party,A61019,0
Royal Borough of Kingston,26/09/2022,90173463,543.26,BLUE ARROW CARE LTD,SOCIAL SERVICES-HOME CARE,Adult Social Care & Health,Personal Budget - Third Party,A61019,0
Royal Borough of Kingston,26/09/2022,90173472,543.26,BLUE ARROW CARE LTD,SOCIAL SERVICES-HOME CARE,Adult Social Care & Health,Personal Budget - Third Party,A61019,0
Royal Borough of Kingston,26/09/2022,90173524,534.75,BLUE ARROW CARE LTD,SOCIAL SERVICES-HOME CARE,Adult Social Care & Health,Personal Budget - Third Party,A61019,0
Royal Borough of Kingston,26/09/2022,90172743,735.01,CARLCARE LTD,SOCIAL SERVICES-HOME CARE,Adult Social Care & Health,Homecare - new framework,A56127,0
Royal Borough of Kingston,26/09/2022,90173224,595.01,CARLCARE LTD,SOCIAL SERVICES-HOME CARE,Adult Social Care & Health,Homecare - new framework,A56127,0
Royal Borough of Kingston,26/09/2022,90173371,543.26,DAY AND NITE SERVICES (KINGSTON),SOCIAL SERVICES-HOME CARE,Adult Social Care & Health,Personal Budget - Third Party,A61019,0
Royal Borough of Kingston,26/09/2022,90173549,663.99,DAY AND NITE SERVICES (KINGSTON),SOCIAL SERVICES-HOME CARE,Adult Social Care & Health,Personal Budget - Third Party,A61019,0
Royal Borough of Kingston,26/09/2022,90172780,735.01,Global Homecare,SOCIAL SERVICES-HOME CARE,Adult Social Care & Health,Homecare - new framework,A56127,0
Royal Borough of Kingston,26/09/2022,90172962,"2,861.90",Global Homecare,SOCIAL SERVICES-HOME CARE,Adult Social Care & Health,Homecare - new framework,A56127,0
Royal Borough of Kingston,26/09/2022,90172980,"2,861.90",Global Homecare,SOCIAL SERVICES-HOME CARE,Adult Social Care & Health,Homecare - new framework,A56127,0
Royal Borough of Kingston,26/09/2022,90173126,551.25,Global Homecare,SOCIAL SERVICES-HOME CARE,Adult Social Care & Health,Homecare - new framework,A56127,0
Royal Borough of Kingston,26/09/2022,90173128,551.25,Global Homecare,SOCIAL SERVICES-HOME CARE,Adult Social Care & Health,Homecare - new framework,A56127,0
Royal Borough of Kingston,26/09/2022,90173130,551.25,Global Homecare,SOCIAL SERVICES-HOME CARE,Adult Social Care & Health,Homecare - new framework,A56127,0
Royal Borough of Kingston,26/09/2022,90173132,551.25,Global Homecare,SOCIAL SERVICES-HOME CARE,Adult Social Care & Health,Homecare - new framework,A56127,0
Royal Borough of Kingston,26/09/2022,90173134,551.25,Global Homecare,SOCIAL SERVICES-HOME CARE,Adult Social Care & Health,Homecare - new framework,A56127,0
Royal Borough of Kingston,26/09/2022,90173136,551.25,Global Homecare,SOCIAL SERVICES-HOME CARE,Adult Social Care & Health,Homecare - new framework,A56127,0
Royal Borough of Kingston,26/09/2022,90173138,551.25,Global Homecare,SOCIAL SERVICES-HOME CARE,Adult Social Care & Health,Homecare - new framework,A56127,0
Royal Borough of Kingston,26/09/2022,90173140,551.25,Global Homecare,SOCIAL SERVICES-HOME CARE,Adult Social Care & Health,Homecare - new framework,A56127,0
Royal Borough of Kingston,26/09/2022,90173162,"2,861.90",Global Homecare,SOCIAL SERVICES-HOME CARE,Adult Social Care & Health,Homecare - new framework,A56127,0
Royal Borough of Kingston,26/09/2022,90173368,793.34,SURBITON HOMECARE MANAGEMENT LTD,SOCIAL SERVICES-HOME CARE,Adult Social Care & Health,Personal Budget - Third Party,A61019,0
Royal Borough of Kingston,26/09/2022,90173564,875.26,SURBITON HOMECARE MANAGEMENT LTD,SOCIAL SERVICES-HOME CARE,Adult Social Care & Health,Personal Budget - Third Party,A61019,0
Royal Borough of Kingston,26/09/2022,90172703,857.51,WANDLE HEALTHCARE SERVICES,SOCIAL SERVICES-HOME CARE,Adult Social Care & Health,Homecare - new framework,A56127,0
Royal Borough of Kingston,26/09/2022,90172745,551.25,WANDLE HEALTHCARE SERVICES,SOCIAL SERVICES-HOME CARE,Adult Social Care & Health,Homecare - new framework,A56127,0
Royal Borough of Kingston,26/09/2022,90172867,"2,861.90",WANDLE HEALTHCARE SERVICES,SOCIAL SERVICES-HOME CARE,Adult Social Care & Health,Homecare - new framework,A56127,0
Royal Borough of Kingston,26/09/2022,90172939,612.51,WANDLE HEALTHCARE SERVICES,SOCIAL SERVICES-HOME CARE,Adult Social Care & Health,Homecare - new framework,A56127,0
Royal Borough of Kingston,26/09/2022,90173059,612.50,WANDLE HEALTHCARE SERVICES,SOCIAL SERVICES-HOME CARE,Adult Social Care & Health,Homecare - new framework,A56127,0
Royal Borough of Kingston,26/09/2022,90173151,551.25,WANDLE HEALTHCARE SERVICES,SOCIAL SERVICES-HOME CARE,Adult Social Care & Health,Homecare - new framework,A56127,0
Royal Borough of Kingston,26/09/2022,90173153,551.25,WANDLE HEALTHCARE SERVICES,SOCIAL SERVICES-HOME CARE,Adult Social Care & Health,Homecare - new framework,A56127,0
Royal Borough of Kingston,26/09/2022,90173155,551.25,WANDLE HEALTHCARE SERVICES,SOCIAL SERVICES-HOME CARE,Adult Social Care & Health,Homecare - new framework,A56127,0
Royal Borough of Kingston,26/09/2022,90173157,"2,861.90",WANDLE HEALTHCARE SERVICES,SOCIAL SERVICES-HOME CARE,Adult Social Care & Health,Homecare - new framework,A56127,0
Royal Borough of Kingston,26/09/2022,90173195,516.25,WANDLE HEALTHCARE SERVICES,SOCIAL SERVICES-HOME CARE,Adult Social Care & Health,Homecare - new framework,A56127,0
Royal Borough of Kingston,26/09/2022,90173306,963.78,WANDLE HEALTHCARE SERVICES,SOCIAL SERVICES-HOME CARE,Adult Social Care & Health,Homecare - new framework,A56127,0
Royal Borough of Kingston,26/09/2022,90173532,670.95,WANDLE HEALTHCARE SERVICES,SOCIAL SERVICES-HOME CARE,Adult Social Care & Health,Personal Budget - Third Party,A61019,0
Royal Borough of Kingston,26/09/2022,90173539,575.10,WANDLE HEALTHCARE SERVICES,SOCIAL SERVICES-HOME CARE,Adult Social Care & Health,Personal Budget - Third Party,A61019,0
Royal Borough of Kingston,26/09/2022,70033293,"7,000.00",ALMEDIADATA LIMITED,SUBSCRIPTIONS & PUBLICATIONS,Corporate & Communities,Subscriptions,A47010,0
Royal Borough of Kingston,26/09/2022,70032639,"40,000.00",PHILIP PANK PARTNERSHIP,TEMP STAFF & CONSULTANCY,Housing Revenue Account,Property-Related Professional Fees,A20035,0
Royal Borough of Kingston,26/09/2022,70032756,"1,100.00",REDACTED - PERSONAL DATA,TEMP STAFF & CONSULTANCY,Corporate & Communities,Conference Expenses,A43075,0
Royal Borough of Kingston,26/09/2022,70032980,681.23,EDF ENERGY CUSTOMER PLC,UTILITIES,Housing Revenue Account,Electricity,A21000,0
Royal Borough of Kingston,26/09/2022,70033198,505.00,EDF ENERGY CUSTOMERS PLC,UTILITIES,Place,Electricity,A21000,0
Royal Borough of Kingston,27/09/2022,70033663,"5,000.00",KINGSTON RACE & EQUALITIES COUNCIL,CHARITIES & VOLUNTARY ORGNS,Corporate & Communities,Payments to Voluntary Organisations,A54005,0
Royal Borough of Kingston,27/09/2022,70032614,"68,100.16",AXIS EUROPE PLC,CONSTRUCTION INDUSTRY,Capital Programme,Council Dwellings - Construction & Renovation,C10002,0
Royal Borough of Kingston,27/09/2022,70032674,"1,791.00",AXIS EUROPE PLC,CONSTRUCTION INDUSTRY,Capital Programme,Council Dwellings - Construction & Renovation,C10002,0
Royal Borough of Kingston,27/09/2022,70032679,460.95,R J DANCE (CONTRACTORS) LTD,CONSTRUCTION INDUSTRY,Corporate & Communities,Other Private Contractors - Third Party,A56080,0
Royal Borough of Kingston,27/09/2022,70032679,"47,075.90",R J DANCE (CONTRACTORS) LTD,CONSTRUCTION INDUSTRY,Corporate & Communities,Other Roading-Related Expenditure,A56041,0
Royal Borough of Kingston,27/09/2022,70032679,"84,010.21",R J DANCE (CONTRACTORS) LTD,CONSTRUCTION INDUSTRY,Corporate & Communities,Footways Responsive Maintenance,A56038,0
Royal Borough of Kingston,27/09/2022,70032679,545.70,R J DANCE (CONTRACTORS) LTD,CONSTRUCTION INDUSTRY,Corporate & Communities,Other Roading-Related Expenditure,A56041,0
Royal Borough of Kingston,27/09/2022,70032679,"32,439.09",R J DANCE (CONTRACTORS) LTD,CONSTRUCTION INDUSTRY,Corporate & Communities,Revenue Carriageway Works,A56036,0
Royal Borough of Kingston,27/09/2022,70032679,"2,471.17",R J DANCE (CONTRACTORS) LTD,CONSTRUCTION INDUSTRY,Corporate & Communities,Highways Improvements,A56039,0
Royal Borough of Kingston,27/09/2022,70032679,668.66,R J DANCE (CONTRACTORS) LTD,CONSTRUCTION INDUSTRY,Corporate & Communities,Revenue Carriageway Works,A56036,0
Royal Borough of Kingston,27/09/2022,70032679,50.52,R J DANCE (CONTRACTORS) LTD,CONSTRUCTION INDUSTRY,Corporate & Communities,Footways Responsive Maintenance,A56038,0
Royal Borough of Kingston,27/09/2022,70032747,"2,000.00",PICK EVERARD,CONSULTING ARCHITECTS ENGINEER,Capital Programme,Payments to Contractors,C14000,0
Royal Borough of Kingston,27/09/2022,70032754,"5,000.00",PICK EVERARD,CONSULTING ARCHITECTS ENGINEER,Capital Programme,Buildings - Design & Planning,C14001,0
Royal Borough of Kingston,27/09/2022,70032677,"24,000.00",JADU CREATIVE LIMITED,IT EQUIPMENT MAINTENANCE,Corporate & Communities,IT Software Maintenance,A45045,0
Royal Borough of Kingston,27/09/2022,70032529,"5,090.16",YBC Cleaning Services Ltd,PREMISES - WINDOW CLEANING,Housing Revenue Account,Contract Cleaning,A27010,0
Royal Borough of Kingston,27/09/2022,70032530,619.56,YBC Cleaning Services Ltd,PREMISES - WINDOW CLEANING,Housing Revenue Account,Contract Cleaning,A27010,0
Royal Borough of Kingston,27/09/2022,70032531,"2,615.19",YBC Cleaning Services Ltd,PREMISES - WINDOW CLEANING,Housing Revenue Account,Contract Cleaning,A27010,0
Royal Borough of Kingston,27/09/2022,70032733,"3,000.00",DigiKind Ltd,TEMP STAFF & CONSULTANCY,Place,Consultancy Services - Other,A44065,0
Royal Borough of Kingston,28/09/2022,70032710,"1,804.00",YOUR HEALTHCARE CIC,CENTRAL & LOCAL GOVERNMENT,Adult Social Care & Health,Personal Budget - Third Party,A61019,0
Royal Borough of Kingston,28/09/2022,70032711,"1,460.00",YOUR HEALTHCARE CIC,CENTRAL & LOCAL GOVERNMENT,Adult Social Care & Health,Personal Budget - Third Party,A61019,0
Royal Borough of Kingston,28/09/2022,70032673,"16,119.92",AXIS EUROPE PLC,CONSTRUCTION INDUSTRY,Capital Programme,Council Dwellings - Construction & Renovation,C10002,0
Royal Borough of Kingston,28/09/2022,70032746,"9,000.00",PICK EVERARD,CONSULTING ARCHITECTS ENGINEER,Place,Agency Staff - Other,A10505,0
Royal Borough of Kingston,28/09/2022,70032780,"48,166.67",REFUGEE ACTION KINGSTON,GRANTS & EX GRATIA PAYMENTS,Adult Social Care & Health,Payments to Voluntary Organisations,A54005,0
Royal Borough of Kingston,28/09/2022,70032810,"2,270.00",LONDON GRID  FOR LEARNING LIMITED,IT EQUIPMENT MAINTENANCE,Corporate & Communities,IT Hardware Maintenance,A45008,0
Royal Borough of Kingston,28/09/2022,70033122,"1,584.00",SCREENCLOUD LIMITED,IT EQUIPMENT MAINTENANCE,Corporate & Communities,IT Software Maintenance,A45045,0
Royal Borough of Kingston,28/09/2022,70032665,"172,304.07",MATRIX SCM LTD,LEGAL & PROFESSIONAL SERVICES,Corporate & Communities,Agency Staff - Other,A10505,0
Royal Borough of Kingston,28/09/2022,70032782,810.00,OWN Transport Ltd,PREMISES - REMOVALS,Place,Other Property Repairs & Maintenance,A20007,0
Royal Borough of Kingston,28/09/2022,70033273,"44,574.65",BALANCE (SUPPORT) C.I.C,SOCIAL SERVICES - OTHER,Adult Social Care & Health,Professional Fees,A44066,0
Royal Borough of Kingston,28/09/2022,70033359,"15,613.76",ADAM HTT LIMITED,TAXI AND COACH HIRE,Adult Social Care & Health,Home To School Transport Taxis,A33016,0
Royal Borough of Kingston,29/09/2022,70032820,"7,510.00",IHS (GLOBAL) LIMITED,BOOKS PUBLICATIONS STATIONERY,Place,Professional Fees,A44066,0
Royal Borough of Kingston,29/09/2022,70032795,"5,048.00",LIQUIDLOGIC LTD,BUSINESS & COMPUTER SYSTEMS,Adult Social Care & Health,IT Software Maintenance,A45045,0
Royal Borough of Kingston,29/09/2022,70032795,"14,013.00",LIQUIDLOGIC LTD,BUSINESS & COMPUTER SYSTEMS,Adult Social Care & Health,IT Software Purchase,A45040,0
Royal Borough of Kingston,29/09/2022,70032701,"135,253.97",AXIS EUROPE PLC,CONSTRUCTION INDUSTRY,Capital Programme,Council Dwellings - Construction & Renovation,C10002,0
Royal Borough of Kingston,29/09/2022,70032779,"4,479.00",AXIS EUROPE PLC,CONSTRUCTION INDUSTRY,Capital Programme,Council Dwellings - Construction & Renovation,C10002,0
Royal Borough of Kingston,29/09/2022,70032824,"24,126.75",KINGSTON CHURCHES ACTION ON HOMELESSNESS,GRANTS & EX GRATIA PAYMENTS,Place,Payments to Voluntary Organisations,A54005,0
Royal Borough of Kingston,29/09/2022,70032828,"1,525.68",MEON LIMITED,PRESS & PUBLICITY,Corporate & Communities,Other Roading-Related Expenditure,A56041,0
Royal Borough of Kingston,30/09/2022,70033843,"1,050.00",ADAM HOTELS UK LIMITED,ACCOMMODATION BED & BREAKFAST,Place,Bed & Breakfast,A56000,0
Royal Borough of Kingston,30/09/2022,70033846,"1,260.00",ADAM HOTELS UK LIMITED,ACCOMMODATION BED & BREAKFAST,Place,Bed & Breakfast,A56000,0
Royal Borough of Kingston,30/09/2022,70033505,"1,617.00",APEX HOUSING SOLUTIONS LTD,ACCOMMODATION BED & BREAKFAST,Place,Bed & Breakfast,A56000,0
Royal Borough of Kingston,30/09/2022,70033506,"1,650.00",APEX HOUSING SOLUTIONS LTD,ACCOMMODATION BED & BREAKFAST,Place,Bed & Breakfast,A56000,0
Royal Borough of Kingston,30/09/2022,70033507,"1,557.00",APEX HOUSING SOLUTIONS LTD,ACCOMMODATION BED & BREAKFAST,Place,Bed & Breakfast,A56000,0
Royal Borough of Kingston,30/09/2022,70033508,"1,497.00",APEX HOUSING SOLUTIONS LTD,ACCOMMODATION BED & BREAKFAST,Place,Bed & Breakfast,A56000,0
Royal Borough of Kingston,30/09/2022,70033509,"1,740.00",APEX HOUSING SOLUTIONS LTD,ACCOMMODATION BED & BREAKFAST,Place,Bed & Breakfast,A56000,0
Royal Borough of Kingston,30/09/2022,70033510,"1,200.00",APEX HOUSING SOLUTIONS LTD,ACCOMMODATION BED & BREAKFAST,Place,Bed & Breakfast,A56000,0
Royal Borough of Kingston,30/09/2022,70033511,"2,670.00",APEX HOUSING SOLUTIONS LTD,ACCOMMODATION BED & BREAKFAST,Place,Bed & Breakfast,A56000,0
Royal Borough of Kingston,30/09/2022,70033512,"2,280.00",APEX HOUSING SOLUTIONS LTD,ACCOMMODATION BED & BREAKFAST,Place,Bed & Breakfast,A56000,0
Royal Borough of Kingston,30/09/2022,70033513,"1,617.00",APEX HOUSING SOLUTIONS LTD,ACCOMMODATION BED & BREAKFAST,Place,Bed & Breakfast,A56000,0
Royal Borough of Kingston,30/09/2022,70033514,"1,350.00",APEX HOUSING SOLUTIONS LTD,ACCOMMODATION BED & BREAKFAST,Place,Bed & Breakfast,A56000,0
Royal Borough of Kingston,30/09/2022,70033515,"2,100.00",APEX HOUSING SOLUTIONS LTD,ACCOMMODATION BED & BREAKFAST,Place,Bed & Breakfast,A56000,0
Royal Borough of Kingston,30/09/2022,70033516,"1,740.00",APEX HOUSING SOLUTIONS LTD,ACCOMMODATION BED & BREAKFAST,Place,Bed & Breakfast,A56000,0
Royal Borough of Kingston,30/09/2022,70033517,"1,497.00",APEX HOUSING SOLUTIONS LTD,ACCOMMODATION BED & BREAKFAST,Place,Bed & Breakfast,A56000,0
Royal Borough of Kingston,30/09/2022,70033518,"1,740.00",APEX HOUSING SOLUTIONS LTD,ACCOMMODATION BED & BREAKFAST,Place,Bed & Breakfast,A56000,0
Royal Borough of Kingston,30/09/2022,70033519,"1,557.00",APEX HOUSING SOLUTIONS LTD,ACCOMMODATION BED & BREAKFAST,Place,Bed & Breakfast,A56000,0
Royal Borough of Kingston,30/09/2022,70033520,"1,740.00",APEX HOUSING SOLUTIONS LTD,ACCOMMODATION BED & BREAKFAST,Place,Bed & Breakfast,A56000,0
Royal Borough of Kingston,30/09/2022,70033521,"1,650.00",APEX HOUSING SOLUTIONS LTD,ACCOMMODATION BED & BREAKFAST,Place,Bed & Breakfast,A56000,0
Royal Borough of Kingston,30/09/2022,70033522,"1,650.00",APEX HOUSING SOLUTIONS LTD,ACCOMMODATION BED & BREAKFAST,Place,Bed & Breakfast,A56000,0
Royal Borough of Kingston,30/09/2022,70033523,"2,010.00",APEX HOUSING SOLUTIONS LTD,ACCOMMODATION BED & BREAKFAST,Place,Bed & Breakfast,A56000,0
Royal Borough of Kingston,30/09/2022,70033524,"1,350.00",APEX HOUSING SOLUTIONS LTD,ACCOMMODATION BED & BREAKFAST,Place,Bed & Breakfast,A56000,0
Royal Borough of Kingston,30/09/2022,70033525,"2,070.00",APEX HOUSING SOLUTIONS LTD,ACCOMMODATION BED & BREAKFAST,Place,Bed & Breakfast,A56000,0
Royal Borough of Kingston,30/09/2022,70033526,"1,650.00",APEX HOUSING SOLUTIONS LTD,ACCOMMODATION BED & BREAKFAST,Place,Bed & Breakfast,A56000,0
Royal Borough of Kingston,30/09/2022,70033527,"2,100.00",APEX HOUSING SOLUTIONS LTD,ACCOMMODATION BED & BREAKFAST,Place,Bed & Breakfast,A56000,0
Royal Borough of Kingston,30/09/2022,70033528,"1,617.00",APEX HOUSING SOLUTIONS LTD,ACCOMMODATION BED & BREAKFAST,Place,Bed & Breakfast,A56000,0
Royal Borough of Kingston,30/09/2022,70033529,"1,650.00",APEX HOUSING SOLUTIONS LTD,ACCOMMODATION BED & BREAKFAST,Place,Bed & Breakfast,A56000,0
Royal Borough of Kingston,30/09/2022,70033530,900.00,APEX HOUSING SOLUTIONS LTD,ACCOMMODATION BED & BREAKFAST,Place,Bed & Breakfast,A56000,0
Royal Borough of Kingston,30/09/2022,70033531,"1,617.00",APEX HOUSING SOLUTIONS LTD,ACCOMMODATION BED & BREAKFAST,Place,Bed & Breakfast,A56000,0
Royal Borough of Kingston,30/09/2022,70033532,"1,740.00",APEX HOUSING SOLUTIONS LTD,ACCOMMODATION BED & BREAKFAST,Place,Bed & Breakfast,A56000,0
Royal Borough of Kingston,30/09/2022,70033533,"1,320.00",APEX HOUSING SOLUTIONS LTD,ACCOMMODATION BED & BREAKFAST,Place,Bed & Breakfast,A56000,0
Royal Borough of Kingston,30/09/2022,70033502,"2,250.00",CHRISTOPHER HOUSE (LONDON) LTD,ACCOMMODATION BED & BREAKFAST,Place,Bed & Breakfast,A56000,0
Royal Borough of Kingston,30/09/2022,70033820,"1,110.00",Croydon Court LTD,ACCOMMODATION BED & BREAKFAST,Place,Bed & Breakfast,A56000,0
Royal Borough of Kingston,30/09/2022,70033820,80.00,Croydon Court LTD,ACCOMMODATION BED & BREAKFAST,Place,Bed & Breakfast,A56000,0
Royal Borough of Kingston,30/09/2022,70033849,"1,050.00",Dunheved Hotel LTD,ACCOMMODATION BED & BREAKFAST,Place,Bed & Breakfast,A56000,0
Royal Borough of Kingston,30/09/2022,70033813,"1,530.00",Heathrow Link Limited,ACCOMMODATION BED & BREAKFAST,Place,Bed & Breakfast,A56000,0
Royal Borough of Kingston,30/09/2022,70033816,"1,680.00",Heathrow Link Limited,ACCOMMODATION BED & BREAKFAST,Place,Bed & Breakfast,A56000,0
Royal Borough of Kingston,30/09/2022,70033859,"1,140.00",LHG Thornton Heath LTD,ACCOMMODATION BED & BREAKFAST,Place,Bed & Breakfast,A56000,0
Royal Borough of Kingston,30/09/2022,70033859,"3,240.00",LHG Thornton Heath LTD,ACCOMMODATION BED & BREAKFAST,Place,Bed & Breakfast,A56000,0
Royal Borough of Kingston,30/09/2022,70033859,"1,650.00",LHG Thornton Heath LTD,ACCOMMODATION BED & BREAKFAST,Place,Bed & Breakfast,A56000,0
Royal Borough of Kingston,30/09/2022,70033817,"1,920.00",LHG Wembley LTD,ACCOMMODATION BED & BREAKFAST,Place,Bed & Breakfast,A56000,0
Royal Borough of Kingston,30/09/2022,70033358,"88,539.20",LINK ESTATES LIMITED,ACCOMMODATION BED & BREAKFAST,Place,Bed & Breakfast,A56000,0
Royal Borough of Kingston,30/09/2022,70033819,"2,250.00",London Clapham Common LTD,ACCOMMODATION BED & BREAKFAST,Place,Bed & Breakfast,A56000,0
Royal Borough of Kingston,30/09/2022,70033819,"1,875.00",London Clapham Common LTD,ACCOMMODATION BED & BREAKFAST,Place,Bed & Breakfast,A56000,0
Royal Borough of Kingston,30/09/2022,70033821,"1,080.00",London Clapham South,ACCOMMODATION BED & BREAKFAST,Place,Bed & Breakfast,A56000,0
Royal Borough of Kingston,30/09/2022,70033821,"1,080.00",London Clapham South,ACCOMMODATION BED & BREAKFAST,Place,Bed & Breakfast,A56000,0
Royal Borough of Kingston,30/09/2022,70033821,"1,200.00",London Clapham South,ACCOMMODATION BED & BREAKFAST,Place,Bed & Breakfast,A56000,0
Royal Borough of Kingston,30/09/2022,70033821,"1,200.00",London Clapham South,ACCOMMODATION BED & BREAKFAST,Place,Bed & Breakfast,A56000,0
Royal Borough of Kingston,30/09/2022,70033818,980.00,London Croydon LTD,ACCOMMODATION BED & BREAKFAST,Place,Bed & Breakfast,A56000,0
Royal Borough of Kingston,30/09/2022,70033860,"1,860.00",London Hounslow LTD,ACCOMMODATION BED & BREAKFAST,Place,Bed & Breakfast,A56000,0
Royal Borough of Kingston,30/09/2022,70033860,"2,400.00",London Hounslow LTD,ACCOMMODATION BED & BREAKFAST,Place,Bed & Breakfast,A56000,0
Royal Borough of Kingston,30/09/2022,70033860,"1,860.00",London Hounslow LTD,ACCOMMODATION BED & BREAKFAST,Place,Bed & Breakfast,A56000,0
Royal Borough of Kingston,30/09/2022,70033860,"1,860.00",London Hounslow LTD,ACCOMMODATION BED & BREAKFAST,Place,Bed & Breakfast,A56000,0
Royal Borough of Kingston,30/09/2022,70033860,"2,490.00",London Hounslow LTD,ACCOMMODATION BED & BREAKFAST,Place,Bed & Breakfast,A56000,0
Royal Borough of Kingston,30/09/2022,70033860,"2,490.00",London Hounslow LTD,ACCOMMODATION BED & BREAKFAST,Place,Bed & Breakfast,A56000,0
Royal Borough of Kingston,30/09/2022,70033860,"1,530.00",London Hounslow LTD,ACCOMMODATION BED & BREAKFAST,Place,Bed & Breakfast,A56000,0
Royal Borough of Kingston,30/09/2022,70033860,"2,190.00",London Hounslow LTD,ACCOMMODATION BED & BREAKFAST,Place,Bed & Breakfast,A56000,0
Royal Borough of Kingston,30/09/2022,70033814,"2,181.00",QUARTZ PROPERTIES (LONDON) LTD,ACCOMMODATION BED & BREAKFAST,Place,Bed & Breakfast,A56000,0
Royal Borough of Kingston,30/09/2022,70033814,"1,497.00",QUARTZ PROPERTIES (LONDON) LTD,ACCOMMODATION BED & BREAKFAST,Place,Bed & Breakfast,A56000,0
Royal Borough of Kingston,30/09/2022,70033814,"1,110.00",QUARTZ PROPERTIES (LONDON) LTD,ACCOMMODATION BED & BREAKFAST,Place,Bed & Breakfast,A56000,0
Royal Borough of Kingston,30/09/2022,70033814,"1,110.00",QUARTZ PROPERTIES (LONDON) LTD,ACCOMMODATION BED & BREAKFAST,Place,Bed & Breakfast,A56000,0
Royal Borough of Kingston,30/09/2022,70033814,"1,260.00",QUARTZ PROPERTIES (LONDON) LTD,ACCOMMODATION BED & BREAKFAST,Place,Bed & Breakfast,A56000,0
Royal Borough of Kingston,30/09/2022,70033814,"1,860.00",QUARTZ PROPERTIES (LONDON) LTD,ACCOMMODATION BED & BREAKFAST,Place,Bed & Breakfast,A56000,0
Royal Borough of Kingston,30/09/2022,70033814,"1,170.00",QUARTZ PROPERTIES (LONDON) LTD,ACCOMMODATION BED & BREAKFAST,Place,Bed & Breakfast,A56000,0
Royal Borough of Kingston,30/09/2022,70033814,"1,110.00",QUARTZ PROPERTIES (LONDON) LTD,ACCOMMODATION BED & BREAKFAST,Place,Bed & Breakfast,A56000,0
Royal Borough of Kingston,30/09/2022,70033814,"1,110.00",QUARTZ PROPERTIES (LONDON) LTD,ACCOMMODATION BED & BREAKFAST,Place,Bed & Breakfast,A56000,0
Royal Borough of Kingston,30/09/2022,70033814,"1,110.00",QUARTZ PROPERTIES (LONDON) LTD,ACCOMMODATION BED & BREAKFAST,Place,Bed & Breakfast,A56000,0
Royal Borough of Kingston,30/09/2022,70033814,"1,110.00",QUARTZ PROPERTIES (LONDON) LTD,ACCOMMODATION BED & BREAKFAST,Place,Bed & Breakfast,A56000,0
Royal Borough of Kingston,30/09/2022,70033814,"1,497.00",QUARTZ PROPERTIES (LONDON) LTD,ACCOMMODATION BED & BREAKFAST,Place,Bed & Breakfast,A56000,0
Royal Borough of Kingston,30/09/2022,70033814,"1,867.50",QUARTZ PROPERTIES (LONDON) LTD,ACCOMMODATION BED & BREAKFAST,Place,Bed & Breakfast,A56000,0
Royal Borough of Kingston,30/09/2022,70033814,"1,620.00",QUARTZ PROPERTIES (LONDON) LTD,ACCOMMODATION BED & BREAKFAST,Place,Bed & Breakfast,A56000,0
Royal Borough of Kingston,30/09/2022,70033814,"1,867.50",QUARTZ PROPERTIES (LONDON) LTD,ACCOMMODATION BED & BREAKFAST,Place,Bed & Breakfast,A56000,0
Royal Borough of Kingston,30/09/2022,70033814,"1,110.00",QUARTZ PROPERTIES (LONDON) LTD,ACCOMMODATION BED & BREAKFAST,Place,Bed & Breakfast,A56000,0
Royal Borough of Kingston,30/09/2022,70033814,"1,440.00",QUARTZ PROPERTIES (LONDON) LTD,ACCOMMODATION BED & BREAKFAST,Place,Bed & Breakfast,A56000,0
Royal Borough of Kingston,30/09/2022,70033814,"1,770.00",QUARTZ PROPERTIES (LONDON) LTD,ACCOMMODATION BED & BREAKFAST,Place,Bed & Breakfast,A56000,0
Royal Borough of Kingston,30/09/2022,70033814,"1,590.00",QUARTZ PROPERTIES (LONDON) LTD,ACCOMMODATION BED & BREAKFAST,Place,Bed & Breakfast,A56000,0
Royal Borough of Kingston,30/09/2022,70033814,"1,590.00",QUARTZ PROPERTIES (LONDON) LTD,ACCOMMODATION BED & BREAKFAST,Place,Bed & Breakfast,A56000,0
Royal Borough of Kingston,30/09/2022,70033814,"1,590.00",QUARTZ PROPERTIES (LONDON) LTD,ACCOMMODATION BED & BREAKFAST,Place,Bed & Breakfast,A56000,0
Royal Borough of Kingston,30/09/2022,70033814,"1,110.00",QUARTZ PROPERTIES (LONDON) LTD,ACCOMMODATION BED & BREAKFAST,Place,Bed & Breakfast,A56000,0
Royal Borough of Kingston,30/09/2022,70033814,"1,110.00",QUARTZ PROPERTIES (LONDON) LTD,ACCOMMODATION BED & BREAKFAST,Place,Bed & Breakfast,A56000,0
Royal Borough of Kingston,30/09/2022,70033814,"1,110.00",QUARTZ PROPERTIES (LONDON) LTD,ACCOMMODATION BED & BREAKFAST,Place,Bed & Breakfast,A56000,0
Royal Borough of Kingston,30/09/2022,70033814,"1,770.00",QUARTZ PROPERTIES (LONDON) LTD,ACCOMMODATION BED & BREAKFAST,Place,Bed & Breakfast,A56000,0
Royal Borough of Kingston,30/09/2022,70033814,"2,400.00",QUARTZ PROPERTIES (LONDON) LTD,ACCOMMODATION BED & BREAKFAST,Place,Bed & Breakfast,A56000,0
Royal Borough of Kingston,30/09/2022,70033814,"1,260.00",QUARTZ PROPERTIES (LONDON) LTD,ACCOMMODATION BED & BREAKFAST,Place,Bed & Breakfast,A56000,0
Royal Borough of Kingston,30/09/2022,70033814,"1,260.00",QUARTZ PROPERTIES (LONDON) LTD,ACCOMMODATION BED & BREAKFAST,Place,Bed & Breakfast,A56000,0
Royal Borough of Kingston,30/09/2022,70033814,"1,110.00",QUARTZ PROPERTIES (LONDON) LTD,ACCOMMODATION BED & BREAKFAST,Place,Bed & Breakfast,A56000,0
Royal Borough of Kingston,30/09/2022,70033814,"1,980.00",QUARTZ PROPERTIES (LONDON) LTD,ACCOMMODATION BED & BREAKFAST,Place,Bed & Breakfast,A56000,0
Royal Borough of Kingston,30/09/2022,70033814,"1,110.00",QUARTZ PROPERTIES (LONDON) LTD,ACCOMMODATION BED & BREAKFAST,Place,Bed & Breakfast,A56000,0
Royal Borough of Kingston,30/09/2022,70033814,"1,980.00",QUARTZ PROPERTIES (LONDON) LTD,ACCOMMODATION BED & BREAKFAST,Place,Bed & Breakfast,A56000,0
Royal Borough of Kingston,30/09/2022,70033814,"1,110.00",QUARTZ PROPERTIES (LONDON) LTD,ACCOMMODATION BED & BREAKFAST,Place,Bed & Breakfast,A56000,0
Royal Borough of Kingston,30/09/2022,70033814,"1,110.00",QUARTZ PROPERTIES (LONDON) LTD,ACCOMMODATION BED & BREAKFAST,Place,Bed & Breakfast,A56000,0
Royal Borough of Kingston,30/09/2022,70033431,"2,010.00",Star People LTD,ACCOMMODATION BED & BREAKFAST,Place,Bed & Breakfast,A56000,0
Royal Borough of Kingston,30/09/2022,70033431,"1,867.50",Star People LTD,ACCOMMODATION BED & BREAKFAST,Place,Bed & Breakfast,A56000,0
Royal Borough of Kingston,30/09/2022,70033431,"1,437.00",Star People LTD,ACCOMMODATION BED & BREAKFAST,Place,Bed & Breakfast,A56000,0
Royal Borough of Kingston,30/09/2022,70033431,"1,867.50",Star People LTD,ACCOMMODATION BED & BREAKFAST,Place,Bed & Breakfast,A56000,0
Royal Borough of Kingston,30/09/2022,70033431,"2,181.00",Star People LTD,ACCOMMODATION BED & BREAKFAST,Place,Bed & Breakfast,A56000,0
Royal Borough of Kingston,30/09/2022,70033431,"1,867.50",Star People LTD,ACCOMMODATION BED & BREAKFAST,Place,Bed & Breakfast,A56000,0
Royal Borough of Kingston,30/09/2022,70033431,"2,181.00",Star People LTD,ACCOMMODATION BED & BREAKFAST,Place,Bed & Breakfast,A56000,0
Royal Borough of Kingston,30/09/2022,70032811,"10,937.00",AQUAVENT LIMITED,BUILDING MNTCE - SERVICES,Housing Revenue Account,Water Testing & Treatment,A20037,0
Royal Borough of Kingston,30/09/2022,70032778,"2,400.00",TPM LIMITED,BUSINESS & COMPUTER SYSTEMS,Capital Programme,Buildings - Design & Planning,C14001,0
Royal Borough of Kingston,30/09/2022,70032883,"304,046.66",NSL LIMITED,CAR PARKS,Corporate & Communities,Other Private Contractors - Third Party,A56080,0
Royal Borough of Kingston,30/09/2022,70032883,"36,408.00",NSL LIMITED,CAR PARKS,Corporate & Communities,Other Private Contractors - Third Party,A56080,0
Royal Borough of Kingston,30/09/2022,70032883,"12,937.08",NSL LIMITED,CAR PARKS,Corporate & Communities,Other Private Contractors - Third Party,A56080,0
Royal Borough of Kingston,30/09/2022,70032883,"3,709.60",NSL LIMITED,CAR PARKS,Corporate & Communities,Other Private Contractors - Third Party,A56080,0
Royal Borough of Kingston,30/09/2022,70032750,"128,460.50",SPEAR,CHARITIES & VOLUNTARY ORGNS,Place,Payments to Voluntary Organisations,A54005,0
Royal Borough of Kingston,30/09/2022,70032788,500.00,SPEAR,CHARITIES & VOLUNTARY ORGNS,Place,Payments to Voluntary Organisations,A54005,0
Royal Borough of Kingston,30/09/2022,70033549,"1,283.32",THE FIRCROFT TRUST,CHARITIES & VOLUNTARY ORGNS,Place,Electricity,A21000,0
Royal Borough of Kingston,30/09/2022,70032759,"4,784.20",AXIS EUROPE PLC,CONSTRUCTION INDUSTRY,Capital Programme,Council Dwellings - Construction & Renovation,C10002,0
Royal Borough of Kingston,30/09/2022,70032766,"12,006.69",AXIS EUROPE PLC,CONSTRUCTION INDUSTRY,Capital Programme,Council Dwellings - Construction & Renovation,C10002,0
Royal Borough of Kingston,30/09/2022,70032826,"16,681.75",AXIS EUROPE PLC,CONSTRUCTION INDUSTRY,Capital Programme,Council Dwellings - Construction & Renovation,C10002,0
Royal Borough of Kingston,30/09/2022,70033038,"73,996.61",COUNTRYSIDE PROPERTIES (UK) LTD,CONSTRUCTION INDUSTRY,Capital Programme,Payments to Contractors,C14000,0
Royal Borough of Kingston,30/09/2022,70033039,"394,055.70",COUNTRYSIDE PROPERTIES (UK) LTD,CONSTRUCTION INDUSTRY,Capital Programme,Payments to Contractors,C14000,0
Royal Borough of Kingston,30/09/2022,70033040,"312,368.38",COUNTRYSIDE PROPERTIES (UK) LTD,CONSTRUCTION INDUSTRY,Capital Programme,Payments to Contractors,C14000,0
Royal Borough of Kingston,30/09/2022,70033041,"392,871.01",COUNTRYSIDE PROPERTIES (UK) LTD,CONSTRUCTION INDUSTRY,Capital Programme,Payments to Contractors,C14000,0
Royal Borough of Kingston,30/09/2022,70033253,"156,937.59",CRAVENCROFT LTD,CONSTRUCTION INDUSTRY,Capital Programme,Payments to Contractors,C14000,0
Royal Borough of Kingston,30/09/2022,70032757,"7,498.60",F.M. CONWAY LTD,CONSTRUCTION INDUSTRY,Corporate & Communities,Vehicle Crossings,A56043,0
Royal Borough of Kingston,30/09/2022,70032808,"4,000.00",PICK EVERARD,CONSULTING ARCHITECTS ENGINEER,Capital Programme,Buildings - Design & Planning,C14001,0
Royal Borough of Kingston,30/09/2022,70033397,"2,725.00",ROBERT BIGGS ASSOCIATES LTD,CONSULTING ARCHITECTS ENGINEER,Place,Agency Staff - Other,A10505,0
Royal Borough of Kingston,30/09/2022,70033398,"1,950.00",ROBERT BIGGS ASSOCIATES LTD,CONSULTING ARCHITECTS ENGINEER,Place,Agency Staff - Other,A10505,0
Royal Borough of Kingston,30/09/2022,70033361,"1,214.39",COMETT LIMITED,ENTERTAINMENTS INDUSTRY,Adult Social Care & Health,Consultancy Services - Other,A44065,0
Royal Borough of Kingston,30/09/2022,70033068,565.55,ALLPAY LIMITED,FINANCIAL / INSURANCE INSTNS,Adult Social Care & Health,Professional Fees,A44066,0
Royal Borough of Kingston,30/09/2022,70032940,600.00,AGE CONCERN KINGSTON UPON THAMES,GRANTS & EX GRATIA PAYMENTS,Adult Social Care & Health,Payments to Voluntary Organisations,A54005,0
Royal Borough of Kingston,30/09/2022,70032790,460.00,AC & MS LIMITED,LEGAL & PROFESSIONAL SERVICES,Housing Revenue Account,Asbestos Audit,A20042,0
Royal Borough of Kingston,30/09/2022,70032793,"1,403.75",AC & MS LIMITED,LEGAL & PROFESSIONAL SERVICES,Capital Programme,Asbestos Removal,C10000,0
Royal Borough of Kingston,30/09/2022,70032807,"15,127.50",BNP PARIBAS REAL ESTATE ADVISORY & PROPERTY MANAGEMENT UK LTD,LEGAL & PROFESSIONAL SERVICES,Place,Consultancy Services,A56007,0
Royal Borough of Kingston,30/09/2022,70033215,"26,652.00",DISCLOSURE AND BARRING SERVICE ,LEGAL & PROFESSIONAL SERVICES,Corporate & Communities,DBS Checks,A15029,0
Royal Borough of Kingston,30/09/2022,70033158,"4,987.18",DURADIAMOND HEALTHCARE LIMITED,LEGAL & PROFESSIONAL SERVICES,Corporate & Communities,Other Private Contractors - Third Party,A56080,0
Royal Borough of Kingston,30/09/2022,70033159,"8,463.83",DURADIAMOND HEALTHCARE LIMITED,LEGAL & PROFESSIONAL SERVICES,Corporate & Communities,Other Private Contractors - Third Party,A56080,0
Royal Borough of Kingston,30/09/2022,70033403,910.00,HML INDEPENDENT MEDICAL ADVICE LTD,LEGAL & PROFESSIONAL SERVICES,Place,Professional Fees,A44066,0
Royal Borough of Kingston,30/09/2022,70032800,"3,000.00",SAVILLS COMMERCIAL LTD,LEGAL & PROFESSIONAL SERVICES,Place,Consultancy Services,A56007,0
Royal Borough of Kingston,30/09/2022,70032773,"5,235.45",CHELSEA & WESTMINSTER HOSPITAL NHS FT,MANAGEMENT & TRAINING SERVICES,Adult Social Care & Health,Other Private Contractors - Third Party,A56080,0
Royal Borough of Kingston,30/09/2022,70033065,"2,158.33",THE SURBITON MASONIC HALL LTD,OFFICE SERVICES,Corporate & Communities,Miscellaneous Expenses,A49000,0
Royal Borough of Kingston,30/09/2022,70032812,"4,750.00",DSCALLARDS LIMITED,OPERATIONAL EQUIPMENT/MATERIAL,Adult Social Care & Health,Staff Development And Training,A15022,0
Royal Borough of Kingston,30/09/2022,70032948,"1,826.61",RESTORE PLC,OPERATIONAL EQUIPMENT/MATERIAL,Corporate & Communities,Storage And Archiving Services,A44085,0
Royal Borough of Kingston,30/09/2022,70033058,"2,279.91",RESTORE PLC,OPERATIONAL EQUIPMENT/MATERIAL,Corporate & Communities,Storage And Archiving Services,A44085,0
Royal Borough of Kingston,30/09/2022,70033386,"9,380.06",PRINT IMAGE NETWORK LTD,REPROGRAPHICS & PHOTOGRAPHY,Corporate & Communities,Printing,A43010,0
Royal Borough of Kingston,30/09/2022,70033387,447.45,PRINT IMAGE NETWORK LTD,REPROGRAPHICS & PHOTOGRAPHY,Corporate & Communities,Printing,A43010,0
Royal Borough of Kingston,30/09/2022,70033254,974.04,ELDERCARE (UK) LTD,SOCIAL SERVICES - OTHER,Adult Social Care & Health,Equipment And Materials Purchase,A40000,0
Royal Borough of Kingston,30/09/2022,70033255,"5,725.29",ELDERCARE (UK) LTD,SOCIAL SERVICES - OTHER,Adult Social Care & Health,Equipment And Materials Purchase,A40000,0
Royal Borough of Kingston,30/09/2022,70033440,725.00,ELDERCARE (UK) LTD,SOCIAL SERVICES - OTHER,Adult Social Care & Health,Equipment And Materials Purchase,A40000,0
Royal Borough of Kingston,30/09/2022,70033252,"1,854.00",ENHANCEABLE,SOCIAL SERVICES - OTHER,Adult Social Care & Health,Other Private Contractors - Third Party,A56080,0
Royal Borough of Kingston,30/09/2022,70032976,"28,165.25",THE AVENUES TRUST GROUP,SOCIAL SERVICES RESIDENTIAL,Adult Social Care & Health,Housing and Support - Learning Disability Services,A62014,0
Royal Borough of Kingston,30/09/2022,70032282,"24,300.00",HILTON NURSING PARTNERSHIP,SOCIAL SERVICES-HOME CARE,Adult Social Care & Health,Home Care Services,A56019,0
Royal Borough of Kingston,30/09/2022,70032837,568.05,REDACTED - PERSONAL DATA,SUNDRY SUPPLIER - FINANCE,Corporate & Communities,Miscellaneous Expenses,A49000,0
Royal Borough of Kingston,30/09/2022,70033021,950.00,Woman of a Certain Stage Ltd,SUNDRY SUPPLIER - FINANCE,Corporate & Communities,Staff Development And Training,A15022,0
Royal Borough of Kingston,30/09/2022,70032803,"4,200.00",Hewes Consulting Limited,SUNDRY SUPPLIER - HOUSING,Housing Revenue Account,Consultancy Services - Other,A44065,0
Royal Borough of Kingston,30/09/2022,70032924,"19,300.00",31TEN CONSULTING LIMITED,TEMP STAFF & CONSULTANCY,Corporate & Communities,Consultancy Services,A56007,0
Royal Borough of Kingston,30/09/2022,70032817,"3,639.25",METIS CONSULTANTS LTD,TEMP STAFF & CONSULTANCY,Corporate & Communities,Flood water management - RBK,A56050,0
Royal Borough of Kingston,30/09/2022,70032818,"3,639.25",METIS CONSULTANTS LTD,TEMP STAFF & CONSULTANCY,Corporate & Communities,Flood water management - Sutton,A56051,0
Royal Borough of Kingston,30/09/2022,70032822,625.00,PREMIER PEOPLE SOLUTIONS LTD,TRAINING,Corporate & Communities,Staff Development And Training,A15022,0
Royal Borough of Kingston,01/10/2022,90176893,"5,745.10",ABC HILLINGDON LTD,ACCOMMODATION - OTHER,Adult Social Care & Health,Personal Budget - Third Party,A61019,0
Royal Borough of Kingston,01/10/2022,90176924,"6,317.00",CLIA Care Ltd,ACCOMMODATION - OTHER,Adult Social Care & Health,Personal Budget - Third Party,A61019,0
Royal Borough of Kingston,01/10/2022,90176885,"6,665.00",Dephinus Healthcare Ltd,ACCOMMODATION - OTHER,Adult Social Care & Health,Personal Budget - Third Party,A61019,0
Royal Borough of Kingston,01/10/2022,90176906,"12,178.57",Dephinus Healthcare Ltd,ACCOMMODATION - OTHER,Adult Social Care & Health,Personal Budget - Third Party,A61019,0
Royal Borough of Kingston,01/10/2022,90176901,"17,629.17",Freshstart Care Solutions Ltd,ACCOMMODATION - OTHER,Adult Social Care & Health,Personal Budget - Third Party,A61019,0
Royal Borough of Kingston,01/10/2022,90176882,"10,242.67",MAGIC LIFE LIMITED,ACCOMMODATION - OTHER,Adult Social Care & Health,Personal Budget - Third Party,A61019,0
Royal Borough of Kingston,01/10/2022,90176926,"7,681.98",MAGIC LIFE LIMITED,ACCOMMODATION - OTHER,Adult Social Care & Health,Personal Budget - Third Party,A61019,0
Royal Borough of Kingston,01/10/2022,90175441,"2,990.84",MEDIHANDS CLIFTON,ACCOMMODATION - OTHER,Adult Social Care & Health,Independent Placements,A56006,0
Royal Borough of Kingston,01/10/2022,90175442,"2,497.67",MEDIHANDS CLIFTON,ACCOMMODATION - OTHER,Adult Social Care & Health,Independent Placements,A56006,0
Royal Borough of Kingston,01/10/2022,90175417,"5,521.54",The Partnership In Care Ltd,ACCOMMODATION - OTHER,Adult Social Care & Health,Independent Placements,A56006,0
Royal Borough of Kingston,01/10/2022,90175260,"8,252.64",WELMEDE HOUSING ASSOCIATION LTD,ACCOMMODATION - OTHER,Adult Social Care & Health,Independent Placements,A56006,0
Royal Borough of Kingston,01/10/2022,90175261,"6,766.41",WELMEDE HOUSING ASSOCIATION LTD,ACCOMMODATION - OTHER,Adult Social Care & Health,Independent Placements,A56006,0
Royal Borough of Kingston,01/10/2022,90176579,"5,574.38",WELMEDE HOUSING ASSOCIATION LTD,ACCOMMODATION - OTHER,Adult Social Care & Health,Personal Budget - Third Party,A61019,0
Royal Borough of Kingston,01/10/2022,90176585,"4,996.58",WELMEDE HOUSING ASSOCIATION LTD,ACCOMMODATION - OTHER,Adult Social Care & Health,Personal Budget - Third Party,A61019,0
Royal Borough of Kingston,01/10/2022,90176594,"5,574.38",WELMEDE HOUSING ASSOCIATION LTD,ACCOMMODATION - OTHER,Adult Social Care & Health,Personal Budget - Third Party,A61019,0
Royal Borough of Kingston,01/10/2022,90176599,"4,996.58",WELMEDE HOUSING ASSOCIATION LTD,ACCOMMODATION - OTHER,Adult Social Care & Health,Personal Budget - Third Party,A61019,0
Royal Borough of Kingston,01/10/2022,90176600,"2,026.03",WELMEDE HOUSING ASSOCIATION LTD,ACCOMMODATION - OTHER,Adult Social Care & Health,Personal Budget - Third Party,A61019,0
Royal Borough of Kingston,01/10/2022,90176601,"5,600.64",WELMEDE HOUSING ASSOCIATION LTD,ACCOMMODATION - OTHER,Adult Social Care & Health,Personal Budget - Third Party,A61019,0
Royal Borough of Kingston,01/10/2022,90176611,"4,456.29",WELMEDE HOUSING ASSOCIATION LTD,ACCOMMODATION - OTHER,Adult Social Care & Health,Personal Budget - Third Party,A61019,0
Royal Borough of Kingston,01/10/2022,90176620,"5,896.73",WELMEDE HOUSING ASSOCIATION LTD,ACCOMMODATION - OTHER,Adult Social Care & Health,Personal Budget - Third Party,A61019,0
Royal Borough of Kingston,01/10/2022,90176621,"5,600.64",WELMEDE HOUSING ASSOCIATION LTD,ACCOMMODATION - OTHER,Adult Social Care & Health,Personal Budget - Third Party,A61019,0
Royal Borough of Kingston,01/10/2022,90176626,"2,972.63",WELMEDE HOUSING ASSOCIATION LTD,ACCOMMODATION - OTHER,Adult Social Care & Health,Personal Budget - Third Party,A61019,0
Royal Borough of Kingston,01/10/2022,90176645,"1,947.60",WELMEDE HOUSING ASSOCIATION LTD,ACCOMMODATION - OTHER,Adult Social Care & Health,Personal Budget - Third Party,A61019,0
Royal Borough of Kingston,01/10/2022,90176654,"2,438.73",WELMEDE HOUSING ASSOCIATION LTD,ACCOMMODATION - OTHER,Adult Social Care & Health,Personal Budget - Third Party,A61019,0
Royal Borough of Kingston,01/10/2022,90176655,"4,185.44",WELMEDE HOUSING ASSOCIATION LTD,ACCOMMODATION - OTHER,Adult Social Care & Health,Personal Budget - Third Party,A61019,0
Royal Borough of Kingston,01/10/2022,90176656,"14,266.55",WELMEDE HOUSING ASSOCIATION LTD,ACCOMMODATION - OTHER,Adult Social Care & Health,Personal Budget - Third Party,A61019,0
Royal Borough of Kingston,01/10/2022,90176663,"4,996.58",WELMEDE HOUSING ASSOCIATION LTD,ACCOMMODATION - OTHER,Adult Social Care & Health,Personal Budget - Third Party,A61019,0
Royal Borough of Kingston,01/10/2022,90176664,"4,456.29",WELMEDE HOUSING ASSOCIATION LTD,ACCOMMODATION - OTHER,Adult Social Care & Health,Personal Budget - Third Party,A61019,0
Royal Borough of Kingston,01/10/2022,90176687,"6,255.14",WELMEDE HOUSING ASSOCIATION LTD,ACCOMMODATION - OTHER,Adult Social Care & Health,Personal Budget - Third Party,A61019,0
Royal Borough of Kingston,01/10/2022,90176689,"2,062.30",WELMEDE HOUSING ASSOCIATION LTD,ACCOMMODATION - OTHER,Adult Social Care & Health,Personal Budget - Third Party,A61019,0
Royal Borough of Kingston,01/10/2022,90176706,"5,600.64",WELMEDE HOUSING ASSOCIATION LTD,ACCOMMODATION - OTHER,Adult Social Care & Health,Personal Budget - Third Party,A61019,0
Royal Borough of Kingston,01/10/2022,90176728,"4,456.29",WELMEDE HOUSING ASSOCIATION LTD,ACCOMMODATION - OTHER,Adult Social Care & Health,Personal Budget - Third Party,A61019,0
Royal Borough of Kingston,01/10/2022,90176731,"5,574.38",WELMEDE HOUSING ASSOCIATION LTD,ACCOMMODATION - OTHER,Adult Social Care & Health,Personal Budget - Third Party,A61019,0
Royal Borough of Kingston,01/10/2022,90176737,"4,456.29",WELMEDE HOUSING ASSOCIATION LTD,ACCOMMODATION - OTHER,Adult Social Care & Health,Personal Budget - Third Party,A61019,0
Royal Borough of Kingston,01/10/2022,90176754,"1,707.13",WELMEDE HOUSING ASSOCIATION LTD,ACCOMMODATION - OTHER,Adult Social Care & Health,Personal Budget - Third Party,A61019,0
Royal Borough of Kingston,01/10/2022,90176758,"4,456.29",WELMEDE HOUSING ASSOCIATION LTD,ACCOMMODATION - OTHER,Adult Social Care & Health,Personal Budget - Third Party,A61019,0
Royal Borough of Kingston,01/10/2022,90176947,-695.06,WELMEDE HOUSING ASSOCIATION LTD,ACCOMMODATION - OTHER,Adult Social Care & Health,Financially Assessed Contributions clients � Non VAT,A92047,0
Royal Borough of Kingston,01/10/2022,70033470,"1,440.00",Buildvantage Limited,ACCOMMODATION BED & BREAKFAST,Place,Bed & Breakfast,A56000,0
Royal Borough of Kingston,01/10/2022,70033471,"1,440.00",Buildvantage Limited,ACCOMMODATION BED & BREAKFAST,Place,Bed & Breakfast,A56000,0
Royal Borough of Kingston,01/10/2022,70033472,"1,440.00",Buildvantage Limited,ACCOMMODATION BED & BREAKFAST,Place,Bed & Breakfast,A56000,0
Royal Borough of Kingston,01/10/2022,70033473,"1,440.00",Buildvantage Limited,ACCOMMODATION BED & BREAKFAST,Place,Bed & Breakfast,A56000,0
Royal Borough of Kingston,01/10/2022,70033474,"1,440.00",Buildvantage Limited,ACCOMMODATION BED & BREAKFAST,Place,Bed & Breakfast,A56000,0
Royal Borough of Kingston,01/10/2022,70033475,"1,440.00",Buildvantage Limited,ACCOMMODATION BED & BREAKFAST,Place,Bed & Breakfast,A56000,0
Royal Borough of Kingston,01/10/2022,70033476,"1,260.00",Buildvantage Limited,ACCOMMODATION BED & BREAKFAST,Place,Bed & Breakfast,A56000,0
Royal Borough of Kingston,01/10/2022,70033477,"1,260.00",Buildvantage Limited,ACCOMMODATION BED & BREAKFAST,Place,Bed & Breakfast,A56000,0
Royal Borough of Kingston,01/10/2022,70033478,"1,440.00",Buildvantage Limited,ACCOMMODATION BED & BREAKFAST,Place,Bed & Breakfast,A56000,0
Royal Borough of Kingston,01/10/2022,70033479,"1,260.00",Buildvantage Limited,ACCOMMODATION BED & BREAKFAST,Place,Bed & Breakfast,A56000,0
Royal Borough of Kingston,01/10/2022,70033480,"1,440.00",Buildvantage Limited,ACCOMMODATION BED & BREAKFAST,Place,Bed & Breakfast,A56000,0
Royal Borough of Kingston,01/10/2022,70033481,"1,440.00",Buildvantage Limited,ACCOMMODATION BED & BREAKFAST,Place,Bed & Breakfast,A56000,0
Royal Borough of Kingston,01/10/2022,70033482,"1,440.00",Buildvantage Limited,ACCOMMODATION BED & BREAKFAST,Place,Bed & Breakfast,A56000,0
Royal Borough of Kingston,01/10/2022,70033483,"1,440.00",Buildvantage Limited,ACCOMMODATION BED & BREAKFAST,Place,Bed & Breakfast,A56000,0
Royal Borough of Kingston,01/10/2022,70033484,"1,440.00",Buildvantage Limited,ACCOMMODATION BED & BREAKFAST,Place,Bed & Breakfast,A56000,0
Royal Borough of Kingston,01/10/2022,70033485,"1,440.00",Buildvantage Limited,ACCOMMODATION BED & BREAKFAST,Place,Bed & Breakfast,A56000,0
Royal Borough of Kingston,01/10/2022,70033486,"1,440.00",Buildvantage Limited,ACCOMMODATION BED & BREAKFAST,Place,Bed & Breakfast,A56000,0
Royal Borough of Kingston,01/10/2022,70033487,"1,440.00",Buildvantage Limited,ACCOMMODATION BED & BREAKFAST,Place,Bed & Breakfast,A56000,0
Royal Borough of Kingston,01/10/2022,70033488,"1,440.00",Buildvantage Limited,ACCOMMODATION BED & BREAKFAST,Place,Bed & Breakfast,A56000,0
Royal Borough of Kingston,01/10/2022,70033489,"1,440.00",Buildvantage Limited,ACCOMMODATION BED & BREAKFAST,Place,Bed & Breakfast,A56000,0
Royal Borough of Kingston,01/10/2022,70033490,"1,440.00",Buildvantage Limited,ACCOMMODATION BED & BREAKFAST,Place,Bed & Breakfast,A56000,0
Royal Borough of Kingston,01/10/2022,70033491,"1,440.00",Buildvantage Limited,ACCOMMODATION BED & BREAKFAST,Place,Bed & Breakfast,A56000,0
Royal Borough of Kingston,01/10/2022,70034110,"1,860.00",CRYSTAL & CO,ACCOMMODATION BED & BREAKFAST,Place,Bed & Breakfast,A56000,0
Royal Borough of Kingston,01/10/2022,70034111,"1,530.00",CRYSTAL & CO,ACCOMMODATION BED & BREAKFAST,Place,Bed & Breakfast,A56000,0
Royal Borough of Kingston,01/10/2022,70034112,"2,250.00",CRYSTAL & CO,ACCOMMODATION BED & BREAKFAST,Place,Bed & Breakfast,A56000,0
Royal Borough of Kingston,01/10/2022,70034113,"1,530.00",CRYSTAL & CO,ACCOMMODATION BED & BREAKFAST,Place,Bed & Breakfast,A56000,0
Royal Borough of Kingston,01/10/2022,70034114,"1,650.00",CRYSTAL & CO,ACCOMMODATION BED & BREAKFAST,Place,Bed & Breakfast,A56000,0
Royal Borough of Kingston,01/10/2022,70034115,"1,530.00",CRYSTAL & CO,ACCOMMODATION BED & BREAKFAST,Place,Bed & Breakfast,A56000,0
Royal Borough of Kingston,01/10/2022,70034116,"1,590.00",CRYSTAL & CO,ACCOMMODATION BED & BREAKFAST,Place,Bed & Breakfast,A56000,0
Royal Borough of Kingston,01/10/2022,70034117,"1,590.00",CRYSTAL & CO,ACCOMMODATION BED & BREAKFAST,Place,Bed & Breakfast,A56000,0
Royal Borough of Kingston,01/10/2022,70034118,"1,860.00",CRYSTAL & CO,ACCOMMODATION BED & BREAKFAST,Place,Bed & Breakfast,A56000,0
Royal Borough of Kingston,01/10/2022,70034119,"1,530.00",CRYSTAL & CO,ACCOMMODATION BED & BREAKFAST,Place,Bed & Breakfast,A56000,0
Royal Borough of Kingston,01/10/2022,70034120,"1,200.00",CRYSTAL & CO,ACCOMMODATION BED & BREAKFAST,Place,Bed & Breakfast,A56000,0
Royal Borough of Kingston,01/10/2022,70034121,"1,860.00",CRYSTAL & CO,ACCOMMODATION BED & BREAKFAST,Place,Bed & Breakfast,A56000,0
Royal Borough of Kingston,01/10/2022,70034122,"1,860.00",CRYSTAL & CO,ACCOMMODATION BED & BREAKFAST,Place,Bed & Breakfast,A56000,0
Royal Borough of Kingston,01/10/2022,70034123,"1,260.00",CRYSTAL & CO,ACCOMMODATION BED & BREAKFAST,Place,Bed & Breakfast,A56000,0
Royal Borough of Kingston,01/10/2022,70034124,"1,530.00",CRYSTAL & CO,ACCOMMODATION BED & BREAKFAST,Place,Bed & Breakfast,A56000,0
Royal Borough of Kingston,01/10/2022,70034125,"1,860.00",CRYSTAL & CO,ACCOMMODATION BED & BREAKFAST,Place,Bed & Breakfast,A56000,0
Royal Borough of Kingston,01/10/2022,70033167,"1,800.00",Delta Wise Limited,ACCOMMODATION BED & BREAKFAST,Place,Bed & Breakfast,A56000,0
Royal Borough of Kingston,01/10/2022,70033168,"2,970.00",Delta Wise Limited,ACCOMMODATION BED & BREAKFAST,Place,Bed & Breakfast,A56000,0
Royal Borough of Kingston,01/10/2022,70033169,"2,700.00",Delta Wise Limited,ACCOMMODATION BED & BREAKFAST,Place,Bed & Breakfast,A56000,0
Royal Borough of Kingston,01/10/2022,70033170,"1,800.00",Delta Wise Limited,ACCOMMODATION BED & BREAKFAST,Place,Bed & Breakfast,A56000,0
Royal Borough of Kingston,01/10/2022,70033171,"1,800.00",Delta Wise Limited,ACCOMMODATION BED & BREAKFAST,Place,Bed & Breakfast,A56000,0
Royal Borough of Kingston,01/10/2022,70033454,"1,770.00",EXCLUSIVE FINE HOMES LTD,ACCOMMODATION BED & BREAKFAST,Place,Bed & Breakfast,A56000,0
Royal Borough of Kingston,01/10/2022,70033455,"4,500.00",EXCLUSIVE FINE HOMES LTD,ACCOMMODATION BED & BREAKFAST,Place,Bed & Breakfast,A56000,0
Royal Borough of Kingston,01/10/2022,70033456,"1,770.00",EXCLUSIVE FINE HOMES LTD,ACCOMMODATION BED & BREAKFAST,Place,Bed & Breakfast,A56000,0
Royal Borough of Kingston,01/10/2022,70033457,"1,620.00",EXCLUSIVE FINE HOMES LTD,ACCOMMODATION BED & BREAKFAST,Place,Bed & Breakfast,A56000,0
Royal Borough of Kingston,01/10/2022,70033458,"4,500.00",EXCLUSIVE FINE HOMES LTD,ACCOMMODATION BED & BREAKFAST,Place,Bed & Breakfast,A56000,0
Royal Borough of Kingston,01/10/2022,70033459,"2,040.00",EXCLUSIVE FINE HOMES LTD,ACCOMMODATION BED & BREAKFAST,Place,Bed & Breakfast,A56000,0
Royal Borough of Kingston,01/10/2022,70033319,"1,620.00",MX Estates Ltd,ACCOMMODATION BED & BREAKFAST,Place,Bed & Breakfast,A56000,0
Royal Borough of Kingston,01/10/2022,70033319,"1,620.00",MX Estates Ltd,ACCOMMODATION BED & BREAKFAST,Place,Bed & Breakfast,A56000,0
Royal Borough of Kingston,01/10/2022,70033319,"1,950.00",MX Estates Ltd,ACCOMMODATION BED & BREAKFAST,Place,Bed & Breakfast,A56000,0
Royal Borough of Kingston,01/10/2022,70033319,"2,310.00",MX Estates Ltd,ACCOMMODATION BED & BREAKFAST,Place,Bed & Breakfast,A56000,0
Royal Borough of Kingston,01/10/2022,70033503,"1,875.00",Smartspace Properties,ACCOMMODATION BED & BREAKFAST,Place,Bed & Breakfast,A56000,0
Royal Borough of Kingston,01/10/2022,70033503,"1,440.00",Smartspace Properties,ACCOMMODATION BED & BREAKFAST,Place,Bed & Breakfast,A56000,0
Royal Borough of Kingston,01/10/2022,70033503,"1,380.00",Smartspace Properties,ACCOMMODATION BED & BREAKFAST,Place,Bed & Breakfast,A56000,0
Royal Borough of Kingston,01/10/2022,70033503,"1,440.00",Smartspace Properties,ACCOMMODATION BED & BREAKFAST,Place,Bed & Breakfast,A56000,0
Royal Borough of Kingston,01/10/2022,70033503,"2,220.00",Smartspace Properties,ACCOMMODATION BED & BREAKFAST,Place,Bed & Breakfast,A56000,0
Royal Borough of Kingston,01/10/2022,70033503,"1,920.00",Smartspace Properties,ACCOMMODATION BED & BREAKFAST,Place,Bed & Breakfast,A56000,0
Royal Borough of Kingston,01/10/2022,70034087,"1,950.00",Stef and Philips,ACCOMMODATION BED & BREAKFAST,Place,Bed & Breakfast,A56000,0
Royal Borough of Kingston,01/10/2022,70034088,990.00,Stef and Philips,ACCOMMODATION BED & BREAKFAST,Place,Bed & Breakfast,A56000,0
Royal Borough of Kingston,01/10/2022,70034089,"1,080.00",Stef and Philips,ACCOMMODATION BED & BREAKFAST,Place,Bed & Breakfast,A56000,0
Royal Borough of Kingston,01/10/2022,70034090,"1,080.00",Stef and Philips,ACCOMMODATION BED & BREAKFAST,Place,Bed & Breakfast,A56000,0
Royal Borough of Kingston,01/10/2022,70034091,"1,050.00",Stef and Philips,ACCOMMODATION BED & BREAKFAST,Place,Bed & Breakfast,A56000,0
Royal Borough of Kingston,01/10/2022,70034095,"1,050.00",Stef and Philips,ACCOMMODATION BED & BREAKFAST,Place,Bed & Breakfast,A56000,0
Royal Borough of Kingston,01/10/2022,70034095,525.00,Stef and Philips,ACCOMMODATION BED & BREAKFAST,Place,Bed & Breakfast,A56000,0
Royal Borough of Kingston,01/10/2022,70034096,210.00,Stef and Philips,ACCOMMODATION BED & BREAKFAST,Place,Bed & Breakfast,A56000,0
Royal Borough of Kingston,01/10/2022,70034096,"1,050.00",Stef and Philips,ACCOMMODATION BED & BREAKFAST,Place,Bed & Breakfast,A56000,0
Royal Borough of Kingston,01/10/2022,70034096,"1,050.00",Stef and Philips,ACCOMMODATION BED & BREAKFAST,Place,Bed & Breakfast,A56000,0
Royal Borough of Kingston,01/10/2022,70034097,216.00,Stef and Philips,ACCOMMODATION BED & BREAKFAST,Place,Bed & Breakfast,A56000,0
Royal Borough of Kingston,01/10/2022,70034097,"1,080.00",Stef and Philips,ACCOMMODATION BED & BREAKFAST,Place,Bed & Breakfast,A56000,0
Royal Borough of Kingston,01/10/2022,70034098,"1,080.00",Stef and Philips,ACCOMMODATION BED & BREAKFAST,Place,Bed & Breakfast,A56000,0
Royal Borough of Kingston,01/10/2022,70034099,792.00,Stef and Philips,ACCOMMODATION BED & BREAKFAST,Place,Bed & Breakfast,A56000,0
Royal Borough of Kingston,01/10/2022,70034100,"1,110.00",Stef and Philips,ACCOMMODATION BED & BREAKFAST,Place,Bed & Breakfast,A56000,0
Royal Borough of Kingston,01/10/2022,70034101,"2,100.00",Stef and Philips,ACCOMMODATION BED & BREAKFAST,Place,Bed & Breakfast,A56000,0
Royal Borough of Kingston,01/10/2022,70034102,990.00,Stef and Philips,ACCOMMODATION BED & BREAKFAST,Place,Bed & Breakfast,A56000,0
Royal Borough of Kingston,01/10/2022,70034103,"1,050.00",Stef and Philips,ACCOMMODATION BED & BREAKFAST,Place,Bed & Breakfast,A56000,0
Royal Borough of Kingston,01/10/2022,70034103,"1,050.00",Stef and Philips,ACCOMMODATION BED & BREAKFAST,Place,Bed & Breakfast,A56000,0
Royal Borough of Kingston,01/10/2022,70034103,"1,085.00",Stef and Philips,ACCOMMODATION BED & BREAKFAST,Place,Bed & Breakfast,A56000,0
Royal Borough of Kingston,01/10/2022,70034104,"1,080.00",Stef and Philips,ACCOMMODATION BED & BREAKFAST,Place,Bed & Breakfast,A56000,0
Royal Borough of Kingston,01/10/2022,70034104,"1,050.00",Stef and Philips,ACCOMMODATION BED & BREAKFAST,Place,Bed & Breakfast,A56000,0
Royal Borough of Kingston,01/10/2022,70034104,"1,650.00",Stef and Philips,ACCOMMODATION BED & BREAKFAST,Place,Bed & Breakfast,A56000,0
Royal Borough of Kingston,01/10/2022,70034190,990.00,Stef and Philips,ACCOMMODATION BED & BREAKFAST,Place,Bed & Breakfast,A56000,0
Royal Borough of Kingston,01/10/2022,70034190,990.00,Stef and Philips,ACCOMMODATION BED & BREAKFAST,Place,Bed & Breakfast,A56000,0
Royal Borough of Kingston,01/10/2022,70034190,990.00,Stef and Philips,ACCOMMODATION BED & BREAKFAST,Place,Bed & Breakfast,A56000,0
Royal Borough of Kingston,01/10/2022,70034190,660.00,Stef and Philips,ACCOMMODATION BED & BREAKFAST,Place,Bed & Breakfast,A56000,0
Royal Borough of Kingston,01/10/2022,70034190,990.00,Stef and Philips,ACCOMMODATION BED & BREAKFAST,Place,Bed & Breakfast,A56000,0
Royal Borough of Kingston,01/10/2022,70034178,"1,602.00",Wise Move Estate Agents LTD,ACCOMMODATION BED & BREAKFAST,Place,Bed & Breakfast,A56000,0
Royal Borough of Kingston,01/10/2022,70034179,"2,588.40",Wise Move Estate Agents LTD,ACCOMMODATION BED & BREAKFAST,Place,Bed & Breakfast,A56000,0
Royal Borough of Kingston,01/10/2022,70034180,"2,032.50",Wise Move Estate Agents LTD,ACCOMMODATION BED & BREAKFAST,Place,Bed & Breakfast,A56000,0
Royal Borough of Kingston,01/10/2022,70034181,"2,032.50",Wise Move Estate Agents LTD,ACCOMMODATION BED & BREAKFAST,Place,Bed & Breakfast,A56000,0
Royal Borough of Kingston,01/10/2022,70034182,"2,032.50",Wise Move Estate Agents LTD,ACCOMMODATION BED & BREAKFAST,Place,Bed & Breakfast,A56000,0
Royal Borough of Kingston,01/10/2022,70034183,"2,032.50",Wise Move Estate Agents LTD,ACCOMMODATION BED & BREAKFAST,Place,Bed & Breakfast,A56000,0
Royal Borough of Kingston,01/10/2022,70034184,"1,935.00",Wise Move Estate Agents LTD,ACCOMMODATION BED & BREAKFAST,Place,Bed & Breakfast,A56000,0
Royal Borough of Kingston,01/10/2022,70034185,"2,346.00",Wise Move Estate Agents LTD,ACCOMMODATION BED & BREAKFAST,Place,Bed & Breakfast,A56000,0
Royal Borough of Kingston,01/10/2022,70034186,"2,310.00",Wise Move Estate Agents LTD,ACCOMMODATION BED & BREAKFAST,Place,Bed & Breakfast,A56000,0
Royal Borough of Kingston,01/10/2022,70034187,"1,935.00",Wise Move Estate Agents LTD,ACCOMMODATION BED & BREAKFAST,Place,Bed & Breakfast,A56000,0
Royal Borough of Kingston,01/10/2022,70034188,"2,263.20",Wise Move Estate Agents LTD,ACCOMMODATION BED & BREAKFAST,Place,Bed & Breakfast,A56000,0
Royal Borough of Kingston,01/10/2022,70034189,"1,785.00",Wise Move Estate Agents LTD,ACCOMMODATION BED & BREAKFAST,Place,Bed & Breakfast,A56000,0
Royal Borough of Kingston,01/10/2022,90176421,871.25,KINGSTON VOLUNTARY ACTION CIO,CHARITIES & VOLUNTARY ORGNS,Adult Social Care & Health,Personal Budget - Third Party,A61019,0
Royal Borough of Kingston,01/10/2022,90176935,860.91,KINGSTON VOLUNTARY ACTION CIO,CHARITIES & VOLUNTARY ORGNS,Adult Social Care & Health,Personal Budget - Third Party,A61019,0
Royal Borough of Kingston,01/10/2022,90176423,"2,913.82",MENCAP,CHARITIES & VOLUNTARY ORGNS,Adult Social Care & Health,Personal Budget - Third Party,A61019,0
Royal Borough of Kingston,01/10/2022,90176588,"7,029.21",MENCAP,CHARITIES & VOLUNTARY ORGNS,Adult Social Care & Health,Personal Budget - Third Party,A61019,0
Royal Borough of Kingston,01/10/2022,90175115,"10,237.88",QUEEN ELIZABETHS FOUND FOR DISABLED,CHARITIES & VOLUNTARY ORGNS,Adult Social Care & Health,Independent Placements,A56006,0
Royal Borough of Kingston,01/10/2022,90175324,"8,449.45",QUEEN ELIZABETHS FOUND FOR DISABLED,CHARITIES & VOLUNTARY ORGNS,Adult Social Care & Health,Independent Placements,A56006,0
Royal Borough of Kingston,01/10/2022,90175285,"9,396.32",SEEABILITY,CHARITIES & VOLUNTARY ORGNS,Adult Social Care & Health,Independent Placements,A56006,0
Royal Borough of Kingston,01/10/2022,90175308,"13,828.21",SEEABILITY,CHARITIES & VOLUNTARY ORGNS,Adult Social Care & Health,Independent Placements,A56006,0
Royal Borough of Kingston,01/10/2022,90175348,"11,075.46",SEEABILITY,CHARITIES & VOLUNTARY ORGNS,Adult Social Care & Health,Independent Placements,A56006,0
Royal Borough of Kingston,01/10/2022,90175410,"10,176.86",SEEABILITY,CHARITIES & VOLUNTARY ORGNS,Adult Social Care & Health,Independent Placements,A56006,0
Royal Borough of Kingston,01/10/2022,90176616,"1,654.60",SEEABILITY,CHARITIES & VOLUNTARY ORGNS,Adult Social Care & Health,Personal Budget - Third Party,A61019,0
Royal Borough of Kingston,01/10/2022,90176638,"1,654.60",SEEABILITY,CHARITIES & VOLUNTARY ORGNS,Adult Social Care & Health,Personal Budget - Third Party,A61019,0
Royal Borough of Kingston,01/10/2022,90176652,"10,518.43",SEEABILITY,CHARITIES & VOLUNTARY ORGNS,Adult Social Care & Health,Personal Budget - Third Party,A61019,0
Royal Borough of Kingston,01/10/2022,90175359,"15,994.01",THE DAVID LEWIS CENTRE,CHARITIES & VOLUNTARY ORGNS,Adult Social Care & Health,Independent Placements,A56006,0
Royal Borough of Kingston,01/10/2022,90175262,"4,941.18",THE FIRCROFT TRUST,CHARITIES & VOLUNTARY ORGNS,Adult Social Care & Health,Independent Placements,A56006,0
Royal Borough of Kingston,01/10/2022,90175263,"4,889.85",THE FIRCROFT TRUST,CHARITIES & VOLUNTARY ORGNS,Adult Social Care & Health,Independent Placements,A56006,0
Royal Borough of Kingston,01/10/2022,90175377,"5,402.68",THE FIRCROFT TRUST,CHARITIES & VOLUNTARY ORGNS,Adult Social Care & Health,Independent Placements,A56006,0
Royal Borough of Kingston,01/10/2022,90176592,"2,741.55",THE FIRCROFT TRUST,CHARITIES & VOLUNTARY ORGNS,Adult Social Care & Health,Personal Budget - Third Party,A61019,0
Royal Borough of Kingston,01/10/2022,90176657,"2,839.51",THE FIRCROFT TRUST,CHARITIES & VOLUNTARY ORGNS,Adult Social Care & Health,Personal Budget - Third Party,A61019,0
Royal Borough of Kingston,01/10/2022,90176688,"2,388.15",THE FIRCROFT TRUST,CHARITIES & VOLUNTARY ORGNS,Adult Social Care & Health,Personal Budget - Third Party,A61019,0
Royal Borough of Kingston,01/10/2022,90176710,"2,834.60",THE FIRCROFT TRUST,CHARITIES & VOLUNTARY ORGNS,Adult Social Care & Health,Personal Budget - Third Party,A61019,0
Royal Borough of Kingston,01/10/2022,90176716,"2,888.40",THE FIRCROFT TRUST,CHARITIES & VOLUNTARY ORGNS,Adult Social Care & Health,Personal Budget - Third Party,A61019,0
Royal Borough of Kingston,01/10/2022,90176735,"1,714.03",THE FIRCROFT TRUST,CHARITIES & VOLUNTARY ORGNS,Adult Social Care & Health,Personal Budget - Third Party,A61019,0
Royal Borough of Kingston,01/10/2022,90176752,"3,193.62",THE FIRCROFT TRUST,CHARITIES & VOLUNTARY ORGNS,Adult Social Care & Health,Personal Budget - Third Party,A61019,0
Royal Borough of Kingston,01/10/2022,90176908,"1,427.73",THE FIRCROFT TRUST,CHARITIES & VOLUNTARY ORGNS,Adult Social Care & Health,Personal Budget - Third Party,A61019,0
Royal Borough of Kingston,01/10/2022,90176438,708.57,AGE CONCERN KINGSTON UPON THAMES,GRANTS & EX GRATIA PAYMENTS,Adult Social Care & Health,Personal Budget - Third Party,A61019,0
Royal Borough of Kingston,01/10/2022,90174638,814.86,REMARK ! LIMITED,INTERPRETERS,Adult Social Care & Health,Personal Budget - Third Party,A61019,0
Royal Borough of Kingston,01/10/2022,90174665,611.14,REMARK ! LIMITED,INTERPRETERS,Adult Social Care & Health,Personal Budget - Third Party,A61019,0
Royal Borough of Kingston,01/10/2022,90175288,"14,405.83",LIAISE LODDON LTD,OPERATIONAL EQUIPMENT/MATERIAL,Adult Social Care & Health,Independent Placements,A56006,0
Royal Borough of Kingston,01/10/2022,90175483,"24,013.22",Right Support Management Limited,SOCIAL SERVICES - DIRECT PAYMENTS,Adult Social Care & Health,Other Private Contractors - Third Party,A56080,0
Royal Borough of Kingston,01/10/2022,90175237,"7,013.31",Achieve Together Limited,SOCIAL SERVICES - OTHER,Adult Social Care & Health,Independent Placements,A56006,0
Royal Borough of Kingston,01/10/2022,90175270,"7,013.31",Achieve Together Limited,SOCIAL SERVICES - OTHER,Adult Social Care & Health,Independent Placements,A56006,0
Royal Borough of Kingston,01/10/2022,90175271,"6,787.07",Achieve Together Limited,SOCIAL SERVICES - OTHER,Adult Social Care & Health,Independent Placements,A56006,0
Royal Borough of Kingston,01/10/2022,90175272,"7,013.31",Achieve Together Limited,SOCIAL SERVICES - OTHER,Adult Social Care & Health,Independent Placements,A56006,0
Royal Borough of Kingston,01/10/2022,90175342,"4,740.25",Achieve Together Limited,SOCIAL SERVICES - OTHER,Adult Social Care & Health,Independent Placements,A56006,0
Royal Borough of Kingston,01/10/2022,90175343,"4,740.25",Achieve Together Limited,SOCIAL SERVICES - OTHER,Adult Social Care & Health,Independent Placements,A56006,0
Royal Borough of Kingston,01/10/2022,90175344,"4,587.34",Achieve Together Limited,SOCIAL SERVICES - OTHER,Adult Social Care & Health,Independent Placements,A56006,0
Royal Borough of Kingston,01/10/2022,90175345,"4,740.25",Achieve Together Limited,SOCIAL SERVICES - OTHER,Adult Social Care & Health,Independent Placements,A56006,0
Royal Borough of Kingston,01/10/2022,90176738,"2,655.50",Aspirations Care Ltd,SOCIAL SERVICES - OTHER,Adult Social Care & Health,Personal Budget - Third Party,A61019,0
Royal Borough of Kingston,01/10/2022,90175493,526.48,BALANCE (SUPPORT) C.I.C,SOCIAL SERVICES - OTHER,Adult Social Care & Health,Supported Living - new framework,A56126,0
Royal Borough of Kingston,01/10/2022,90175494,"2,486.20",BALANCE (SUPPORT) C.I.C,SOCIAL SERVICES - OTHER,Adult Social Care & Health,Supported Living - new framework,A56126,0
Royal Borough of Kingston,01/10/2022,90175495,618.28,BALANCE (SUPPORT) C.I.C,SOCIAL SERVICES - OTHER,Adult Social Care & Health,Supported Living - new framework,A56126,0
Royal Borough of Kingston,01/10/2022,90175496,701.98,BALANCE (SUPPORT) C.I.C,SOCIAL SERVICES - OTHER,Adult Social Care & Health,Supported Living - new framework,A56126,0
Royal Borough of Kingston,01/10/2022,90175497,"1,864.64",BALANCE (SUPPORT) C.I.C,SOCIAL SERVICES - OTHER,Adult Social Care & Health,Supported Living - new framework,A56126,0
Royal Borough of Kingston,01/10/2022,90175502,"1,864.64",BALANCE (SUPPORT) C.I.C,SOCIAL SERVICES - OTHER,Adult Social Care & Health,Supported Living - new framework,A56126,0
Royal Borough of Kingston,01/10/2022,90175503,701.98,BALANCE (SUPPORT) C.I.C,SOCIAL SERVICES - OTHER,Adult Social Care & Health,Supported Living - new framework,A56126,0
Royal Borough of Kingston,01/10/2022,90175505,701.98,BALANCE (SUPPORT) C.I.C,SOCIAL SERVICES - OTHER,Adult Social Care & Health,Supported Living - new framework,A56126,0
Royal Borough of Kingston,01/10/2022,90176459,548.27,BALANCE (SUPPORT) C.I.C,SOCIAL SERVICES - OTHER,Adult Social Care & Health,Personal Budget - Third Party,A61019,0
Royal Borough of Kingston,01/10/2022,90176460,548.27,BALANCE (SUPPORT) C.I.C,SOCIAL SERVICES - OTHER,Adult Social Care & Health,Personal Budget - Third Party,A61019,0
Royal Borough of Kingston,01/10/2022,90176461,"12,933.64",BALANCE (SUPPORT) C.I.C,SOCIAL SERVICES - OTHER,Adult Social Care & Health,Personal Budget - Third Party,A61019,0
Royal Borough of Kingston,01/10/2022,90176570,"1,054.97",BALANCE (SUPPORT) C.I.C,SOCIAL SERVICES - OTHER,Adult Social Care & Health,Personal Budget - Third Party,A61019,0
Royal Borough of Kingston,01/10/2022,90176577,575.45,BALANCE (SUPPORT) C.I.C,SOCIAL SERVICES - OTHER,Adult Social Care & Health,Personal Budget - Third Party,A61019,0
Royal Borough of Kingston,01/10/2022,90176583,579.17,BALANCE (SUPPORT) C.I.C,SOCIAL SERVICES - OTHER,Adult Social Care & Health,Personal Budget - Third Party,A61019,0
Royal Borough of Kingston,01/10/2022,90176586,959.10,BALANCE (SUPPORT) C.I.C,SOCIAL SERVICES - OTHER,Adult Social Care & Health,Personal Budget - Third Party,A61019,0
Royal Borough of Kingston,01/10/2022,90176589,"1,342.70",BALANCE (SUPPORT) C.I.C,SOCIAL SERVICES - OTHER,Adult Social Care & Health,Personal Budget - Third Party,A61019,0
Royal Borough of Kingston,01/10/2022,90176590,959.10,BALANCE (SUPPORT) C.I.C,SOCIAL SERVICES - OTHER,Adult Social Care & Health,Personal Budget - Third Party,A61019,0
Royal Borough of Kingston,01/10/2022,90176591,527.49,BALANCE (SUPPORT) C.I.C,SOCIAL SERVICES - OTHER,Adult Social Care & Health,Personal Budget - Third Party,A61019,0
Royal Borough of Kingston,01/10/2022,90176596,"1,294.78",BALANCE (SUPPORT) C.I.C,SOCIAL SERVICES - OTHER,Adult Social Care & Health,Personal Budget - Third Party,A61019,0
Royal Borough of Kingston,01/10/2022,90176598,575.45,BALANCE (SUPPORT) C.I.C,SOCIAL SERVICES - OTHER,Adult Social Care & Health,Personal Budget - Third Party,A61019,0
Royal Borough of Kingston,01/10/2022,90176610,"2,205.87",BALANCE (SUPPORT) C.I.C,SOCIAL SERVICES - OTHER,Adult Social Care & Health,Personal Budget - Third Party,A61019,0
Royal Borough of Kingston,01/10/2022,90176613,"1,438.62",BALANCE (SUPPORT) C.I.C,SOCIAL SERVICES - OTHER,Adult Social Care & Health,Personal Budget - Third Party,A61019,0
Royal Borough of Kingston,01/10/2022,90176623,575.45,BALANCE (SUPPORT) C.I.C,SOCIAL SERVICES - OTHER,Adult Social Care & Health,Personal Budget - Third Party,A61019,0
Royal Borough of Kingston,01/10/2022,90176627,575.45,BALANCE (SUPPORT) C.I.C,SOCIAL SERVICES - OTHER,Adult Social Care & Health,Personal Budget - Third Party,A61019,0
Royal Borough of Kingston,01/10/2022,90176630,"1,534.50",BALANCE (SUPPORT) C.I.C,SOCIAL SERVICES - OTHER,Adult Social Care & Health,Personal Budget - Third Party,A61019,0
Royal Borough of Kingston,01/10/2022,90176631,"3,580.90",BALANCE (SUPPORT) C.I.C,SOCIAL SERVICES - OTHER,Adult Social Care & Health,Personal Budget - Third Party,A61019,0
Royal Borough of Kingston,01/10/2022,90176636,"2,644.74",BALANCE (SUPPORT) C.I.C,SOCIAL SERVICES - OTHER,Adult Social Care & Health,Personal Budget - Third Party,A61019,0
Royal Borough of Kingston,01/10/2022,90176637,671.37,BALANCE (SUPPORT) C.I.C,SOCIAL SERVICES - OTHER,Adult Social Care & Health,Personal Budget - Third Party,A61019,0
Royal Borough of Kingston,01/10/2022,90176639,767.25,BALANCE (SUPPORT) C.I.C,SOCIAL SERVICES - OTHER,Adult Social Care & Health,Personal Budget - Third Party,A61019,0
Royal Borough of Kingston,01/10/2022,90176642,"1,630.42",BALANCE (SUPPORT) C.I.C,SOCIAL SERVICES - OTHER,Adult Social Care & Health,Personal Budget - Third Party,A61019,0
Royal Borough of Kingston,01/10/2022,90176653,"1,438.62",BALANCE (SUPPORT) C.I.C,SOCIAL SERVICES - OTHER,Adult Social Care & Health,Personal Budget - Third Party,A61019,0
Royal Borough of Kingston,01/10/2022,90176661,863.17,BALANCE (SUPPORT) C.I.C,SOCIAL SERVICES - OTHER,Adult Social Care & Health,Personal Budget - Third Party,A61019,0
Royal Borough of Kingston,01/10/2022,90176662,"3,221.08",BALANCE (SUPPORT) C.I.C,SOCIAL SERVICES - OTHER,Adult Social Care & Health,Personal Budget - Third Party,A61019,0
Royal Borough of Kingston,01/10/2022,90176668,575.45,BALANCE (SUPPORT) C.I.C,SOCIAL SERVICES - OTHER,Adult Social Care & Health,Personal Budget - Third Party,A61019,0
Royal Borough of Kingston,01/10/2022,90176669,575.45,BALANCE (SUPPORT) C.I.C,SOCIAL SERVICES - OTHER,Adult Social Care & Health,Personal Budget - Third Party,A61019,0
Royal Borough of Kingston,01/10/2022,90176674,"3,139.77",BALANCE (SUPPORT) C.I.C,SOCIAL SERVICES - OTHER,Adult Social Care & Health,Personal Budget - Third Party,A61019,0
Royal Borough of Kingston,01/10/2022,90176675,"2,014.07",BALANCE (SUPPORT) C.I.C,SOCIAL SERVICES - OTHER,Adult Social Care & Health,Personal Budget - Third Party,A61019,0
Royal Borough of Kingston,01/10/2022,90176676,649.80,BALANCE (SUPPORT) C.I.C,SOCIAL SERVICES - OTHER,Adult Social Care & Health,Personal Budget - Third Party,A61019,0
Royal Borough of Kingston,01/10/2022,90176677,"3,411.46",BALANCE (SUPPORT) C.I.C,SOCIAL SERVICES - OTHER,Adult Social Care & Health,Personal Budget - Third Party,A61019,0
Royal Borough of Kingston,01/10/2022,90176694,"2,234.13",BALANCE (SUPPORT) C.I.C,SOCIAL SERVICES - OTHER,Adult Social Care & Health,Personal Budget - Third Party,A61019,0
Royal Borough of Kingston,01/10/2022,90176699,"1,246.82",BALANCE (SUPPORT) C.I.C,SOCIAL SERVICES - OTHER,Adult Social Care & Health,Personal Budget - Third Party,A61019,0
Royal Borough of Kingston,01/10/2022,90176708,767.25,BALANCE (SUPPORT) C.I.C,SOCIAL SERVICES - OTHER,Adult Social Care & Health,Personal Budget - Third Party,A61019,0
Royal Borough of Kingston,01/10/2022,90176711,"1,630.42",BALANCE (SUPPORT) C.I.C,SOCIAL SERVICES - OTHER,Adult Social Care & Health,Personal Budget - Third Party,A61019,0
Royal Borough of Kingston,01/10/2022,90176715,724.51,BALANCE (SUPPORT) C.I.C,SOCIAL SERVICES - OTHER,Adult Social Care & Health,Personal Budget - Third Party,A61019,0
Royal Borough of Kingston,01/10/2022,90176721,"3,022.81",BALANCE (SUPPORT) C.I.C,SOCIAL SERVICES - OTHER,Adult Social Care & Health,Personal Budget - Third Party,A61019,0
Royal Borough of Kingston,01/10/2022,90176733,"1,870.23",BALANCE (SUPPORT) C.I.C,SOCIAL SERVICES - OTHER,Adult Social Care & Health,Personal Budget - Third Party,A61019,0
Royal Borough of Kingston,01/10/2022,90176739,575.45,BALANCE (SUPPORT) C.I.C,SOCIAL SERVICES - OTHER,Adult Social Care & Health,Personal Budget - Third Party,A61019,0
Royal Borough of Kingston,01/10/2022,90176741,"1,342.70",BALANCE (SUPPORT) C.I.C,SOCIAL SERVICES - OTHER,Adult Social Care & Health,Personal Budget - Third Party,A61019,0
Royal Borough of Kingston,01/10/2022,90176743,"1,246.82",BALANCE (SUPPORT) C.I.C,SOCIAL SERVICES - OTHER,Adult Social Care & Health,Personal Budget - Third Party,A61019,0
Royal Borough of Kingston,01/10/2022,90176744,575.45,BALANCE (SUPPORT) C.I.C,SOCIAL SERVICES - OTHER,Adult Social Care & Health,Personal Budget - Third Party,A61019,0
Royal Borough of Kingston,01/10/2022,90176746,"1,726.35",BALANCE (SUPPORT) C.I.C,SOCIAL SERVICES - OTHER,Adult Social Care & Health,Personal Budget - Third Party,A61019,0
Royal Borough of Kingston,01/10/2022,90176753,671.37,BALANCE (SUPPORT) C.I.C,SOCIAL SERVICES - OTHER,Adult Social Care & Health,Personal Budget - Third Party,A61019,0
Royal Borough of Kingston,01/10/2022,90176887,575.45,BALANCE (SUPPORT) C.I.C,SOCIAL SERVICES - OTHER,Adult Social Care & Health,Personal Budget - Third Party,A61019,0
Royal Borough of Kingston,01/10/2022,90176916,"1,151.07",BALANCE (SUPPORT) C.I.C,SOCIAL SERVICES - OTHER,Adult Social Care & Health,Personal Budget - Third Party,A61019,0
Royal Borough of Kingston,01/10/2022,90176920,767.38,BALANCE (SUPPORT) C.I.C,SOCIAL SERVICES - OTHER,Adult Social Care & Health,Personal Budget - Third Party,A61019,0
Royal Borough of Kingston,01/10/2022,90175275,"14,023.69",CAS CARE SERVICES LTD,SOCIAL SERVICES - OTHER,Adult Social Care & Health,Independent Placements,A56006,0
Royal Borough of Kingston,01/10/2022,90175355,"14,023.69",CAS CARE SERVICES LTD,SOCIAL SERVICES - OTHER,Adult Social Care & Health,Independent Placements,A56006,0
Royal Borough of Kingston,01/10/2022,90176641,"3,050.18",CMG LIMITED,SOCIAL SERVICES - OTHER,Adult Social Care & Health,Personal Budget - Third Party,A61019,0
Royal Borough of Kingston,01/10/2022,90176670,"5,534.03",CMG LIMITED,SOCIAL SERVICES - OTHER,Adult Social Care & Health,Personal Budget - Third Party,A61019,0
Royal Borough of Kingston,01/10/2022,90176671,"5,501.22",CMG LIMITED,SOCIAL SERVICES - OTHER,Adult Social Care & Health,Personal Budget - Third Party,A61019,0
Royal Borough of Kingston,01/10/2022,90176684,"6,040.53",CMG LIMITED,SOCIAL SERVICES - OTHER,Adult Social Care & Health,Personal Budget - Third Party,A61019,0
Royal Borough of Kingston,01/10/2022,90176697,930.27,CMG LIMITED,SOCIAL SERVICES - OTHER,Adult Social Care & Health,Personal Budget - Third Party,A61019,0
Royal Borough of Kingston,01/10/2022,90176698,"4,019.02",CMG LIMITED,SOCIAL SERVICES - OTHER,Adult Social Care & Health,Personal Budget - Third Party,A61019,0
Royal Borough of Kingston,01/10/2022,90176751,"4,794.24",CMG LIMITED,SOCIAL SERVICES - OTHER,Adult Social Care & Health,Personal Budget - Third Party,A61019,0
Royal Borough of Kingston,01/10/2022,90175267,"9,884.57",ELYSIUM HEALTHCARE LTD,SOCIAL SERVICES - OTHER,Adult Social Care & Health,Independent Placements,A56006,0
Royal Borough of Kingston,01/10/2022,90175277,"9,536.80",ELYSIUM HEALTHCARE LTD,SOCIAL SERVICES - OTHER,Adult Social Care & Health,Independent Placements,A56006,0
Royal Borough of Kingston,01/10/2022,90175279,"11,347.02",ELYSIUM HEALTHCARE LTD,SOCIAL SERVICES - OTHER,Adult Social Care & Health,Independent Placements,A56006,0
Royal Borough of Kingston,01/10/2022,90175283,"8,052.25",ELYSIUM HEALTHCARE LTD,SOCIAL SERVICES - OTHER,Adult Social Care & Health,Independent Placements,A56006,0
Royal Borough of Kingston,01/10/2022,90175286,"10,084.65",ELYSIUM HEALTHCARE LTD,SOCIAL SERVICES - OTHER,Adult Social Care & Health,Independent Placements,A56006,0
Royal Borough of Kingston,01/10/2022,90175346,"9,884.57",ELYSIUM HEALTHCARE LTD,SOCIAL SERVICES - OTHER,Adult Social Care & Health,Independent Placements,A56006,0
Royal Borough of Kingston,01/10/2022,90175500,"4,990.01",EMEZZIONS LIMITED,SOCIAL SERVICES - OTHER,Adult Social Care & Health,Supported Living - new framework,A56126,0
Royal Borough of Kingston,01/10/2022,90175501,"2,806.74",EMEZZIONS LIMITED,SOCIAL SERVICES - OTHER,Adult Social Care & Health,Supported Living - new framework,A56126,0
Royal Borough of Kingston,01/10/2022,90175517,"3,039.03",EMEZZIONS LIMITED,SOCIAL SERVICES - OTHER,Adult Social Care & Health,Supported Living - new framework,A56126,0
Royal Borough of Kingston,01/10/2022,90175518,"4,731.60",EMEZZIONS LIMITED,SOCIAL SERVICES - OTHER,Adult Social Care & Health,Supported Living - new framework,A56126,0
Royal Borough of Kingston,01/10/2022,90175519,"5,318.30",EMEZZIONS LIMITED,SOCIAL SERVICES - OTHER,Adult Social Care & Health,Supported Living - new framework,A56126,0
Royal Borough of Kingston,01/10/2022,90175521,660.67,EMEZZIONS LIMITED,SOCIAL SERVICES - OTHER,Adult Social Care & Health,Supported Living - new framework,A56126,0
Royal Borough of Kingston,01/10/2022,90175522,"-1,890.41",EMEZZIONS LIMITED,SOCIAL SERVICES - OTHER,Adult Social Care & Health,Supported Living - new framework,A56126,0
Royal Borough of Kingston,01/10/2022,90175523,"3,413.48",EMEZZIONS LIMITED,SOCIAL SERVICES - OTHER,Adult Social Care & Health,Supported Living - new framework,A56126,0
Royal Borough of Kingston,01/10/2022,90175525,"2,649.86",EMEZZIONS LIMITED,SOCIAL SERVICES - OTHER,Adult Social Care & Health,Supported Living - new framework,A56126,0
Royal Borough of Kingston,01/10/2022,90175526,"3,534.56",EMEZZIONS LIMITED,SOCIAL SERVICES - OTHER,Adult Social Care & Health,Supported Living - new framework,A56126,0
Royal Borough of Kingston,01/10/2022,90175528,"14,182.13",EMEZZIONS LIMITED,SOCIAL SERVICES - OTHER,Adult Social Care & Health,Supported Living - new framework,A56126,0
Royal Borough of Kingston,01/10/2022,90175532,"-2,160.36",EMEZZIONS LIMITED,SOCIAL SERVICES - OTHER,Adult Social Care & Health,Supported Living - new framework,A56126,0
Royal Borough of Kingston,01/10/2022,90175534,"3,651.05",EMEZZIONS LIMITED,SOCIAL SERVICES - OTHER,Adult Social Care & Health,Supported Living - new framework,A56126,0
Royal Borough of Kingston,01/10/2022,90175535,"2,232.37",EMEZZIONS LIMITED,SOCIAL SERVICES - OTHER,Adult Social Care & Health,Supported Living - new framework,A56126,0
Royal Borough of Kingston,01/10/2022,90175121,"3,349.68",ENHAM,SOCIAL SERVICES - OTHER,Adult Social Care & Health,Independent Placements,A56006,0
Royal Borough of Kingston,01/10/2022,90174663,"1,501.46",ENHANCEABLE,SOCIAL SERVICES - OTHER,Adult Social Care & Health,Personal Budget - Third Party,A61019,0
Royal Borough of Kingston,01/10/2022,90175481,"31,227.10",ENHANCEABLE,SOCIAL SERVICES - OTHER,Adult Social Care & Health,Other Private Contractors - Third Party,A56080,0
Royal Borough of Kingston,01/10/2022,90175489,525.01,ENHANCEABLE,SOCIAL SERVICES - OTHER,Adult Social Care & Health,Other Private Contractors - Third Party,A56080,0
Royal Borough of Kingston,01/10/2022,90176679,"1,688.35",ENHANCEABLE,SOCIAL SERVICES - OTHER,Adult Social Care & Health,Personal Budget - Third Party,A61019,0
Royal Borough of Kingston,01/10/2022,90176971,937.97,ENHANCEABLE,SOCIAL SERVICES - OTHER,Adult Social Care & Health,Personal Budget - Third Party,A61019,0
Royal Borough of Kingston,01/10/2022,90176972,"1,031.77",ENHANCEABLE,SOCIAL SERVICES - OTHER,Adult Social Care & Health,Personal Budget - Third Party,A61019,0
Royal Borough of Kingston,01/10/2022,90175289,"3,460.80",LARCHE BOGNOR REGIS,SOCIAL SERVICES - OTHER,Adult Social Care & Health,Independent Placements,A56006,0
Royal Borough of Kingston,01/10/2022,90175411,642.28,LARCHE BOGNOR REGIS,SOCIAL SERVICES - OTHER,Adult Social Care & Health,Independent Placements,A56006,0
Royal Borough of Kingston,01/10/2022,90176480,894.57,LARCHE BOGNOR REGIS,SOCIAL SERVICES - OTHER,Adult Social Care & Health,Personal Budget - Third Party,A61019,0
Royal Borough of Kingston,01/10/2022,90175120,"5,480.62",LEONARD CHESHIRE DISABILITY,SOCIAL SERVICES - OTHER,Adult Social Care & Health,Independent Placements,A56006,0
Royal Borough of Kingston,01/10/2022,90175246,"10,035.19",Lifeways Community Care Limited,SOCIAL SERVICES - OTHER,Adult Social Care & Health,Independent Placements,A56006,0
Royal Borough of Kingston,01/10/2022,90175353,"6,329.23",LIVING AMBITIONS LTD,SOCIAL SERVICES - OTHER,Adult Social Care & Health,Independent Placements,A56006,0
Royal Borough of Kingston,01/10/2022,90175374,"5,931.05",LIVING AMBITIONS LTD,SOCIAL SERVICES - OTHER,Adult Social Care & Health,Independent Placements,A56006,0
Royal Borough of Kingston,01/10/2022,90175049,"3,911.09",MAGICARE LTD,SOCIAL SERVICES - OTHER,Adult Social Care & Health,Independent Placements,A56006,0
Royal Borough of Kingston,01/10/2022,90175162,"2,497.67",MEDIHANDS HOUSE,SOCIAL SERVICES - OTHER,Adult Social Care & Health,Independent Placements,A56006,0
Royal Borough of Kingston,01/10/2022,90175166,"2,497.67",MEDIHANDS HOUSE,SOCIAL SERVICES - OTHER,Adult Social Care & Health,Independent Placements,A56006,0
Royal Borough of Kingston,01/10/2022,90175420,"2,760.77",MEDIHANDS HOUSE,SOCIAL SERVICES - OTHER,Adult Social Care & Health,Independent Placements,A56006,0
Royal Borough of Kingston,01/10/2022,90175421,"2,497.67",MEDIHANDS HOUSE,SOCIAL SERVICES - OTHER,Adult Social Care & Health,Independent Placements,A56006,0
Royal Borough of Kingston,01/10/2022,90175422,"2,497.67",MEDIHANDS HOUSE,SOCIAL SERVICES - OTHER,Adult Social Care & Health,Independent Placements,A56006,0
Royal Borough of Kingston,01/10/2022,90175436,"2,497.67",MEDIHANDS HOUSE,SOCIAL SERVICES - OTHER,Adult Social Care & Health,Independent Placements,A56006,0
Royal Borough of Kingston,01/10/2022,90175437,"2,497.67",MEDIHANDS HOUSE,SOCIAL SERVICES - OTHER,Adult Social Care & Health,Independent Placements,A56006,0
Royal Borough of Kingston,01/10/2022,90175440,"2,497.67",MEDIHANDS HOUSE,SOCIAL SERVICES - OTHER,Adult Social Care & Health,Independent Placements,A56006,0
Royal Borough of Kingston,01/10/2022,90175471,"2,957.80",MEDIHANDS HOUSE,SOCIAL SERVICES - OTHER,Adult Social Care & Health,Independent Placements,A56006,0
Royal Borough of Kingston,01/10/2022,90175163,"2,497.67",MEDIHANDS VILLA,SOCIAL SERVICES - OTHER,Adult Social Care & Health,Independent Placements,A56006,0
Royal Borough of Kingston,01/10/2022,90175171,"2,497.67",MEDIHANDS VILLA,SOCIAL SERVICES - OTHER,Adult Social Care & Health,Independent Placements,A56006,0
Royal Borough of Kingston,01/10/2022,90175438,"3,321.43",MEDIHANDS VILLA,SOCIAL SERVICES - OTHER,Adult Social Care & Health,Independent Placements,A56006,0
Royal Borough of Kingston,01/10/2022,90175470,"3,216.29",MEDIHANDS VILLA,SOCIAL SERVICES - OTHER,Adult Social Care & Health,Independent Placements,A56006,0
Royal Borough of Kingston,01/10/2022,90175380,"5,989.42",NORSACA (TRADING) LTD,SOCIAL SERVICES - OTHER,Adult Social Care & Health,Independent Placements,A56006,0
Royal Borough of Kingston,01/10/2022,70034004,"1,056.00",RESIDE HOUSING ASSOCIATION LTD,SOCIAL SERVICES - OTHER,Adult Social Care & Health,Personal Budget - Third Party,A61019,0
Royal Borough of Kingston,01/10/2022,90174639,"2,423.93",SIGN HEALTH,SOCIAL SERVICES - OTHER,Adult Social Care & Health,Personal Budget - Third Party,A61019,0
Royal Borough of Kingston,01/10/2022,90175379,"6,211.74",STALLCOMBE HOUSE,SOCIAL SERVICES - OTHER,Adult Social Care & Health,Independent Placements,A56006,0
Royal Borough of Kingston,01/10/2022,90175065,"5,521.54",TREEMONT CARE LTD ,SOCIAL SERVICES - OTHER,Adult Social Care & Health,Independent Placements,A56006,0
Royal Borough of Kingston,01/10/2022,90175076,"2,057.14",TREEMONT CARE LTD ,SOCIAL SERVICES - OTHER,Adult Social Care & Health,Independent Placements,A56006,0
Royal Borough of Kingston,01/10/2022,90175078,"4,085.93",TREEMONT CARE LTD ,SOCIAL SERVICES - OTHER,Adult Social Care & Health,Independent Placements,A56006,0
Royal Borough of Kingston,01/10/2022,90175088,"4,141.16",TREEMONT CARE LTD ,SOCIAL SERVICES - OTHER,Adult Social Care & Health,Independent Placements,A56006,0
Royal Borough of Kingston,01/10/2022,90175094,-825.27,TREEMONT CARE LTD ,SOCIAL SERVICES - OTHER,Adult Social Care & Health,Independent Placements,A56006,0
Royal Borough of Kingston,01/10/2022,90175175,"3,450.96",TREEMONT CARE LTD ,SOCIAL SERVICES - OTHER,Adult Social Care & Health,Independent Placements,A56006,0
Royal Borough of Kingston,01/10/2022,90175197,"4,428.57",TREEMONT CARE LTD ,SOCIAL SERVICES - OTHER,Adult Social Care & Health,Independent Placements,A56006,0
Royal Borough of Kingston,01/10/2022,90175211,"3,450.96",TREEMONT CARE LTD ,SOCIAL SERVICES - OTHER,Adult Social Care & Health,Independent Placements,A56006,0
Royal Borough of Kingston,01/10/2022,90175212,"3,911.09",TREEMONT CARE LTD ,SOCIAL SERVICES - OTHER,Adult Social Care & Health,Independent Placements,A56006,0
Royal Borough of Kingston,01/10/2022,90175213,"4,650.00",TREEMONT CARE LTD ,SOCIAL SERVICES - OTHER,Adult Social Care & Health,Independent Placements,A56006,0
Royal Borough of Kingston,01/10/2022,90176433,"1,195.71",TREEMONT CARE LTD ,SOCIAL SERVICES - OTHER,Adult Social Care & Health,Personal Budget - Third Party,A61019,0
Royal Borough of Kingston,01/10/2022,90175413,"4,827.14",JESMUND CARE LIMITED,SOCIAL SERVICES - PERSONAL BUDGETS,Adult Social Care & Health,Independent Placements,A56006,0
Royal Borough of Kingston,01/10/2022,90174637,647.19,REDACTED - PERSONAL DATA,SOCIAL SERVICES - PERSONAL BUDGETS,Adult Social Care & Health,Personal Budget - Third Party,A61019,0
Royal Borough of Kingston,01/10/2022,90174640,"1,960.93",REDACTED - PERSONAL DATA,SOCIAL SERVICES - PERSONAL BUDGETS,Adult Social Care & Health,Personal Budget - Third Party,A61019,0
Royal Borough of Kingston,01/10/2022,90174641,638.69,REDACTED - PERSONAL DATA,SOCIAL SERVICES - PERSONAL BUDGETS,Adult Social Care & Health,Personal Budget - Third Party,A61019,0
Royal Borough of Kingston,01/10/2022,90174662,638.69,REDACTED - PERSONAL DATA,SOCIAL SERVICES - PERSONAL BUDGETS,Adult Social Care & Health,Personal Budget - Third Party,A61019,0
Royal Borough of Kingston,01/10/2022,90174668,"1,080.35",REDACTED - PERSONAL DATA,SOCIAL SERVICES - PERSONAL BUDGETS,Adult Social Care & Health,Personal Budget - Third Party,A61019,0
Royal Borough of Kingston,01/10/2022,90176568,"3,467.97",REDACTED - PERSONAL DATA,SOCIAL SERVICES - PERSONAL BUDGETS,Adult Social Care & Health,Personal Budget - Third Party,A61019,0
Royal Borough of Kingston,01/10/2022,90176581,"4,096.61",REDACTED - PERSONAL DATA,SOCIAL SERVICES - PERSONAL BUDGETS,Adult Social Care & Health,Personal Budget - Third Party,A61019,0
Royal Borough of Kingston,01/10/2022,90176707,"2,833.80",REDACTED - PERSONAL DATA,SOCIAL SERVICES - PERSONAL BUDGETS,Adult Social Care & Health,Personal Budget - Third Party,A61019,0
Royal Borough of Kingston,01/10/2022,90176712,"2,875.87",REDACTED - PERSONAL DATA,SOCIAL SERVICES - PERSONAL BUDGETS,Adult Social Care & Health,Personal Budget - Third Party,A61019,0
Royal Borough of Kingston,01/10/2022,90176713,"1,392.87",REDACTED - PERSONAL DATA,SOCIAL SERVICES - PERSONAL BUDGETS,Adult Social Care & Health,Personal Budget - Third Party,A61019,0
Royal Borough of Kingston,01/10/2022,90176714,"2,068.23",REDACTED - PERSONAL DATA,SOCIAL SERVICES - PERSONAL BUDGETS,Adult Social Care & Health,Personal Budget - Third Party,A61019,0
Royal Borough of Kingston,01/10/2022,90176720,738.64,REDACTED - PERSONAL DATA,SOCIAL SERVICES - PERSONAL BUDGETS,Adult Social Care & Health,Personal Budget - Third Party,A61019,0
Royal Borough of Kingston,01/10/2022,90176727,"4,776.44",REDACTED - PERSONAL DATA,SOCIAL SERVICES - PERSONAL BUDGETS,Adult Social Care & Health,Personal Budget - Third Party,A61019,0
Royal Borough of Kingston,01/10/2022,90176451,933.38,HF TRUST LTD ,SOCIAL SERVICES DAY CARE,Adult Social Care & Health,Personal Budget - Third Party,A61019,0
Royal Borough of Kingston,01/10/2022,90176452,"2,333.46",HF TRUST LTD ,SOCIAL SERVICES DAY CARE,Adult Social Care & Health,Personal Budget - Third Party,A61019,0
Royal Borough of Kingston,01/10/2022,90176462,664.29,HF TRUST LTD ,SOCIAL SERVICES DAY CARE,Adult Social Care & Health,Personal Budget - Third Party,A61019,0
Royal Borough of Kingston,01/10/2022,90176464,996.43,HF TRUST LTD ,SOCIAL SERVICES DAY CARE,Adult Social Care & Health,Personal Budget - Third Party,A61019,0
Royal Borough of Kingston,01/10/2022,90176477,664.29,HF TRUST LTD ,SOCIAL SERVICES DAY CARE,Adult Social Care & Health,Personal Budget - Third Party,A61019,0
Royal Borough of Kingston,01/10/2022,90176479,885.71,HF TRUST LTD ,SOCIAL SERVICES DAY CARE,Adult Social Care & Health,Personal Budget - Third Party,A61019,0
Royal Borough of Kingston,01/10/2022,90176481,885.71,HF TRUST LTD ,SOCIAL SERVICES DAY CARE,Adult Social Care & Health,Personal Budget - Third Party,A61019,0
Royal Borough of Kingston,01/10/2022,90176490,885.71,HF TRUST LTD ,SOCIAL SERVICES DAY CARE,Adult Social Care & Health,Personal Budget - Third Party,A61019,0
Royal Borough of Kingston,01/10/2022,90176499,"1,107.14",HF TRUST LTD ,SOCIAL SERVICES DAY CARE,Adult Social Care & Health,Personal Budget - Third Party,A61019,0
Royal Borough of Kingston,01/10/2022,90176510,"1,321.40",HF TRUST LTD ,SOCIAL SERVICES DAY CARE,Adult Social Care & Health,Personal Budget - Third Party,A61019,0
Royal Borough of Kingston,01/10/2022,90176514,664.29,HF TRUST LTD ,SOCIAL SERVICES DAY CARE,Adult Social Care & Health,Personal Budget - Third Party,A61019,0
Royal Borough of Kingston,01/10/2022,90176516,"1,107.14",HF TRUST LTD ,SOCIAL SERVICES DAY CARE,Adult Social Care & Health,Personal Budget - Third Party,A61019,0
Royal Borough of Kingston,01/10/2022,90176518,918.75,HF TRUST LTD ,SOCIAL SERVICES DAY CARE,Adult Social Care & Health,Personal Budget - Third Party,A61019,0
Royal Borough of Kingston,01/10/2022,90176520,885.71,HF TRUST LTD ,SOCIAL SERVICES DAY CARE,Adult Social Care & Health,Personal Budget - Third Party,A61019,0
Royal Borough of Kingston,01/10/2022,90176521,664.29,HF TRUST LTD ,SOCIAL SERVICES DAY CARE,Adult Social Care & Health,Personal Budget - Third Party,A61019,0
Royal Borough of Kingston,01/10/2022,90176526,"1,107.14",HF TRUST LTD ,SOCIAL SERVICES DAY CARE,Adult Social Care & Health,Personal Budget - Third Party,A61019,0
Royal Borough of Kingston,01/10/2022,90176529,885.71,HF TRUST LTD ,SOCIAL SERVICES DAY CARE,Adult Social Care & Health,Personal Budget - Third Party,A61019,0
Royal Borough of Kingston,01/10/2022,90176530,664.29,HF TRUST LTD ,SOCIAL SERVICES DAY CARE,Adult Social Care & Health,Personal Budget - Third Party,A61019,0
Royal Borough of Kingston,01/10/2022,90176531,664.29,HF TRUST LTD ,SOCIAL SERVICES DAY CARE,Adult Social Care & Health,Personal Budget - Third Party,A61019,0
Royal Borough of Kingston,01/10/2022,90176547,664.29,HF TRUST LTD ,SOCIAL SERVICES DAY CARE,Adult Social Care & Health,Personal Budget - Third Party,A61019,0
Royal Borough of Kingston,01/10/2022,90176548,885.71,HF TRUST LTD ,SOCIAL SERVICES DAY CARE,Adult Social Care & Health,Personal Budget - Third Party,A61019,0
Royal Borough of Kingston,01/10/2022,90176549,"1,107.14",HF TRUST LTD ,SOCIAL SERVICES DAY CARE,Adult Social Care & Health,Personal Budget - Third Party,A61019,0
Royal Borough of Kingston,01/10/2022,90176554,"1,107.14",HF TRUST LTD ,SOCIAL SERVICES DAY CARE,Adult Social Care & Health,Personal Budget - Third Party,A61019,0
Royal Borough of Kingston,01/10/2022,90176557,664.29,HF TRUST LTD ,SOCIAL SERVICES DAY CARE,Adult Social Care & Health,Personal Budget - Third Party,A61019,0
Royal Borough of Kingston,01/10/2022,90176558,"1,107.14",HF TRUST LTD ,SOCIAL SERVICES DAY CARE,Adult Social Care & Health,Personal Budget - Third Party,A61019,0
Royal Borough of Kingston,01/10/2022,90176560,"1,107.14",HF TRUST LTD ,SOCIAL SERVICES DAY CARE,Adult Social Care & Health,Personal Budget - Third Party,A61019,0
Royal Borough of Kingston,01/10/2022,90176563,664.29,HF TRUST LTD ,SOCIAL SERVICES DAY CARE,Adult Social Care & Health,Personal Budget - Third Party,A61019,0
Royal Borough of Kingston,01/10/2022,90174907,"4,601.29",SURBITON CARE HOMES LTD,SOCIAL SERVICES DAY CARE,Adult Social Care & Health,Independent Placements,A56006,0
Royal Borough of Kingston,01/10/2022,90174926,"2,582.64",SURBITON CARE HOMES LTD,SOCIAL SERVICES DAY CARE,Adult Social Care & Health,Independent Placements,A56006,0
Royal Borough of Kingston,01/10/2022,90174927,"-2,493.60",SURBITON CARE HOMES LTD,SOCIAL SERVICES DAY CARE,Adult Social Care & Health,Independent Placements,A56006,0
Royal Borough of Kingston,01/10/2022,90174950,"3,228.30",SURBITON CARE HOMES LTD,SOCIAL SERVICES DAY CARE,Adult Social Care & Health,Independent Placements,A56006,0
Royal Borough of Kingston,01/10/2022,90174951,"-2,916.64",SURBITON CARE HOMES LTD,SOCIAL SERVICES DAY CARE,Adult Social Care & Health,Independent Placements,A56006,0
Royal Borough of Kingston,01/10/2022,90174952,"3,335.91",SURBITON CARE HOMES LTD,SOCIAL SERVICES DAY CARE,Adult Social Care & Health,Independent Placements,A56006,0
Royal Borough of Kingston,01/10/2022,90174953,"-3,013.86",SURBITON CARE HOMES LTD,SOCIAL SERVICES DAY CARE,Adult Social Care & Health,Independent Placements,A56006,0
Royal Borough of Kingston,01/10/2022,90174954,"3,228.30",SURBITON CARE HOMES LTD,SOCIAL SERVICES DAY CARE,Adult Social Care & Health,Independent Placements,A56006,0
Royal Borough of Kingston,01/10/2022,90174955,"-2,916.64",SURBITON CARE HOMES LTD,SOCIAL SERVICES DAY CARE,Adult Social Care & Health,Independent Placements,A56006,0
Royal Borough of Kingston,01/10/2022,90174956,"3,335.91",SURBITON CARE HOMES LTD,SOCIAL SERVICES DAY CARE,Adult Social Care & Health,Independent Placements,A56006,0
Royal Borough of Kingston,01/10/2022,90174957,"-3,013.86",SURBITON CARE HOMES LTD,SOCIAL SERVICES DAY CARE,Adult Social Care & Health,Independent Placements,A56006,0
Royal Borough of Kingston,01/10/2022,90174958,"3,335.91",SURBITON CARE HOMES LTD,SOCIAL SERVICES DAY CARE,Adult Social Care & Health,Independent Placements,A56006,0
Royal Borough of Kingston,01/10/2022,90174959,"-3,013.86",SURBITON CARE HOMES LTD,SOCIAL SERVICES DAY CARE,Adult Social Care & Health,Independent Placements,A56006,0
Royal Borough of Kingston,01/10/2022,90174960,"3,228.30",SURBITON CARE HOMES LTD,SOCIAL SERVICES DAY CARE,Adult Social Care & Health,Independent Placements,A56006,0
Royal Borough of Kingston,01/10/2022,90174961,"-2,916.64",SURBITON CARE HOMES LTD,SOCIAL SERVICES DAY CARE,Adult Social Care & Health,Independent Placements,A56006,0
Royal Borough of Kingston,01/10/2022,90174962,"3,335.91",SURBITON CARE HOMES LTD,SOCIAL SERVICES DAY CARE,Adult Social Care & Health,Independent Placements,A56006,0
Royal Borough of Kingston,01/10/2022,90174971,"3,764.29",SURBITON CARE HOMES LTD,SOCIAL SERVICES DAY CARE,Adult Social Care & Health,Independent Placements,A56006,0
Royal Borough of Kingston,01/10/2022,90175007,"3,228.30",SURBITON CARE HOMES LTD,SOCIAL SERVICES DAY CARE,Adult Social Care & Health,Independent Placements,A56006,0
Royal Borough of Kingston,01/10/2022,90175008,"-2,916.64",SURBITON CARE HOMES LTD,SOCIAL SERVICES DAY CARE,Adult Social Care & Health,Independent Placements,A56006,0
Royal Borough of Kingston,01/10/2022,90175009,"3,335.91",SURBITON CARE HOMES LTD,SOCIAL SERVICES DAY CARE,Adult Social Care & Health,Independent Placements,A56006,0
Royal Borough of Kingston,01/10/2022,90175010,"-3,013.86",SURBITON CARE HOMES LTD,SOCIAL SERVICES DAY CARE,Adult Social Care & Health,Independent Placements,A56006,0
Royal Borough of Kingston,01/10/2022,90175011,"3,228.30",SURBITON CARE HOMES LTD,SOCIAL SERVICES DAY CARE,Adult Social Care & Health,Independent Placements,A56006,0
Royal Borough of Kingston,01/10/2022,90175012,"-2,916.64",SURBITON CARE HOMES LTD,SOCIAL SERVICES DAY CARE,Adult Social Care & Health,Independent Placements,A56006,0
Royal Borough of Kingston,01/10/2022,90175013,"3,335.91",SURBITON CARE HOMES LTD,SOCIAL SERVICES DAY CARE,Adult Social Care & Health,Independent Placements,A56006,0
Royal Borough of Kingston,01/10/2022,90175014,"-3,013.86",SURBITON CARE HOMES LTD,SOCIAL SERVICES DAY CARE,Adult Social Care & Health,Independent Placements,A56006,0
Royal Borough of Kingston,01/10/2022,90175015,"3,335.91",SURBITON CARE HOMES LTD,SOCIAL SERVICES DAY CARE,Adult Social Care & Health,Independent Placements,A56006,0
Royal Borough of Kingston,01/10/2022,90175016,"-3,013.86",SURBITON CARE HOMES LTD,SOCIAL SERVICES DAY CARE,Adult Social Care & Health,Independent Placements,A56006,0
Royal Borough of Kingston,01/10/2022,90175017,"3,228.30",SURBITON CARE HOMES LTD,SOCIAL SERVICES DAY CARE,Adult Social Care & Health,Independent Placements,A56006,0
Royal Borough of Kingston,01/10/2022,90175018,"-2,916.64",SURBITON CARE HOMES LTD,SOCIAL SERVICES DAY CARE,Adult Social Care & Health,Independent Placements,A56006,0
Royal Borough of Kingston,01/10/2022,90175019,"3,335.91",SURBITON CARE HOMES LTD,SOCIAL SERVICES DAY CARE,Adult Social Care & Health,Independent Placements,A56006,0
Royal Borough of Kingston,01/10/2022,90175021,"3,450.96",SURBITON CARE HOMES LTD,SOCIAL SERVICES DAY CARE,Adult Social Care & Health,Independent Placements,A56006,0
Royal Borough of Kingston,01/10/2022,90175035,"3,653.57",SURBITON CARE HOMES LTD,SOCIAL SERVICES DAY CARE,Adult Social Care & Health,Independent Placements,A56006,0
Royal Borough of Kingston,01/10/2022,90175138,"3,214.29",SURBITON CARE HOMES LTD,SOCIAL SERVICES DAY CARE,Adult Social Care & Health,Independent Placements,A56006,0
Royal Borough of Kingston,01/10/2022,90175139,"3,321.43",SURBITON CARE HOMES LTD,SOCIAL SERVICES DAY CARE,Adult Social Care & Health,Independent Placements,A56006,0
Royal Borough of Kingston,01/10/2022,90175140,"2,142.86",SURBITON CARE HOMES LTD,SOCIAL SERVICES DAY CARE,Adult Social Care & Health,Independent Placements,A56006,0
Royal Borough of Kingston,01/10/2022,90175152,"4,069.55",SURBITON CARE HOMES LTD,SOCIAL SERVICES DAY CARE,Adult Social Care & Health,Independent Placements,A56006,0
Royal Borough of Kingston,01/10/2022,90176967,"-3,214.29",SURBITON CARE HOMES LTD,SOCIAL SERVICES DAY CARE,Adult Social Care & Health,Independent Placements,A56006,0
Royal Borough of Kingston,01/10/2022,90176968,"-3,321.43",SURBITON CARE HOMES LTD,SOCIAL SERVICES DAY CARE,Adult Social Care & Health,Independent Placements,A56006,0
Royal Borough of Kingston,01/10/2022,90176969,"-2,785.71",SURBITON CARE HOMES LTD,SOCIAL SERVICES DAY CARE,Adult Social Care & Health,Independent Placements,A56006,0
Royal Borough of Kingston,01/10/2022,90175241,"16,647.35",SURREY AND BORDERS PARTNERSHIP NHS FOUNDATION TRUST,SOCIAL SERVICES DAY CARE,Adult Social Care & Health,Independent Placements,A56006,0
Royal Borough of Kingston,01/10/2022,90175180,"3,842.10",ABBEY 14LIMITED,SOCIAL SERVICES RESIDENTIAL,Adult Social Care & Health,Independent Placements,A56006,0
Royal Borough of Kingston,01/10/2022,90175052,"3,865.08",ABBEYFIELD,SOCIAL SERVICES RESIDENTIAL,Adult Social Care & Health,Independent Placements,A56006,0
Royal Borough of Kingston,01/10/2022,90175053,"3,865.08",ABBEYFIELD,SOCIAL SERVICES RESIDENTIAL,Adult Social Care & Health,Independent Placements,A56006,0
Royal Borough of Kingston,01/10/2022,90175054,"3,865.08",ABBEYFIELD,SOCIAL SERVICES RESIDENTIAL,Adult Social Care & Health,Independent Placements,A56006,0
Royal Borough of Kingston,01/10/2022,90175055,"3,865.08",ABBEYFIELD,SOCIAL SERVICES RESIDENTIAL,Adult Social Care & Health,Independent Placements,A56006,0
Royal Borough of Kingston,01/10/2022,90175067,"3,865.08",ABBEYFIELD,SOCIAL SERVICES RESIDENTIAL,Adult Social Care & Health,Independent Placements,A56006,0
Royal Borough of Kingston,01/10/2022,90175069,"3,865.08",ABBEYFIELD,SOCIAL SERVICES RESIDENTIAL,Adult Social Care & Health,Independent Placements,A56006,0
Royal Borough of Kingston,01/10/2022,90175070,"3,865.08",ABBEYFIELD,SOCIAL SERVICES RESIDENTIAL,Adult Social Care & Health,Independent Placements,A56006,0
Royal Borough of Kingston,01/10/2022,90175077,"3,865.08",ABBEYFIELD,SOCIAL SERVICES RESIDENTIAL,Adult Social Care & Health,Independent Placements,A56006,0
Royal Borough of Kingston,01/10/2022,90175079,"3,865.08",ABBEYFIELD,SOCIAL SERVICES RESIDENTIAL,Adult Social Care & Health,Independent Placements,A56006,0
Royal Borough of Kingston,01/10/2022,90175086,"3,865.08",ABBEYFIELD,SOCIAL SERVICES RESIDENTIAL,Adult Social Care & Health,Independent Placements,A56006,0
Royal Borough of Kingston,01/10/2022,90175092,"3,865.08",ABBEYFIELD,SOCIAL SERVICES RESIDENTIAL,Adult Social Care & Health,Independent Placements,A56006,0
Royal Borough of Kingston,01/10/2022,90175095,"3,865.08",ABBEYFIELD,SOCIAL SERVICES RESIDENTIAL,Adult Social Care & Health,Independent Placements,A56006,0
Royal Borough of Kingston,01/10/2022,90175100,"3,865.08",ABBEYFIELD,SOCIAL SERVICES RESIDENTIAL,Adult Social Care & Health,Independent Placements,A56006,0
Royal Borough of Kingston,01/10/2022,90175102,"3,865.08",ABBEYFIELD,SOCIAL SERVICES RESIDENTIAL,Adult Social Care & Health,Independent Placements,A56006,0
Royal Borough of Kingston,01/10/2022,90175105,"3,865.08",ABBEYFIELD,SOCIAL SERVICES RESIDENTIAL,Adult Social Care & Health,Independent Placements,A56006,0
Royal Borough of Kingston,01/10/2022,90175107,"3,865.08",ABBEYFIELD,SOCIAL SERVICES RESIDENTIAL,Adult Social Care & Health,Independent Placements,A56006,0
Royal Borough of Kingston,01/10/2022,90175118,"3,241.68",ABBEYFIELD,SOCIAL SERVICES RESIDENTIAL,Adult Social Care & Health,Independent Placements,A56006,0
Royal Borough of Kingston,01/10/2022,90175119,"3,865.08",ABBEYFIELD,SOCIAL SERVICES RESIDENTIAL,Adult Social Care & Health,Independent Placements,A56006,0
Royal Borough of Kingston,01/10/2022,90175164,"-2,805.30",ABBEYFIELD,SOCIAL SERVICES RESIDENTIAL,Adult Social Care & Health,Independent Placements,A56006,0
Royal Borough of Kingston,01/10/2022,90175174,"3,865.08",ABBEYFIELD,SOCIAL SERVICES RESIDENTIAL,Adult Social Care & Health,Independent Placements,A56006,0
Royal Borough of Kingston,01/10/2022,90175179,"4,141.16",ABBEYFIELD,SOCIAL SERVICES RESIDENTIAL,Adult Social Care & Health,Independent Placements,A56006,0
Royal Borough of Kingston,01/10/2022,90175186,"3,865.08",ABBEYFIELD,SOCIAL SERVICES RESIDENTIAL,Adult Social Care & Health,Independent Placements,A56006,0
Royal Borough of Kingston,01/10/2022,90175198,"3,865.08",ABBEYFIELD,SOCIAL SERVICES RESIDENTIAL,Adult Social Care & Health,Independent Placements,A56006,0
Royal Borough of Kingston,01/10/2022,90175204,"3,865.08",ABBEYFIELD,SOCIAL SERVICES RESIDENTIAL,Adult Social Care & Health,Independent Placements,A56006,0
Royal Borough of Kingston,01/10/2022,90175223,"3,865.08",ABBEYFIELD,SOCIAL SERVICES RESIDENTIAL,Adult Social Care & Health,Independent Placements,A56006,0
Royal Borough of Kingston,01/10/2022,90175233,"3,865.08",ABBEYFIELD,SOCIAL SERVICES RESIDENTIAL,Adult Social Care & Health,Independent Placements,A56006,0
Royal Borough of Kingston,01/10/2022,90175236,"3,865.08",ABBEYFIELD,SOCIAL SERVICES RESIDENTIAL,Adult Social Care & Health,Independent Placements,A56006,0
Royal Borough of Kingston,01/10/2022,90175114,"5,511.71",Active Care Group Services,SOCIAL SERVICES RESIDENTIAL,Adult Social Care & Health,Independent Placements,A56006,0
Royal Borough of Kingston,01/10/2022,90174968,"5,314.29",AIMS CARE LIMITED,SOCIAL SERVICES RESIDENTIAL,Adult Social Care & Health,Independent Placements,A56006,0
Royal Borough of Kingston,01/10/2022,90175123,"6,864.29",AIMS CARE LIMITED,SOCIAL SERVICES RESIDENTIAL,Adult Social Care & Health,Independent Placements,A56006,0
Royal Borough of Kingston,01/10/2022,90175394,"6,303.76",ASHCROFT CARE SERVICES LIMITED,SOCIAL SERVICES RESIDENTIAL,Adult Social Care & Health,Independent Placements,A56006,0
Royal Borough of Kingston,01/10/2022,90176750,952.32,ASHINGTON HOUSE LTD,SOCIAL SERVICES RESIDENTIAL,Adult Social Care & Health,Personal Budget - Third Party,A61019,0
Royal Borough of Kingston,01/10/2022,90176685,"1,349.25",ASHPRIME PROPERTIES LTD,SOCIAL SERVICES RESIDENTIAL,Adult Social Care & Health,Personal Budget - Third Party,A61019,0
Royal Borough of Kingston,01/10/2022,90175039,"2,973.74",ASHTON LODGE LTD,SOCIAL SERVICES RESIDENTIAL,Adult Social Care & Health,Independent Placements,A56006,0
Royal Borough of Kingston,01/10/2022,90175058,"5,391.87",ASPREY HEALTHCARE LTD,SOCIAL SERVICES RESIDENTIAL,Adult Social Care & Health,Independent Placements,A56006,0
Royal Borough of Kingston,01/10/2022,90175168,"3,950.20",ASPREY HEALTHCARE LTD,SOCIAL SERVICES RESIDENTIAL,Adult Social Care & Health,Independent Placements,A56006,0
Royal Borough of Kingston,01/10/2022,90175178,"4,531.14",ASPREY HEALTHCARE LTD,SOCIAL SERVICES RESIDENTIAL,Adult Social Care & Health,Independent Placements,A56006,0
Royal Borough of Kingston,01/10/2022,90175044,"4,852.08",ASTORIA HEALTHCARE LTD,SOCIAL SERVICES RESIDENTIAL,Adult Social Care & Health,Independent Placements,A56006,0
Royal Borough of Kingston,01/10/2022,90175273,"11,345.03",AUTISM CONSULTANTS LTD,SOCIAL SERVICES RESIDENTIAL,Adult Social Care & Health,Independent Placements,A56006,0
Royal Borough of Kingston,01/10/2022,90174939,"3,625.80",BARCHESTER HEALTHCARE ,SOCIAL SERVICES RESIDENTIAL,Adult Social Care & Health,Independent Placements,A56006,0
Royal Borough of Kingston,01/10/2022,90175172,"4,486.28",BAVANI CARE HOME LIMITED,SOCIAL SERVICES RESIDENTIAL,Adult Social Care & Health,Independent Placements,A56006,0
Royal Borough of Kingston,01/10/2022,90175177,"3,985.71",BAVANI CARE HOME LIMITED,SOCIAL SERVICES RESIDENTIAL,Adult Social Care & Health,Independent Placements,A56006,0
Royal Borough of Kingston,01/10/2022,90175218,"2,200.00",BAVANI CARE HOME LIMITED,SOCIAL SERVICES RESIDENTIAL,Adult Social Care & Health,Independent Placements,A56006,0
Royal Borough of Kingston,01/10/2022,90175219,"4,871.43",BAVANI CARE HOME LIMITED,SOCIAL SERVICES RESIDENTIAL,Adult Social Care & Health,Independent Placements,A56006,0
Royal Borough of Kingston,01/10/2022,90175220,"4,714.29",BAVANI CARE HOME LIMITED,SOCIAL SERVICES RESIDENTIAL,Adult Social Care & Health,Independent Placements,A56006,0
Royal Borough of Kingston,01/10/2022,90175221,"4,871.43",BAVANI CARE HOME LIMITED,SOCIAL SERVICES RESIDENTIAL,Adult Social Care & Health,Independent Placements,A56006,0
Royal Borough of Kingston,01/10/2022,90175030,"3,641.66",BUPA CARE HOMES,SOCIAL SERVICES RESIDENTIAL,Adult Social Care & Health,Independent Placements,A56006,0
Royal Borough of Kingston,01/10/2022,90175047,"5,367.29",BUPA CARE HOMES,SOCIAL SERVICES RESIDENTIAL,Adult Social Care & Health,Independent Placements,A56006,0
Royal Borough of Kingston,01/10/2022,90175048,"9,007.98",BUPA CARE HOMES,SOCIAL SERVICES RESIDENTIAL,Adult Social Care & Health,Independent Placements,A56006,0
Royal Borough of Kingston,01/10/2022,90175414,"5,325.18",BUPA CARE HOMES,SOCIAL SERVICES RESIDENTIAL,Adult Social Care & Health,Independent Placements,A56006,0
Royal Borough of Kingston,01/10/2022,90176659,"5,425.80",CARE MANAGEMENT GROUP LTD,SOCIAL SERVICES RESIDENTIAL,Adult Social Care & Health,Personal Budget - Third Party,A61019,0
Royal Borough of Kingston,01/10/2022,90175060,"3,346.05",CARE UK COMMUNITY PARTNERSHIPS LTD,SOCIAL SERVICES RESIDENTIAL,Adult Social Care & Health,Independent Placements,A56006,0
Royal Borough of Kingston,01/10/2022,90175194,"4,141.16",CARE UK COMMUNITY PARTNERSHIPS LTD,SOCIAL SERVICES RESIDENTIAL,Adult Social Care & Health,Independent Placements,A56006,0
Royal Borough of Kingston,01/10/2022,90175201,"1,555.71",CARE UK COMMUNITY PARTNERSHIPS LTD,SOCIAL SERVICES RESIDENTIAL,Adult Social Care & Health,Independent Placements,A56006,0
Royal Borough of Kingston,01/10/2022,90175202,"4,384.29",CARE UK COMMUNITY PARTNERSHIPS LTD,SOCIAL SERVICES RESIDENTIAL,Adult Social Care & Health,Independent Placements,A56006,0
Royal Borough of Kingston,01/10/2022,90175210,"2,788.36",CARE UK COMMUNITY PARTNERSHIPS LTD,SOCIAL SERVICES RESIDENTIAL,Adult Social Care & Health,Independent Placements,A56006,0
Royal Borough of Kingston,01/10/2022,90174969,"3,675.71",Caring Homes Healthcare Group Limited,SOCIAL SERVICES RESIDENTIAL,Adult Social Care & Health,Independent Placements,A56006,0
Royal Borough of Kingston,01/10/2022,90175222,"3,450.96",Jiva Healthcare Ltd,SOCIAL SERVICES RESIDENTIAL,Adult Social Care & Health,Independent Placements,A56006,0
Royal Borough of Kingston,01/10/2022,90175323,"9,470.46",CARTREF HOMES,SOCIAL SERVICES RESIDENTIAL,Adult Social Care & Health,Independent Placements,A56006,0
Royal Borough of Kingston,01/10/2022,90175290,"11,152.12",CAVENDISH CARE,SOCIAL SERVICES RESIDENTIAL,Adult Social Care & Health,Independent Placements,A56006,0
Royal Borough of Kingston,01/10/2022,90175122,"3,681.03",CHD (CARE HOMES) LTD,SOCIAL SERVICES RESIDENTIAL,Adult Social Care & Health,Independent Placements,A56006,0
Royal Borough of Kingston,01/10/2022,90175127,"1,104.31",CHD LIVING,SOCIAL SERVICES RESIDENTIAL,Adult Social Care & Health,Independent Placements,A56006,0
Royal Borough of Kingston,01/10/2022,90174945,"4,371.22",CHISWICK NURSING CENTRE,SOCIAL SERVICES RESIDENTIAL,Adult Social Care & Health,Independent Placements,A56006,0
Royal Borough of Kingston,01/10/2022,90175040,"-3,428.26",CHISWICK NURSING CENTRE,SOCIAL SERVICES RESIDENTIAL,Adult Social Care & Health,Independent Placements,A56006,0
Royal Borough of Kingston,01/10/2022,90175041,"7,399.30",CHISWICK NURSING CENTRE,SOCIAL SERVICES RESIDENTIAL,Adult Social Care & Health,Independent Placements,A56006,0
Royal Borough of Kingston,01/10/2022,90175125,"3,755.03",CHISWICK NURSING CENTRE,SOCIAL SERVICES RESIDENTIAL,Adult Social Care & Health,Independent Placements,A56006,0
Royal Borough of Kingston,01/10/2022,90175161,"3,434.40",CHISWICK NURSING CENTRE,SOCIAL SERVICES RESIDENTIAL,Adult Social Care & Health,Independent Placements,A56006,0
Royal Borough of Kingston,01/10/2022,90175350,"8,132.76",CHOICE LTD,SOCIAL SERVICES RESIDENTIAL,Adult Social Care & Health,Independent Placements,A56006,0
Royal Borough of Kingston,01/10/2022,90175357,"7,186.20",CHOICE LTD,SOCIAL SERVICES RESIDENTIAL,Adult Social Care & Health,Independent Placements,A56006,0
Royal Borough of Kingston,01/10/2022,90176576,"5,939.29",CHRISTIES CARE LTD,SOCIAL SERVICES RESIDENTIAL,Adult Social Care & Health,Personal Budget - Third Party,A61019,0
Royal Borough of Kingston,01/10/2022,90176644,"5,552.14",CHRISTIES CARE LTD,SOCIAL SERVICES RESIDENTIAL,Adult Social Care & Health,Personal Budget - Third Party,A61019,0
Royal Borough of Kingston,01/10/2022,90176646,"5,776.98",CHRISTIES CARE LTD,SOCIAL SERVICES RESIDENTIAL,Adult Social Care & Health,Personal Budget - Third Party,A61019,0
Royal Borough of Kingston,01/10/2022,90176695,"5,574.29",CHRISTIES CARE LTD,SOCIAL SERVICES RESIDENTIAL,Adult Social Care & Health,Personal Budget - Third Party,A61019,0
Royal Borough of Kingston,01/10/2022,90175360,"8,811.48",CLEARWATER CARE (HACKNEY) LTD,SOCIAL SERVICES RESIDENTIAL,Adult Social Care & Health,Independent Placements,A56006,0
Royal Borough of Kingston,01/10/2022,90175418,"14,022.05",COGNITHAN,SOCIAL SERVICES RESIDENTIAL,Adult Social Care & Health,Independent Placements,A56006,0
Royal Borough of Kingston,01/10/2022,90175322,"8,102.87",COMMUNITY CARE SOLUTIONS LTD,SOCIAL SERVICES RESIDENTIAL,Adult Social Care & Health,Independent Placements,A56006,0
Royal Borough of Kingston,01/10/2022,90175325,"8,363.45",CONGRESS HOUSE LIMITED,SOCIAL SERVICES RESIDENTIAL,Adult Social Care & Health,Independent Placements,A56006,0
Royal Borough of Kingston,01/10/2022,90174936,"3,542.86",COUNTRY COURT CARE HOMES 2 LTD,SOCIAL SERVICES RESIDENTIAL,Adult Social Care & Health,Independent Placements,A56006,0
Royal Borough of Kingston,01/10/2022,90175068,"3,528.91",COUNTRY COURT CARE HOMES 2 LTD,SOCIAL SERVICES RESIDENTIAL,Adult Social Care & Health,Independent Placements,A56006,0
Royal Borough of Kingston,01/10/2022,90175073,971.43,COUNTRY COURT CARE HOMES 2 LTD,SOCIAL SERVICES RESIDENTIAL,Adult Social Care & Health,Independent Placements,A56006,0
Royal Borough of Kingston,01/10/2022,90175074,"3,642.86",COUNTRY COURT CARE HOMES 2 LTD,SOCIAL SERVICES RESIDENTIAL,Adult Social Care & Health,Independent Placements,A56006,0
Royal Borough of Kingston,01/10/2022,90175075,"3,764.29",COUNTRY COURT CARE HOMES 2 LTD,SOCIAL SERVICES RESIDENTIAL,Adult Social Care & Health,Independent Placements,A56006,0
Royal Borough of Kingston,01/10/2022,90175109,"3,450.96",COUNTRY COURT CARE HOMES 2 LTD,SOCIAL SERVICES RESIDENTIAL,Adult Social Care & Health,Independent Placements,A56006,0
Royal Borough of Kingston,01/10/2022,90175124,"3,529.17",COUNTRY COURT CARE HOMES 2 LTD,SOCIAL SERVICES RESIDENTIAL,Adult Social Care & Health,Independent Placements,A56006,0
Royal Borough of Kingston,01/10/2022,90175129,"3,529.17",COUNTRY COURT CARE HOMES 2 LTD,SOCIAL SERVICES RESIDENTIAL,Adult Social Care & Health,Independent Placements,A56006,0
Royal Borough of Kingston,01/10/2022,90175145,"1,562.66",COUNTRY COURT CARE HOMES 2 LTD,SOCIAL SERVICES RESIDENTIAL,Adult Social Care & Health,Independent Placements,A56006,0
Royal Borough of Kingston,01/10/2022,90175200,"1,457.14",COUNTRY COURT CARE HOMES 2 LTD,SOCIAL SERVICES RESIDENTIAL,Adult Social Care & Health,Independent Placements,A56006,0
Royal Borough of Kingston,01/10/2022,90175217,"3,764.29",COUNTRY COURT CARE HOMES 2 LTD,SOCIAL SERVICES RESIDENTIAL,Adult Social Care & Health,Independent Placements,A56006,0
Royal Borough of Kingston,01/10/2022,90175477,850.00,COUNTRY COURT CARE HOMES 2 LTD,SOCIAL SERVICES RESIDENTIAL,Adult Social Care & Health,Other Private Contractors - Third Party,A56080,0
Royal Borough of Kingston,01/10/2022,90175378,"5,534.83",DOWNING (CHERTSEY ROAD) LTD,SOCIAL SERVICES RESIDENTIAL,Adult Social Care & Health,Independent Placements,A56006,0
Royal Borough of Kingston,01/10/2022,90175412,"4,984.49",FAMILY INVESTMENT (THREE) LIMITED,SOCIAL SERVICES RESIDENTIAL,Adult Social Care & Health,Independent Placements,A56006,0
Royal Borough of Kingston,01/10/2022,90174922,"3,520.01",FOUR SEASONS HEALTHCARE,SOCIAL SERVICES RESIDENTIAL,Adult Social Care & Health,Independent Placements,A56006,0
Royal Borough of Kingston,01/10/2022,90174930,"3,450.96",FOUR SEASONS HEALTHCARE,SOCIAL SERVICES RESIDENTIAL,Adult Social Care & Health,Independent Placements,A56006,0
Royal Borough of Kingston,01/10/2022,90174932,"3,542.86",FOUR SEASONS HEALTHCARE,SOCIAL SERVICES RESIDENTIAL,Adult Social Care & Health,Independent Placements,A56006,0
Royal Borough of Kingston,01/10/2022,90174937,"3,542.86",FOUR SEASONS HEALTHCARE,SOCIAL SERVICES RESIDENTIAL,Adult Social Care & Health,Independent Placements,A56006,0
Royal Borough of Kingston,01/10/2022,90174946,"3,434.40",FOUR SEASONS HEALTHCARE,SOCIAL SERVICES RESIDENTIAL,Adult Social Care & Health,Independent Placements,A56006,0
Royal Borough of Kingston,01/10/2022,90174964,"2,825.14",FOUR SEASONS HEALTHCARE,SOCIAL SERVICES RESIDENTIAL,Adult Social Care & Health,Independent Placements,A56006,0
Royal Borough of Kingston,01/10/2022,90174970,"3,013.86",FOUR SEASONS HEALTHCARE,SOCIAL SERVICES RESIDENTIAL,Adult Social Care & Health,Independent Placements,A56006,0
Royal Borough of Kingston,01/10/2022,90174972,"3,520.01",FOUR SEASONS HEALTHCARE,SOCIAL SERVICES RESIDENTIAL,Adult Social Care & Health,Independent Placements,A56006,0
Royal Borough of Kingston,01/10/2022,90174974,"3,450.96",FOUR SEASONS HEALTHCARE,SOCIAL SERVICES RESIDENTIAL,Adult Social Care & Health,Independent Placements,A56006,0
Royal Borough of Kingston,01/10/2022,90174995,"3,013.86",FOUR SEASONS HEALTHCARE,SOCIAL SERVICES RESIDENTIAL,Adult Social Care & Health,Independent Placements,A56006,0
Royal Borough of Kingston,01/10/2022,90175000,"3,229.62",FOUR SEASONS HEALTHCARE,SOCIAL SERVICES RESIDENTIAL,Adult Social Care & Health,Independent Placements,A56006,0
Royal Borough of Kingston,01/10/2022,90175037,"3,317.53",FOUR SEASONS HEALTHCARE,SOCIAL SERVICES RESIDENTIAL,Adult Social Care & Health,Independent Placements,A56006,0
Royal Borough of Kingston,01/10/2022,90175038,"3,542.86",FOUR SEASONS HEALTHCARE,SOCIAL SERVICES RESIDENTIAL,Adult Social Care & Health,Independent Placements,A56006,0
Royal Borough of Kingston,01/10/2022,90175043,"3,450.96",FOUR SEASONS HEALTHCARE,SOCIAL SERVICES RESIDENTIAL,Adult Social Care & Health,Independent Placements,A56006,0
Royal Borough of Kingston,01/10/2022,90175066,535.71,FOUR SEASONS HEALTHCARE,SOCIAL SERVICES RESIDENTIAL,Adult Social Care & Health,Independent Placements,A56006,0
Royal Borough of Kingston,01/10/2022,90175126,"3,216.29",FOUR SEASONS HEALTHCARE,SOCIAL SERVICES RESIDENTIAL,Adult Social Care & Health,Independent Placements,A56006,0
Royal Borough of Kingston,01/10/2022,90175130,"3,985.71",FOUR SEASONS HEALTHCARE,SOCIAL SERVICES RESIDENTIAL,Adult Social Care & Health,Independent Placements,A56006,0
Royal Borough of Kingston,01/10/2022,90175143,"3,358.94",FOUR SEASONS HEALTHCARE,SOCIAL SERVICES RESIDENTIAL,Adult Social Care & Health,Independent Placements,A56006,0
Royal Borough of Kingston,01/10/2022,90175154,"3,229.62",FOUR SEASONS HEALTHCARE,SOCIAL SERVICES RESIDENTIAL,Adult Social Care & Health,Independent Placements,A56006,0
Royal Borough of Kingston,01/10/2022,90176454,693.51,GENEVA ROAD LIMITED,SOCIAL SERVICES RESIDENTIAL,Adult Social Care & Health,Personal Budget - Third Party,A61019,0
Royal Borough of Kingston,01/10/2022,90176455,775.00,GENEVA ROAD LIMITED,SOCIAL SERVICES RESIDENTIAL,Adult Social Care & Health,Personal Budget - Third Party,A61019,0
Royal Borough of Kingston,01/10/2022,90176456,"1,992.86",GENEVA ROAD LIMITED,SOCIAL SERVICES RESIDENTIAL,Adult Social Care & Health,Personal Budget - Third Party,A61019,0
Royal Borough of Kingston,01/10/2022,90176470,"1,107.14",GENEVA ROAD LIMITED,SOCIAL SERVICES RESIDENTIAL,Adult Social Care & Health,Personal Budget - Third Party,A61019,0
Royal Borough of Kingston,01/10/2022,90176471,"1,107.14",GENEVA ROAD LIMITED,SOCIAL SERVICES RESIDENTIAL,Adult Social Care & Health,Personal Budget - Third Party,A61019,0
Royal Borough of Kingston,01/10/2022,90176485,"1,271.44",GENEVA ROAD LIMITED,SOCIAL SERVICES RESIDENTIAL,Adult Social Care & Health,Personal Budget - Third Party,A61019,0
Royal Borough of Kingston,01/10/2022,90176486,"1,107.14",GENEVA ROAD LIMITED,SOCIAL SERVICES RESIDENTIAL,Adult Social Care & Health,Personal Budget - Third Party,A61019,0
Royal Borough of Kingston,01/10/2022,90176491,442.86,GENEVA ROAD LIMITED,SOCIAL SERVICES RESIDENTIAL,Adult Social Care & Health,Personal Budget - Third Party,A61019,0
Royal Borough of Kingston,01/10/2022,90176492,442.86,GENEVA ROAD LIMITED,SOCIAL SERVICES RESIDENTIAL,Adult Social Care & Health,Personal Budget - Third Party,A61019,0
Royal Borough of Kingston,01/10/2022,90176494,664.29,GENEVA ROAD LIMITED,SOCIAL SERVICES RESIDENTIAL,Adult Social Care & Health,Personal Budget - Third Party,A61019,0
Royal Borough of Kingston,01/10/2022,90176495,664.29,GENEVA ROAD LIMITED,SOCIAL SERVICES RESIDENTIAL,Adult Social Care & Health,Personal Budget - Third Party,A61019,0
Royal Borough of Kingston,01/10/2022,90176496,"1,155.86",GENEVA ROAD LIMITED,SOCIAL SERVICES RESIDENTIAL,Adult Social Care & Health,Personal Budget - Third Party,A61019,0
Royal Borough of Kingston,01/10/2022,90176497,"1,107.14",GENEVA ROAD LIMITED,SOCIAL SERVICES RESIDENTIAL,Adult Social Care & Health,Personal Budget - Third Party,A61019,0
Royal Borough of Kingston,01/10/2022,90176498,"1,107.14",GENEVA ROAD LIMITED,SOCIAL SERVICES RESIDENTIAL,Adult Social Care & Health,Personal Budget - Third Party,A61019,0
Royal Borough of Kingston,01/10/2022,90176502,442.86,GENEVA ROAD LIMITED,SOCIAL SERVICES RESIDENTIAL,Adult Social Care & Health,Personal Budget - Third Party,A61019,0
Royal Borough of Kingston,01/10/2022,90176505,663.78,GENEVA ROAD LIMITED,SOCIAL SERVICES RESIDENTIAL,Adult Social Care & Health,Personal Budget - Third Party,A61019,0
Royal Borough of Kingston,01/10/2022,90176525,885.71,GENEVA ROAD LIMITED,SOCIAL SERVICES RESIDENTIAL,Adult Social Care & Health,Personal Budget - Third Party,A61019,0
Royal Borough of Kingston,01/10/2022,90176552,506.89,GENEVA ROAD LIMITED,SOCIAL SERVICES RESIDENTIAL,Adult Social Care & Health,Personal Budget - Third Party,A61019,0
Royal Borough of Kingston,01/10/2022,90176553,875.79,GENEVA ROAD LIMITED,SOCIAL SERVICES RESIDENTIAL,Adult Social Care & Health,Personal Budget - Third Party,A61019,0
Royal Borough of Kingston,01/10/2022,90176564,553.57,GENEVA ROAD LIMITED,SOCIAL SERVICES RESIDENTIAL,Adult Social Care & Health,Personal Budget - Third Party,A61019,0
Royal Borough of Kingston,01/10/2022,90176566,664.29,GENEVA ROAD LIMITED,SOCIAL SERVICES RESIDENTIAL,Adult Social Care & Health,Personal Budget - Third Party,A61019,0
Royal Borough of Kingston,01/10/2022,90176973,486.04,GENEVA ROAD LIMITED,SOCIAL SERVICES RESIDENTIAL,Adult Social Care & Health,Personal Budget - Third Party,A61019,0
Royal Borough of Kingston,01/10/2022,90175141,"3,450.96",GEORGIAN HOUSE NURSING HOME,SOCIAL SERVICES RESIDENTIAL,Adult Social Care & Health,Independent Placements,A56006,0
Royal Borough of Kingston,01/10/2022,90175080,950.00,Gold Care Homes,SOCIAL SERVICES RESIDENTIAL,Adult Social Care & Health,Independent Placements,A56006,0
Royal Borough of Kingston,01/10/2022,90175081,"1,492.86",Gold Care Homes,SOCIAL SERVICES RESIDENTIAL,Adult Social Care & Health,Independent Placements,A56006,0
Royal Borough of Kingston,01/10/2022,90175082,"4,462.23",Gold Care Homes,SOCIAL SERVICES RESIDENTIAL,Adult Social Care & Health,Independent Placements,A56006,0
Royal Borough of Kingston,01/10/2022,90175097,"4,762.35",Gold Care Homes,SOCIAL SERVICES RESIDENTIAL,Adult Social Care & Health,Independent Placements,A56006,0
Royal Borough of Kingston,01/10/2022,90175099,"3,450.96",Gold Care Homes,SOCIAL SERVICES RESIDENTIAL,Adult Social Care & Health,Independent Placements,A56006,0
Royal Borough of Kingston,01/10/2022,90175176,"4,462.23",Gold Care Homes,SOCIAL SERVICES RESIDENTIAL,Adult Social Care & Health,Independent Placements,A56006,0
Royal Borough of Kingston,01/10/2022,90175190,"4,162.50",Gold Care Homes,SOCIAL SERVICES RESIDENTIAL,Adult Social Care & Health,Independent Placements,A56006,0
Royal Borough of Kingston,01/10/2022,90175191,"4,462.23",Gold Care Homes,SOCIAL SERVICES RESIDENTIAL,Adult Social Care & Health,Independent Placements,A56006,0
Royal Borough of Kingston,01/10/2022,90175192,"4,762.35",Gold Care Homes,SOCIAL SERVICES RESIDENTIAL,Adult Social Care & Health,Independent Placements,A56006,0
Royal Borough of Kingston,01/10/2022,90175203,"4,462.23",Gold Care Homes,SOCIAL SERVICES RESIDENTIAL,Adult Social Care & Health,Independent Placements,A56006,0
Royal Borough of Kingston,01/10/2022,90175206,"4,762.35",Gold Care Homes,SOCIAL SERVICES RESIDENTIAL,Adult Social Care & Health,Independent Placements,A56006,0
Royal Borough of Kingston,01/10/2022,90175207,"4,162.50",Gold Care Homes,SOCIAL SERVICES RESIDENTIAL,Adult Social Care & Health,Independent Placements,A56006,0
Royal Borough of Kingston,01/10/2022,90175214,"4,762.35",Gold Care Homes,SOCIAL SERVICES RESIDENTIAL,Adult Social Care & Health,Independent Placements,A56006,0
Royal Borough of Kingston,01/10/2022,90175215,"4,762.35",Gold Care Homes,SOCIAL SERVICES RESIDENTIAL,Adult Social Care & Health,Independent Placements,A56006,0
Royal Borough of Kingston,01/10/2022,90175229,"1,492.86",Gold Care Homes,SOCIAL SERVICES RESIDENTIAL,Adult Social Care & Health,Independent Placements,A56006,0
Royal Borough of Kingston,01/10/2022,90176405,626.86,Gold Care Homes,SOCIAL SERVICES RESIDENTIAL,Adult Social Care & Health,Personal Budget - Third Party,A61019,0
Royal Borough of Kingston,01/10/2022,90176406,626.86,Gold Care Homes,SOCIAL SERVICES RESIDENTIAL,Adult Social Care & Health,Personal Budget - Third Party,A61019,0
Royal Borough of Kingston,01/10/2022,90176408,"1,559.96",Gold Care Homes,SOCIAL SERVICES RESIDENTIAL,Adult Social Care & Health,Personal Budget - Third Party,A61019,0
Royal Borough of Kingston,01/10/2022,90176411,675.08,Gold Care Homes,SOCIAL SERVICES RESIDENTIAL,Adult Social Care & Health,Personal Budget - Third Party,A61019,0
Royal Borough of Kingston,01/10/2022,90176413,578.64,Gold Care Homes,SOCIAL SERVICES RESIDENTIAL,Adult Social Care & Health,Personal Budget - Third Party,A61019,0
Royal Borough of Kingston,01/10/2022,90176415,675.08,Gold Care Homes,SOCIAL SERVICES RESIDENTIAL,Adult Social Care & Health,Personal Budget - Third Party,A61019,0
Royal Borough of Kingston,01/10/2022,90176417,626.86,Gold Care Homes,SOCIAL SERVICES RESIDENTIAL,Adult Social Care & Health,Personal Budget - Third Party,A61019,0
Royal Borough of Kingston,01/10/2022,90176419,578.64,Gold Care Homes,SOCIAL SERVICES RESIDENTIAL,Adult Social Care & Health,Personal Budget - Third Party,A61019,0
Royal Borough of Kingston,01/10/2022,90176428,"3,720.00",Gold Care Homes,SOCIAL SERVICES RESIDENTIAL,Adult Social Care & Health,Personal Budget - Third Party,A61019,0
Royal Borough of Kingston,01/10/2022,90176430,"1,012.62",Gold Care Homes,SOCIAL SERVICES RESIDENTIAL,Adult Social Care & Health,Personal Budget - Third Party,A61019,0
Royal Borough of Kingston,01/10/2022,90176431,"1,012.62",Gold Care Homes,SOCIAL SERVICES RESIDENTIAL,Adult Social Care & Health,Personal Budget - Third Party,A61019,0
Royal Borough of Kingston,01/10/2022,90173865,"10,007.57",Grove Care Partnership Limited,SOCIAL SERVICES RESIDENTIAL,Adult Social Care & Health,Independent Placements,A56006,0
Royal Borough of Kingston,01/10/2022,90173866,"-9,818.57",Grove Care Partnership Limited,SOCIAL SERVICES RESIDENTIAL,Adult Social Care & Health,Independent Placements,A56006,0
Royal Borough of Kingston,01/10/2022,90173867,"10,341.16",Grove Care Partnership Limited,SOCIAL SERVICES RESIDENTIAL,Adult Social Care & Health,Independent Placements,A56006,0
Royal Borough of Kingston,01/10/2022,90173868,"-10,145.86",Grove Care Partnership Limited,SOCIAL SERVICES RESIDENTIAL,Adult Social Care & Health,Independent Placements,A56006,0
Royal Borough of Kingston,01/10/2022,90173869,"10,007.57",Grove Care Partnership Limited,SOCIAL SERVICES RESIDENTIAL,Adult Social Care & Health,Independent Placements,A56006,0
Royal Borough of Kingston,01/10/2022,90173870,"-9,818.57",Grove Care Partnership Limited,SOCIAL SERVICES RESIDENTIAL,Adult Social Care & Health,Independent Placements,A56006,0
Royal Borough of Kingston,01/10/2022,90173871,"10,341.16",Grove Care Partnership Limited,SOCIAL SERVICES RESIDENTIAL,Adult Social Care & Health,Independent Placements,A56006,0
Royal Borough of Kingston,01/10/2022,90173872,"-10,145.86",Grove Care Partnership Limited,SOCIAL SERVICES RESIDENTIAL,Adult Social Care & Health,Independent Placements,A56006,0
Royal Borough of Kingston,01/10/2022,90173873,"10,341.16",Grove Care Partnership Limited,SOCIAL SERVICES RESIDENTIAL,Adult Social Care & Health,Independent Placements,A56006,0
Royal Borough of Kingston,01/10/2022,90173874,"-10,145.86",Grove Care Partnership Limited,SOCIAL SERVICES RESIDENTIAL,Adult Social Care & Health,Independent Placements,A56006,0
Royal Borough of Kingston,01/10/2022,90173875,"10,007.57",Grove Care Partnership Limited,SOCIAL SERVICES RESIDENTIAL,Adult Social Care & Health,Independent Placements,A56006,0
Royal Borough of Kingston,01/10/2022,90173876,"-9,818.57",Grove Care Partnership Limited,SOCIAL SERVICES RESIDENTIAL,Adult Social Care & Health,Independent Placements,A56006,0
Royal Borough of Kingston,01/10/2022,90175247,"3,891.86",Grove Care Partnership Limited,SOCIAL SERVICES RESIDENTIAL,Adult Social Care & Health,Independent Placements,A56006,0
Royal Borough of Kingston,01/10/2022,90175248,"-3,818.36",Grove Care Partnership Limited,SOCIAL SERVICES RESIDENTIAL,Adult Social Care & Health,Independent Placements,A56006,0
Royal Borough of Kingston,01/10/2022,90175249,"4,021.59",Grove Care Partnership Limited,SOCIAL SERVICES RESIDENTIAL,Adult Social Care & Health,Independent Placements,A56006,0
Royal Borough of Kingston,01/10/2022,90175250,"-3,945.64",Grove Care Partnership Limited,SOCIAL SERVICES RESIDENTIAL,Adult Social Care & Health,Independent Placements,A56006,0
Royal Borough of Kingston,01/10/2022,90175251,"3,891.86",Grove Care Partnership Limited,SOCIAL SERVICES RESIDENTIAL,Adult Social Care & Health,Independent Placements,A56006,0
Royal Borough of Kingston,01/10/2022,90175252,"-3,818.36",Grove Care Partnership Limited,SOCIAL SERVICES RESIDENTIAL,Adult Social Care & Health,Independent Placements,A56006,0
Royal Borough of Kingston,01/10/2022,90175253,"4,021.59",Grove Care Partnership Limited,SOCIAL SERVICES RESIDENTIAL,Adult Social Care & Health,Independent Placements,A56006,0
Royal Borough of Kingston,01/10/2022,90175254,"-3,945.64",Grove Care Partnership Limited,SOCIAL SERVICES RESIDENTIAL,Adult Social Care & Health,Independent Placements,A56006,0
Royal Borough of Kingston,01/10/2022,90175255,"4,021.59",Grove Care Partnership Limited,SOCIAL SERVICES RESIDENTIAL,Adult Social Care & Health,Independent Placements,A56006,0
Royal Borough of Kingston,01/10/2022,90175256,"-3,945.64",Grove Care Partnership Limited,SOCIAL SERVICES RESIDENTIAL,Adult Social Care & Health,Independent Placements,A56006,0
Royal Borough of Kingston,01/10/2022,90175257,"3,891.86",Grove Care Partnership Limited,SOCIAL SERVICES RESIDENTIAL,Adult Social Care & Health,Independent Placements,A56006,0
Royal Borough of Kingston,01/10/2022,90175258,"-3,818.36",Grove Care Partnership Limited,SOCIAL SERVICES RESIDENTIAL,Adult Social Care & Health,Independent Placements,A56006,0
Royal Borough of Kingston,01/10/2022,90175259,"4,021.59",Grove Care Partnership Limited,SOCIAL SERVICES RESIDENTIAL,Adult Social Care & Health,Independent Placements,A56006,0
Royal Borough of Kingston,01/10/2022,90175278,"10,341.16",Grove Care Partnership Limited,SOCIAL SERVICES RESIDENTIAL,Adult Social Care & Health,Independent Placements,A56006,0
Royal Borough of Kingston,01/10/2022,90175294,"14,683.93",Grove Care Partnership Limited,SOCIAL SERVICES RESIDENTIAL,Adult Social Care & Health,Independent Placements,A56006,0
Royal Borough of Kingston,01/10/2022,90175295,"-14,406.60",Grove Care Partnership Limited,SOCIAL SERVICES RESIDENTIAL,Adult Social Care & Health,Independent Placements,A56006,0
Royal Borough of Kingston,01/10/2022,90175296,"15,173.39",Grove Care Partnership Limited,SOCIAL SERVICES RESIDENTIAL,Adult Social Care & Health,Independent Placements,A56006,0
Royal Borough of Kingston,01/10/2022,90175297,"-14,886.82",Grove Care Partnership Limited,SOCIAL SERVICES RESIDENTIAL,Adult Social Care & Health,Independent Placements,A56006,0
Royal Borough of Kingston,01/10/2022,90175298,"14,683.93",Grove Care Partnership Limited,SOCIAL SERVICES RESIDENTIAL,Adult Social Care & Health,Independent Placements,A56006,0
Royal Borough of Kingston,01/10/2022,90175299,"-14,406.60",Grove Care Partnership Limited,SOCIAL SERVICES RESIDENTIAL,Adult Social Care & Health,Independent Placements,A56006,0
Royal Borough of Kingston,01/10/2022,90175300,"15,173.39",Grove Care Partnership Limited,SOCIAL SERVICES RESIDENTIAL,Adult Social Care & Health,Independent Placements,A56006,0
Royal Borough of Kingston,01/10/2022,90175301,"-14,886.82",Grove Care Partnership Limited,SOCIAL SERVICES RESIDENTIAL,Adult Social Care & Health,Independent Placements,A56006,0
Royal Borough of Kingston,01/10/2022,90175302,"15,173.39",Grove Care Partnership Limited,SOCIAL SERVICES RESIDENTIAL,Adult Social Care & Health,Independent Placements,A56006,0
Royal Borough of Kingston,01/10/2022,90175303,"-14,886.82",Grove Care Partnership Limited,SOCIAL SERVICES RESIDENTIAL,Adult Social Care & Health,Independent Placements,A56006,0
Royal Borough of Kingston,01/10/2022,90175304,"14,683.93",Grove Care Partnership Limited,SOCIAL SERVICES RESIDENTIAL,Adult Social Care & Health,Independent Placements,A56006,0
Royal Borough of Kingston,01/10/2022,90175305,"-14,406.60",Grove Care Partnership Limited,SOCIAL SERVICES RESIDENTIAL,Adult Social Care & Health,Independent Placements,A56006,0
Royal Borough of Kingston,01/10/2022,90175306,"15,173.39",Grove Care Partnership Limited,SOCIAL SERVICES RESIDENTIAL,Adult Social Care & Health,Independent Placements,A56006,0
Royal Borough of Kingston,01/10/2022,90175309,"9,731.27",Grove Care Partnership Limited,SOCIAL SERVICES RESIDENTIAL,Adult Social Care & Health,Independent Placements,A56006,0
Royal Borough of Kingston,01/10/2022,90175310,"-9,712.59",Grove Care Partnership Limited,SOCIAL SERVICES RESIDENTIAL,Adult Social Care & Health,Independent Placements,A56006,0
Royal Borough of Kingston,01/10/2022,90175311,"10,055.65",Grove Care Partnership Limited,SOCIAL SERVICES RESIDENTIAL,Adult Social Care & Health,Independent Placements,A56006,0
Royal Borough of Kingston,01/10/2022,90175312,"-10,036.34",Grove Care Partnership Limited,SOCIAL SERVICES RESIDENTIAL,Adult Social Care & Health,Independent Placements,A56006,0
